Workbook

Sheet Menu
B1: Medicines Optimisation Dashboard
B3: CCG Dashboard | D3: Metric Summary | F3: Additional Information | H3: Feedback
B6: Appendix - Metric Data Sets

Sheet Hierarchy (hidden)
A1: CCG/Trust Name | B1: CCG/Trust Code | C1: Area Name | D1: Area Code | E1: AHSN Name | F1: AHSN Code | G1: Cluster Name | H1: Cluster Code | J1: Trust Name | K1: Trust Code | M1: CCG Name | N1: CCG Code | P1: AT Name | Q1: AT Code | S1: AHSN Name | T1: AHSN Code | V1: Cluster Name | W1: Cluster Code | X1: Cluster Definition | Z1: Cluster Name | AA1: Cluster Code
A2: NHS Airedale, Wharfedale and Craven CCG | B2: 02N | C2: West Yorkshire Area | D2: Q52 | E2: Yorkshire & Humber AHSN | F2: AHSN15 | G2: Pyramid | H2: CLS4 | J2: 2Gether NHS Foundation Trust | K2: RTQ | M2: NHS Airedale, Wharfedale and Craven CCG | N2: 02N | P2: Arden, Herefordshire And Worcestershire Area | Q2: Q53 | S2: East Midlands AHSN | T2: AHSN2 | V2: Cone | W2: CLS5 | X2: Larger CCGs with older populations and more rural areas | Z2: Specialist Acute | AA2: TCLS1
A3: NHS Ashford CCG | B3: 09C | C3: Kent And Medway Area | D3: Q67 | E3: Kent Surrey & Sussex AHSN | F3: AHSN5 | G3: Cylinder | H3: CLS2 | J3: 5 Boroughs Partnership NHS Trust | K3: RTV | M3: NHS Ashford CCG | N3: 09C | P3: Bath, Gloucestershire, Swindon And Wiltshire Area | Q3: Q64 | S3: Eastern AHSN | T3: AHSN1 | V3: Cube | W3: CLS1 | X3: Traditional communities with deprived areas and poorer health | Z3: Non-Specialist Acute | AA3: TCLS2
A4: NHS Aylesbury Vale CCG | B4: 10Y | C4: Thames Valley Area | D4: Q69 | E4: Oxford AHSN | F4: AHSN8 | G4: Cylinder | H4: CLS2 | J4: Aintree University Hospital NHS Foundation Trust | K4: REM | M4: NHS Aylesbury Vale CCG | N4: 10Y | P4: Birmingham And The Black Country Area | Q4: Q54 | S4: Greater manchester AHSN | T4: AHSN3 | V4: Cylinder | W4: CLS2 | X4: Areas with lower deprivation and better health | Z4: Ambulance | AA4: TCLS3
A5: NHS Barking and Dagenham CCG | B5: 07L | C5: London Area | D5: Q71 | E5: UCL Partners AHSN | F5: AHSN11 | G5: Torus | H5: CLS7 | J5: Airedale NHS Foundation Trust | K5: RCF | M5: NHS Barking and Dagenham CCG | N5: 07L | P5: Bristol, North Somerset, Somerset And South Gloucestershire Area | Q5: Q65 | S5: Imperial College AHSN | T5: AHSN4 | V5: Prism | W5: CLS6 | X5: Deprived urban areas with younger people and ethnic diversity, particularly Asian | Z5: Mental health | AA5: TCLS4
A6: NHS Barnet CCG | B6: 07M | C6: London Area | D6: Q71 | E6: UCL Partners AHSN | F6: AHSN11 | G6: Cylinder | H6: CLS2 | J6: Alder Hey Children's NHS Foundation Trust | K6: RBS | M6: NHS Barnet CCG | N6: 07M | P6: Cheshire, Warrington And Wirral Area | Q6: Q44 | S6: Kent Surrey & Sussex AHSN | T6: AHSN5 | V6: Pyramid | W6: CLS4 | X6: Smaller CCGs with older populations and more rural areas | Z6: Other | AA6: TCLS5
A7: NHS Barnsley CCG | B7: 02P | C7: South Yorkshire And Bassetlaw Area | D7: Q51 | E7: Yorkshire & Humber AHSN | F7: AHSN15 | G7: Cube | H7: CLS1 | J7: Ashford And St. Peter's Hospitals NHS Foundation Trust | K7: RTK | M7: NHS Barnsley CCG | N7: 02P | P7: Cumbria, Northumberland, Tyne And Wear Area | Q7: Q49 | S7: North East & North Cumbria AHSN | T7: AHSN6 | V7: Sphere | W7: CLS3 | X7: Areas with younger adults and university cities
A8: NHS Basildon and Brentwood CCG | B8: 99E | C8: Essex Area | D8: Q57 | E8: UCL Partners AHSN | F8: AHSN11 | G8: Cylinder | H8: CLS2 | J8: Avon And Wiltshire Mental Health Partnership NHS Trust | K8: RVN | M8: NHS Basildon and Brentwood CCG | N8: 99E | P8: Derbyshire And Nottinghamshire Area | Q8: Q55 | S8: North West Coast AHSN | T8: AHSN7 | V8: Tetrahedron | W8: CLS8 | X8: Mixed communities in Inner London
A9: NHS Bassetlaw CCG | B9: 02Q | C9: South Yorkshire And Bassetlaw Area | D9: Q51 | E9: Yorkshire & Humber AHSN | F9: AHSN15 | G9: Cube | H9: CLS1 | J9: Barking, Havering And Redbridge University Hospitals NHS Trust | K9: RF4 | M9: NHS Bassetlaw CCG | N9: 02Q | P9: Devon, Cornwall And Isles Of Scilly Area | Q9: Q66 | S9: Oxford AHSN | T9: AHSN8 | V9: Torus | W9: CLS7 | X9: Deprived urban areas with younger people and ethnic diversity, particularly Black
A10: NHS Bath and North East Somerset CCG | B10: 11E | C10: Bath, Gloucestershire, Swindon And Wiltshire Area | D10: Q64 | E10: West of England AHSN | F10: AHSN14 | G10: Sphere | H10: CLS3 | J10: Barnet And Chase Farm Hospitals NHS Trust | K10: RVL | M10: NHS Bath and North East Somerset CCG | N10: 11E | P10: Durham, Darlington And Tees Area | Q10: Q45 | S10: South London AHSN | T10: AHSN9
A11: NHS Bexley CCG | B11: 07N | C11: London Area | D11: Q71 | E11: South London AHSN | F11: AHSN9 | G11: Cylinder | H11: CLS2 | J11: Barnet, Enfield And Haringey Mental Health NHS Trust | K11: RRP | M11: NHS Bedfordshire CCG | N11: 06F | P11: East Anglia Area | Q11: Q56 | S11: South West AHSN | T11: AHSN10
A12: NHS Birmingham CrossCity CCG | B12: 13P | C12: Birmingham And The Black Country Area | D12: Q54 | E12: West Midlands AHSN | F12: AHSN13 | G12: Prism | H12: CLS6 | J12: Barnsley Hospital NHS Foundation Trust | K12: RFF | M12: NHS Bexley CCG | N12: 07N | P12: Essex Area | Q12: Q57 | S12: UCL Partners AHSN | T12: AHSN11
A13: NHS Birmingham South and Central CCG | B13: 04X | C13: Birmingham And The Black Country Area | D13: Q54 | E13: West Midlands AHSN | F13: AHSN13 | G13: Prism | H13: CLS6 | J13: Barts Health NHS Trust | K13: R1H | M13: NHS Birmingham CrossCity CCG | N13: 13P | P13: Greater Manchester Area | Q13: Q46 | S13: Wessex AHSN | T13: AHSN12
A14: NHS Blackburn with Darwen CCG | B14: 00Q | C14: Lancashire Area | D14: Q47 | E14: North West Coast AHSN | F14: AHSN7 | G14: Prism | H14: CLS6 | J14: Basildon And Thurrock University Hospitals NHS Foundation Trust | K14: RDD | M14: NHS Birmingham South and Central CCG | N14: 04X | P14: Hertfordshire And The South Midlands Area | Q14: Q58 | S14: West Midlands AHSN | T14: AHSN13
A15: NHS Blackpool CCG | B15: 00R | C15: Lancashire Area | D15: Q47 | E15: North West Coast AHSN | F15: AHSN7 | G15: Cube | H15: CLS1 | J15: Bedford Hospital NHS Trust | K15: RC1 | M15: NHS Blackburn with Darwen CCG | N15: 00Q | P15: Kent And Medway Area | Q15: Q67 | S15: West of England AHSN | T15: AHSN14
A16: NHS Bolton CCG | B16: 00T | C16: Greater Manchester Area | D16: Q46 | E16: Greater Manchester AHSN | F16: AHSN3 | G16: Cube | H16: CLS1 | J16: Berkshire Healthcare NHS Foundation Trust | K16: RWX | M16: NHS Blackpool CCG | N16: 00R | P16: Lancashire Area | Q16: Q47 | S16: Yorkshire & Humber AHSN | T16: AHSN15
A17: NHS Bracknell and Ascot CCG | B17: 10G | C17: Thames Valley Area | D17: Q69 | E17: Oxford AHSN | F17: AHSN8 | G17: Cylinder | H17: CLS2 | J17: Birmingham And Solihull Mental Health NHS Foundation Trust | K17: RXT | M17: NHS Bolton CCG | N17: 00T | P17: Leicestershire And Lincolnshire Area | Q17: Q59
A18: NHS Bradford City CCG | B18: 02W | C18: West Yorkshire Area | D18: Q52 | E18: Yorkshire & Humber AHSN | F18: AHSN15 | G18: Prism | H18: CLS6 | J18: Birmingham Children's Hospital NHS Foundation Trust | K18: RQ3 | M18: NHS Bracknell and Ascot CCG | N18: 10G | P18: London Area | Q18: Q71
A19: NHS Bradford Districts CCG | B19: 02R | C19: West Yorkshire Area | D19: Q52 | E19: Yorkshire & Humber AHSN | F19: AHSN15 | G19: Cube | H19: CLS1 | J19: Birmingham Community Healthcare NHS Trust | K19: RYW | M19: NHS Bradford City CCG | N19: 02W | P19: Merseyside Area | Q19: Q48
A20: NHS Brent CCG | B20: 07P | C20: London Area | D20: Q71 | E20: Imperial College AHSN | F20: AHSN4 | G20: Torus | H20: CLS7 | J20: Birmingham Women's NHS Foundation Trust | K20: RLU | M20: NHS Bradford Districts CCG | N20: 02R | P20: North Yorkshire And Humber Area | Q20: Q50
A21: NHS Brighton and Hove CCG | B21: 09D | C21: Surrey And Sussex Area | D21: Q68 | E21: Kent Surrey & Sussex AHSN | F21: AHSN5 | G21: Sphere | H21: CLS3 | J21: Black Country Partnership NHS Foundation Trust | K21: TAJ | M21: NHS Brent CCG | N21: 07P | P21: Shropshire And Staffordshire Area | Q21: Q60
A22: NHS Bristol CCG | B22: 11H | C22: Bristol, North Somerset, Somerset And South Gloucestershire Area | D22: Q65 | E22: West of England AHSN | F22: AHSN14 | G22: Sphere | H22: CLS3 | J22: Blackpool Teaching Hospitals NHS Foundation Trust | K22: RXL | M22: NHS Brighton and Hove CCG | N22: 09D | P22: South Yorkshire And Bassetlaw Area | Q22: Q51
A23: NHS Bromley CCG | B23: 07Q | C23: London Area | D23: Q71 | E23: South London AHSN | F23: AHSN9 | G23: Cylinder | H23: CLS2 | J23: Bolton NHS Foundation Trust | K23: RMC | M23: NHS Bristol CCG | N23: 11H | P23: Surrey And Sussex Area | Q23: Q68
A24: NHS Bury CCG | B24: 00V | C24: Greater Manchester Area | D24: Q46 | E24: Greater Manchester AHSN | F24: AHSN3 | G24: Cube | H24: CLS1 | J24: Bradford District Care Trust | K24: TAD | M24: NHS Bromley CCG | N24: 07Q | P24: Thames Valley Area | Q24: Q69
A25: NHS Calderdale CCG | B25: 02T | C25: West Yorkshire Area | D25: Q52 | E25: Yorkshire & Humber AHSN | F25: AHSN15 | G25: Cube | H25: CLS1 | J25: Bradford Teaching Hospitals NHS Foundation Trust | K25: RAE | M25: NHS Bury CCG | N25: 00V | P25: Wessex Area | Q25: Q70
A26: NHS Cambridgeshire and Peterborough CCG | B26: 06H | C26: East Anglia Area | D26: Q56 | E26: Eastern AHSN | F26: AHSN1 | G26: Cone | H26: CLS5 | J26: Bridgewater Community Healthcare NHS Trust | K26: RY2 | M26: NHS Calderdale CCG | N26: 02T | P26: West Yorkshire Area | Q26: Q52
A27: NHS Camden CCG | B27: 07R | C27: London Area | D27: Q71 | E27: UCL Partners AHSN | F27: AHSN11 | G27: Tetrahedron | H27: CLS8 | J27: Brighton And Sussex University Hospitals NHS Trust | K27: RXH | M27: NHS Cambridgeshire and Peterborough CCG | N27: 06H
A28: NHS Cannock Chase CCG | B28: 04Y | C28: Shropshire And Staffordshire Area | D28: Q60 | E28: West Midlands AHSN | F28: AHSN13 | G28: Cube | H28: CLS1 | J28: Buckinghamshire Healthcare NHS Trust | K28: RXQ | M28: NHS Camden CCG | N28: 07R
A29: NHS Canterbury and Coastal CCG | B29: 09E | C29: Kent And Medway Area | D29: Q67 | E29: Kent Surrey & Sussex AHSN | F29: AHSN5 | G29: Sphere | H29: CLS3 | J29: Burton Hospitals NHS Foundation Trust | K29: RJF | M29: NHS Cannock Chase CCG | N29: 04Y
A30: NHS Castle Point and Rochford CCG | B30: 99F | C30: Essex Area | D30: Q57 | E30: UCL Partners AHSN | F30: AHSN11 | G30: Pyramid | H30: CLS4 | J30: Calderdale And Huddersfield NHS Foundation Trust | K30: RWY | M30: NHS Canterbury and Coastal CCG | N30: 09E
A31: NHS Central London (Westminster) CCG | B31: 09A | C31: London Area | D31: Q71 | E31: Imperial College AHSN | F31: AHSN4 | G31: Tetrahedron | H31: CLS8 | J31: Calderstones Partnership NHS Foundation Trust | K31: RJX | M31: NHS Castle Point and Rochford CCG | N31: 99F
A32: NHS Central Manchester CCG | B32: 00W | C32: Greater Manchester Area | D32: Q46 | E32: Greater Manchester AHSN | F32: AHSN3 | G32: Prism | H32: CLS6 | J32: Cambridge University Hospitals NHS Foundation Trust | K32: RGT | M32: NHS Central London (Westminster) CCG | N32: 09A
A33: NHS Chiltern CCG | B33: 10H | C33: Thames Valley Area | D33: Q69 | E33: Oxford AHSN | F33: AHSN8 | G33: Cylinder | H33: CLS2 | J33: Cambridgeshire And Peterborough NHS Foundation Trust | K33: RT1 | M33: NHS Central Manchester CCG | N33: 00W
A34: NHS Chorley and South Ribble CCG | B34: 00X | C34: Lancashire Area | D34: Q47 | E34: North West Coast AHSN | F34: AHSN7 | G34: Cube | H34: CLS1 | J34: Cambridgeshire Community Services NHS Trust | K34: RYV | M34: NHS Chiltern CCG | N34: 10H
A35: NHS City and Hackney CCG | B35: 07T | C35: London Area | D35: Q71 | E35: UCL Partners AHSN | F35: AHSN11 | G35: Torus | H35: CLS7 | J35: Camden & Islington NHS Foundation Trust | K35: TAF | M35: NHS Chorley and South Ribble CCG | N35: 00X
A36: NHS Coastal West Sussex CCG | B36: 09G | C36: Surrey And Sussex Area | D36: Q68 | E36: Kent Surrey & Sussex AHSN | F36: AHSN5 | G36: Cone | H36: CLS5 | J36: Central And North West London NHS Foundation Trust | K36: RV3 | M36: NHS City and Hackney CCG | N36: 07T
A37: NHS Corby CCG | B37: 03V | C37: Hertfordshire And The South Midlands Area | D37: Q58 | E37: East Midlands AHSN | F37: AHSN2 | G37: Cube | H37: CLS1 | J37: Central London Community Healthcare NHS Trust | K37: RYX | M37: NHS Coastal West Sussex CCG | N37: 09G
A38: NHS Coventry and Rugby CCG | B38: 05A | C38: Arden, Herefordshire And Worcestershire Area | D38: Q53 | E38: West Midlands AHSN | F38: AHSN13 | G38: Sphere | H38: CLS3 | J38: Central Manchester University Hospitals NHS Foundation Trust | K38: RW3 | M38: NHS Corby CCG | N38: 03V
A39: NHS Crawley CCG | B39: 09H | C39: Surrey And Sussex Area | D39: Q68 | E39: Kent Surrey & Sussex AHSN | F39: AHSN5 | G39: Cylinder | H39: CLS2 | J39: Chelsea And Westminster Hospital NHS Foundation Trust | K39: RQM | M39: NHS Coventry and Rugby CCG | N39: 05A
A40: NHS Croydon CCG | B40: 07V | C40: London Area | D40: Q71 | E40: South London AHSN | F40: AHSN9 | G40: Torus | H40: CLS7 | J40: Cheshire And Wirral Partnership NHS Foundation Trust | K40: RXA | M40: NHS Crawley CCG | N40: 09H
A41: NHS Darlington CCG | B41: 00C | C41: Durham, Darlington And Tees Area | D41: Q45 | E41: North East & North Cumbria AHSN | F41: AHSN6 | G41: Cube | H41: CLS1 | J41: Chesterfield Royal Hospital NHS Foundation Trust | K41: RFS | M41: NHS Croydon CCG | N41: 07V
A42: NHS Dartford, Gravesham and Swanley CCG | B42: 09J | C42: Kent And Medway Area | D42: Q67 | E42: Kent Surrey & Sussex AHSN | F42: AHSN5 | G42: Cylinder | H42: CLS2 | J42: City Hospitals Sunderland NHS Foundation Trust | K42: RLN | M42: NHS Cumbria CCG | N42: 01H
A43: NHS Doncaster CCG | B43: 02X | C43: South Yorkshire And Bassetlaw Area | D43: Q51 | E43: Yorkshire & Humber AHSN | F43: AHSN15 | G43: Cube | H43: CLS1 | J43: Colchester Hospital University NHS Foundation Trust | K43: RDE | M43: NHS Darlington CCG | N43: 00C
A44: NHS Dorset CCG | B44: 11J | C44: Wessex Area | D44: Q70 | E44: Wessex AHSN | F44: AHSN12 | G44: Cone | H44: CLS5 | J44: Cornwall Partnership NHS Trust | K44: RJ8 | M44: NHS Dartford, Gravesham and Swanley CCG | N44: 09J
A45: NHS Dudley CCG | B45: 05C | C45: Birmingham And The Black Country Area | D45: Q54 | E45: West Midlands AHSN | F45: AHSN13 | G45: Cube | H45: CLS1 | J45: Countess Of Chester Hospital NHS Foundation Trust | K45: RJR | M45: NHS Doncaster CCG | N45: 02X
A46: NHS Durham Dales, Easington and Sedgefield CCG | B46: 00D | C46: Durham, Darlington And Tees Area | D46: Q45 | E46: North East & North Cumbria AHSN | F46: AHSN6 | G46: Cube | H46: CLS1 | J46: County Durham And Darlington NHS Foundation Trust | K46: RXP | M46: NHS Dorset CCG | N46: 11J
A47: NHS Ealing CCG | B47: 07W | C47: London Area | D47: Q71 | E47: Imperial College AHSN | F47: AHSN4 | G47: Prism | H47: CLS6 | J47: Coventry And Warwickshire Partnership NHS Trust | K47: RYG | M47: NHS Dudley CCG | N47: 05C
A48: NHS East and North Hertfordshire CCG | B48: 06K | C48: Hertfordshire And The South Midlands Area | D48: Q58 | E48: Eastern AHSN | F48: AHSN1 | G48: Cone | H48: CLS5 | J48: Croydon Health Services NHS Trust | K48: RJ6 | M48: NHS Durham Dales, Easington and Sedgefield CCG | N48: 00D
A49: NHS East Lancashire CCG | B49: 01A | C49: Lancashire Area | D49: Q47 | E49: North West Coast AHSN | F49: AHSN7 | G49: Cube | H49: CLS1 | J49: Cumbria Partnership NHS Foundation Trust | K49: RNN | M49: NHS Ealing CCG | N49: 07W
A50: NHS East Leicestershire and Rutland CCG | B50: 03W | C50: Leicestershire And Lincolnshire Area | D50: Q59 | E50: East Midlands AHSN | F50: AHSN2 | G50: Pyramid | H50: CLS4 | J50: Dartford And Gravesham NHS Trust | K50: RN7 | M50: NHS East and North Hertfordshire CCG | N50: 06K
A51: NHS East Riding of Yorkshire CCG | B51: 02Y | C51: North Yorkshire And Humber Area | D51: Q50 | E51: Yorkshire & Humber AHSN | F51: AHSN15 | G51: Pyramid | H51: CLS4 | J51: Derby Hospitals NHS Foundation Trust | K51: RTG | M51: NHS East Lancashire CCG | N51: 01A
A52: NHS East Staffordshire CCG | B52: 05D | C52: Shropshire And Staffordshire Area | D52: Q60 | E52: West Midlands AHSN | F52: AHSN13 | G52: Pyramid | H52: CLS4 | J52: Derbyshire Community Health Services NHS Trust | K52: RY8 | M52: NHS East Leicestershire and Rutland CCG | N52: 03W
A53: NHS East Surrey CCG | B53: 09L | C53: Surrey And Sussex Area | D53: Q68 | E53: Kent Surrey & Sussex AHSN | F53: AHSN5 | G53: Cylinder | H53: CLS2 | J53: Derbyshire Healthcare NHS Foundation Trust | K53: RXM | M53: NHS East Riding of Yorkshire CCG | N53: 02Y
A54: NHS Eastbourne, Hailsham and Seaford CCG | B54: 09F | C54: Surrey And Sussex Area | D54: Q68 | E54: Kent Surrey & Sussex AHSN | F54: AHSN5 | G54: Pyramid | H54: CLS4 | J54: Devon Partnership NHS Trust | K54: RWV | M54: NHS East Staffordshire CCG | N54: 05D
A55: NHS Eastern Cheshire CCG | B55: 01C | C55: Cheshire, Warrington And Wirral Area | D55: Q44 | E55: Greater Manchester AHSN | F55: AHSN3 | G55: Pyramid | H55: CLS4 | J55: Doncaster And Bassetlaw Hospitals NHS Foundation Trust | K55: RP5 | M55: NHS East Surrey CCG | N55: 09L
A56: NHS Enfield CCG | B56: 07X | C56: London Area | D56: Q71 | E56: UCL Partners AHSN | F56: AHSN11 | G56: Torus | H56: CLS7 | J56: Dorset County Hospital NHS Foundation Trust | K56: RBD | M56: NHS Eastbourne, Hailsham and Seaford CCG | N56: 09F
A57: NHS Erewash CCG | B57: 03X | C57: Derbyshire And Nottinghamshire Area | D57: Q55 | E57: East Midlands AHSN | F57: AHSN2 | G57: Cube | H57: CLS1 | J57: Dorset Healthcare University NHS Foundation Trust | K57: RDY | M57: NHS Eastern Cheshire CCG | N57: 01C
A58: NHS Fareham and Gosport CCG | B58: 10K | C58: Wessex Area | D58: Q70 | E58: Wessex AHSN | F58: AHSN12 | G58: Cylinder | H58: CLS2 | J58: Dudley And Walsall Mental Health Partnership NHS Trust | K58: RYK | M58: NHS Enfield CCG | N58: 07X
A59: NHS Fylde and Wyre CCG | B59: 02M | C59: Lancashire Area | D59: Q47 | E59: North West Coast AHSN | F59: AHSN7 | G59: Pyramid | H59: CLS4 | J59: Ealing Hospital NHS Trust | K59: RC3 | M59: NHS Erewash CCG | N59: 03X
A60: NHS Gateshead CCG | B60: 00F | C60: Cumbria, Northumberland, Tyne And Wear Area | D60: Q49 | E60: North East & North Cumbria AHSN | F60: AHSN6 | G60: Cube | H60: CLS1 | J60: East And North Hertfordshire NHS Trust | K60: RWH | M60: NHS Fareham and Gosport CCG | N60: 10K
A61: NHS Gloucestershire CCG | B61: 11M | C61: Bath, Gloucestershire, Swindon And Wiltshire Area | D61: Q64 | E61: West of England AHSN | F61: AHSN14 | G61: Cone | H61: CLS5 | J61: East Cheshire NHS Trust | K61: RJN | M61: NHS Fylde and Wyre CCG | N61: 02M
A62: NHS Great Yarmouth and Waveney CCG | B62: 06M | C62: East Anglia Area | D62: Q56 | E62: Eastern AHSN | F62: AHSN1 | G62: Pyramid | H62: CLS4 | J62: East Kent Hospitals University NHS Foundation Trust | K62: RVV | M62: NHS Gateshead CCG | N62: 00F
... 77 more rows

Sheet Split AHSN (hidden)
A1: Dashboard
A2: Selected CCG | B2: =IF('Dashboard (CCG)'!$C$4="","",'Dashboard (CCG)'!$C$4) -> 
A3: AHSN Lookup | B3: =INDEX(DTable_Hierarchy[],MATCH($B$2,DTable_Hierarchy[CCG/Trust Name],0),MATCH("AHSN Name",DTable_Hierarchy[#Headers],0)) ->  | F3: =INDEX(DTable_Hierarchy[],MATCH($B$2,DTable_Hierarchy[CCG/Trust Name],0),MATCH("AHSN Code",DTable_Hierarchy[#Headers],0)) -> 
A4: Selected AHSN | B4: =IF(B3="Multiple", IF('Dashboard (CCG)'!$L$4="","Please select AHSN to view",'Dashboard (CCG)'!$L$4), 'Dashboard (CCG)'!$H$4) ->  | F4: =VLOOKUP(B4,DTable_AHSN,2,FALSE) -> 
A5: Valid AHSN | B5: =IF(OR(B4=B7,B4=B8),"Valid","Invalid") -> 
A6: Number of AHSNs | B6: =IF(ISERROR($B$3),1, IF($B$3="Multiple",VLOOKUP($B$2,DTable_MultipleAHSN,3,FALSE),1)) -> 1
A7: AHSN 1 | B7: =IF($B$6=2,VLOOKUP($B$2,DTable_MultipleAHSN,4,FALSE),"") ->  | F7: =IF($B$6=2,VLOOKUP($B$2,DTable_MultipleAHSN,5,FALSE),"") -> 
A8: AHSN 2 | B8: =IF($B$6=2,VLOOKUP($B$2,DTable_MultipleAHSN,6,FALSE),"") ->  | F8: =IF($B$6=2,VLOOKUP($B$2,DTable_MultipleAHSN,7,FALSE),"") -> 
A9: AHSN to Show | B9: =IF(B6=1,B3, IF(B5="Invalid","Please select AHSN to view",B4)) ->  | F9: =IF(B6=1,F3,F4) -> 
A11: Summary CCG
A12: Selected CCG | B12: =IF('Summary (CCG)'!$F$7="","",'Summary (CCG)'!$F$7) -> 
A13: AHSN Lookup | B13: =INDEX(DTable_Hierarchy[],MATCH($B$12,DTable_Hierarchy[CCG/Trust Name],0),MATCH("AHSN Name",DTable_Hierarchy[#Headers],0)) ->  | F13: =INDEX(DTable_Hierarchy[],MATCH($B$12,DTable_Hierarchy[CCG/Trust Name],0),MATCH("AHSN Code",DTable_Hierarchy[#Headers],0)) -> 
A14: Selected AHSN | B14: =IF('Summary (CCG)'!$I$11="","",'Summary (CCG)'!$I$11) ->  | F14: =VLOOKUP(B14,DTable_AHSN,2,FALSE) -> 
A15: Valid AHSN | B15: =IF(OR(B14=B17,B14=B18),"Valid","Invalid") -> Valid
A16: Number of AHSNs | B16: =IF(ISERROR($B$13),1, IF($B$13="Multiple",VLOOKUP($B$12,DTable_MultipleAHSN,3,FALSE),1)) -> 1
A17: AHSN 1 | B17: =IF($B$16=2,VLOOKUP($B$12,DTable_MultipleAHSN,4,FALSE),"") ->  | F17: =IF($B$16=2,VLOOKUP($B$12,DTable_MultipleAHSN,5,FALSE),"") -> 
A18: AHSN 2 | B18: =IF($B$16=2,VLOOKUP($B$12,DTable_MultipleAHSN,6,FALSE),"") ->  | F18: =IF($B$16=2,VLOOKUP($B$12,DTable_MultipleAHSN,7,FALSE),"") -> 
A19: AHSN to Show | B19: =IF(B16=1,B13,B14) ->  | F19: =IF(B16=1,F13,F14) -> 
A21: Summary Trust
A22: Selected Trust | B22: =IF('Summary (Trust)'!$F$7="","",'Summary (Trust)'!$F$7) -> 
A23: AHSN Lookup | B23: =INDEX(DTable_Hierarchy[],MATCH($B$22,DTable_Hierarchy[CCG/Trust Name],0),MATCH("AHSN Name",DTable_Hierarchy[#Headers],0)) ->  | F23: =INDEX(DTable_Hierarchy[],MATCH($B$22,DTable_Hierarchy[CCG/Trust Name],0),MATCH("AHSN Code",DTable_Hierarchy[#Headers],0)) -> 
A24: Selected AHSN | B24: =IF('Summary (Trust)'!$H$11="","",'Summary (Trust)'!$H$11) ->  | F24: =VLOOKUP(B24,DTable_AHSN,2,FALSE) -> 
A25: Valid AHSN | B25: =IF(OR(B24=B27,B24=B28),"Valid","Invalid") -> Valid
A26: Number of AHSNs | B26: =IF(ISERROR($B$23),1, IF($B$23="Multiple",VLOOKUP($B$22,DTable_MultipleAHSN,3,FALSE),1)) -> 1
A27: AHSN 1 | B27: =IF($B$26=2,VLOOKUP($B$22,DTable_MultipleAHSN,4,FALSE),"") ->  | F27: =IF($B$26=2,VLOOKUP($B$22,DTable_MultipleAHSN,5,FALSE),"") -> 
A28: AHSN 2 | B28: =IF($B$26=2,VLOOKUP($B$22,DTable_MultipleAHSN,6,FALSE),"") ->  | F28: =IF($B$26=2,VLOOKUP($B$22,DTable_MultipleAHSN,7,FALSE),"") -> 
A29: AHSN to Show | B29: =IF(B26=1,B23,B24) ->  | F29: =IF(B26=1,F23,F24) -> 
A31: Summary OACs
A32: Selected CCG | B32: =IF('Summary (OACs)'!$B$4="","",'Summary (OACs)'!$B$4) -> 
A33: AHSN Lookup | B33: =INDEX(DTable_Hierarchy[],MATCH($B$32,DTable_Hierarchy[CCG/Trust Name],0),MATCH("AHSN Name",DTable_Hierarchy[#Headers],0)) ->  | F33: =INDEX(DTable_Hierarchy[],MATCH($B$32,DTable_Hierarchy[CCG/Trust Name],0),MATCH("AHSN Code",DTable_Hierarchy[#Headers],0)) -> 
A34: Selected AHSN | B34: =IF('Summary (OACs)'!$B$7="","",'Summary (OACs)'!$B$7) ->  | F34: =VLOOKUP(B34,DTable_AHSN,2,FALSE) -> 
A35: Valid AHSN | B35: =IF(OR(B34=B37,B34=B38),"Valid","Invalid") -> Valid
A36: Number of AHSNs | B36: =IF(ISERROR($B$33),1, IF($B$33="Multiple",VLOOKUP($B$32,DTable_MultipleAHSN,3,FALSE),1)) -> 1
A37: AHSN 1 | B37: =IF($B$36=2,VLOOKUP($B$32,DTable_MultipleAHSN,4,FALSE),"") ->  | F37: =IF($B$36=2,VLOOKUP($B$32,DTable_MultipleAHSN,5,FALSE),"") -> 
A38: AHSN 2 | B38: =IF($B$36=2,VLOOKUP($B$32,DTable_MultipleAHSN,6,FALSE),"") ->  | F38: =IF($B$36=2,VLOOKUP($B$32,DTable_MultipleAHSN,7,FALSE),"") -> 
A39: AHSN to Show | B39: =IF(B36=1,B33,B34) ->  | F39: =IF(B36=1,F33,F34) -> 
A41: Summary DIS
A42: Selected CCG | B42: =IF('Summary (Diabetes)'!$B$4="","",'Summary (Diabetes)'!$B$4) -> 
A43: AHSN Lookup | B43: =INDEX(DTable_Hierarchy[],MATCH($B$42,DTable_Hierarchy[CCG/Trust Name],0),MATCH("AHSN Name",DTable_Hierarchy[#Headers],0)) ->  | F43: =INDEX(DTable_Hierarchy[],MATCH($B$42,DTable_Hierarchy[CCG/Trust Name],0),MATCH("AHSN Code",DTable_Hierarchy[#Headers],0)) -> 
A44: Selected AHSN | B44: =IF('Summary (Diabetes)'!$B$7="","",'Summary (Diabetes)'!$B$7) ->  | F44: =VLOOKUP(B44,DTable_AHSN,2,FALSE) -> 
A45: Valid AHSN | B45: =IF(OR(B44=B47,B44=B48),"Valid","Invalid") -> Valid
A46: Number of AHSNs | B46: =IF(ISERROR($B$43),1, IF($B$43="Multiple",VLOOKUP($B$42,DTable_MultipleAHSN,3,FALSE),1)) -> 1
A47: AHSN 1 | B47: =IF($B$46=2,VLOOKUP($B$42,DTable_MultipleAHSN,4,FALSE),"") ->  | F47: =IF($B$46=2,VLOOKUP($B$42,DTable_MultipleAHSN,5,FALSE),"") -> 
A48: AHSN 2 | B48: =IF($B$46=2,VLOOKUP($B$42,DTable_MultipleAHSN,6,FALSE),"") ->  | F48: =IF($B$46=2,VLOOKUP($B$42,DTable_MultipleAHSN,7,FALSE),"") -> 
A49: AHSN to Show | B49: =IF(B46=1,B43,B44) ->  | F49: =IF(B46=1,F43,F44) -> 
A51: Multiple AHSN Lists
A52: CCG/Trust Name | B52: CCG/Trust Code | C52: AHSN COUNT | D52: 1) AHSN Name | E52: 1) AHSN Code | F52: 2) AHSN Name | G52: 2) AHSN Code
A53: NHS Bedfordshire CCG | B53: 06F | C53: 2 | D53: Eastern AHSN | E53: AHSN1 | F53: Oxford AHSN | G53: AHSN8
A54: NHS Mid Essex CCG | B54: 06Q | C54: 2 | D54: Eastern AHSN | E54: AHSN1 | F54: UCL Partners AHSN | G54: AHSN11
A55: NHS Nene CCG | B55: 04G | C55: 2 | D55: East Midlands AHSN | E55: AHSN2 | F55: Oxford AHSN | G55: AHSN8
A56: NHS West Essex CCG | B56: 07H | C56: 2 | D56: Eastern AHSN | E56: AHSN1 | F56: UCL Partners AHSN | G56: AHSN11
A57: NHS Cumbria CCG | B57: 01H | C57: 2 | D57: North East & North Cumbria AHSN | E57: AHSN6 | F57: North West Coast AHSN | G57: AHSN7
A58: NHS Wiltshire CCG | B58: 99N | C58: 2 | D58: Wessex AHSN | E58: AHSN12 | F58: West of England AHSN | G58: AHSN14
A60: FRIMLEY PARK HOSPITAL NHS FOUNDATION TRUST | B60: RDU | C60: 2 | D60: Kent Surrey & Sussex AHSN | E60: AHSN5 | F60: Oxford AHSN | G60: AHSN8
A61: EPSOM AND ST HELIER UNIVERSITY HOSPITALS NHS TRUST | B61: RVR | C61: 2 | D61: Kent Surrey & Sussex AHSN | E61: AHSN5 | F61: South London AHSN | G61: AHSN9
A62: THE ROYAL MARSDEN NHS FOUNDATION TRUST | B62: RPY | C62: 2 | D62: Imperial College AHSN | E62: AHSN3 | F62: South London AHSN | G62: AHSN9
A63: CENTRAL AND NORTH WEST LONDON NHS FOUNDATION TRUST | B63: RV3 | C63: 2 | D63: Imperial College AHSN | E63: AHSN3 | F63: Oxford AHSN | G63: AHSN8
A64: SOUTHERN HEALTH NHS FOUNDATION TRUST | B64: RW1 | C64: 2 | D64: Oxford AHSN | E64: AHSN8 | F64: Wessex AHSN | G64: AHSN12
A65: SOUTH CENTRAL AMBULANCE SERVICE NHS FOUNDATION TRUST | B65: RYE | C65: 2 | D65: Oxford AHSN | E65: AHSN8 | F65: Wessex AHSN | G65: AHSN12
A66: SOUTH WESTERN AMBULANCE SERVICE NHS FOUNDATION TRUST | B66: RYF | C66: 2 | D66: South West AHSN | E66: AHSN10 | F66: West of England AHSN | G66: AHSN14

Sheet RawData (CCG) (hidden)
A1: Metric Name | B1: Code | C1: Name | D1: Numerator | E1: Denominator | F1: Identifier
A2: % of practices submitting EPS | B2: 02N | C2: NHS Airedale, Wharfedale and Craven CCG | D2: 7 | E2: 17 | F2: 41.17647059
A3: % of practices submitting EPS | B3: 09C | C3: NHS Ashford CCG | D3: 6 | E3: 14 | F3: 42.85714286
A4: % of practices submitting EPS | B4: 10Y | C4: NHS Aylesbury Vale CCG | D4: 11 | E4: 19 | F4: 57.89473684
A5: % of practices submitting EPS | B5: 07L | C5: NHS Barking and Dagenham CCG | D5: 36 | E5: 40 | F5: 90
A6: % of practices submitting EPS | B6: 07M | C6: NHS Barnet CCG | D6: 55 | E6: 69 | F6: 79.71014493
A7: % of practices submitting EPS | B7: 02P | C7: NHS Barnsley CCG | D7: 19 | E7: 36 | F7: 52.77777778
A8: % of practices submitting EPS | B8: 99E | C8: NHS Basildon and Brentwood CCG | D8: 12 | E8: 44 | F8: 27.27272727
A9: % of practices submitting EPS | B9: 02Q | C9: NHS Bassetlaw CCG | D9: 1 | E9: 12 | F9: 8.333333333
A10: % of practices submitting EPS | B10: 11E | C10: NHS Bath and North East Somerset CCG | D10: 18 | E10: 27 | F10: 66.66666667
A11: % of practices submitting EPS | B11: 06F | C11: NHS Bedfordshire CCG | D11: 17 | E11: 55 | F11: 30.90909091
A12: % of practices submitting EPS | B12: 07N | C12: NHS Bexley CCG | D12: 27 | E12: 27 | F12: 100
A13: % of practices submitting EPS | B13: 13P | C13: NHS Birmingham CrossCity CCG | D13: 43 | E13: 115 | F13: 37.39130435
A14: % of practices submitting EPS | B14: 04X | C14: NHS Birmingham South and Central CCG | D14: 18 | E14: 45 | F14: 40
A15: % of practices submitting EPS | B15: 00Q | C15: NHS Blackburn with Darwen CCG | D15: 9 | E15: 28 | F15: 32.14285714
A16: % of practices submitting EPS | B16: 00R | C16: NHS Blackpool CCG | D16: 0 | E16: 23 | F16: 0
A17: % of practices submitting EPS | B17: 00T | C17: NHS Bolton CCG | D17: 22 | E17: 50 | F17: 44
A18: % of practices submitting EPS | B18: 10G | C18: NHS Bracknell and Ascot CCG | D18: 12 | E18: 15 | F18: 80
A19: % of practices submitting EPS | B19: 02W | C19: NHS Bradford City CCG | D19: 3 | E19: 27 | F19: 11.11111111
A20: % of practices submitting EPS | B20: 02R | C20: NHS Bradford Districts CCG | D20: 14 | E20: 41 | F20: 34.14634146
A21: % of practices submitting EPS | B21: 07P | C21: NHS Brent CCG | D21: 63 | E21: 67 | F21: 94.02985075
A22: % of practices submitting EPS | B22: 09D | C22: NHS Brighton and Hove CCG | D22: 9 | E22: 46 | F22: 19.56521739
A23: % of practices submitting EPS | B23: 11H | C23: NHS Bristol CCG | D23: 6 | E23: 56 | F23: 10.71428571
A24: % of practices submitting EPS | B24: 07Q | C24: NHS Bromley CCG | D24: 42 | E24: 45 | F24: 93.33333333
A25: % of practices submitting EPS | B25: 00V | C25: NHS Bury CCG | D25: 27 | E25: 33 | F25: 81.81818182
A26: % of practices submitting EPS | B26: 02T | C26: NHS Calderdale CCG | D26: 18 | E26: 27 | F26: 66.66666667
A27: % of practices submitting EPS | B27: 06H | C27: NHS Cambridgeshire and Peterborough CCG | D27: 20 | E27: 107 | F27: 18.69158879
A28: % of practices submitting EPS | B28: 07R | C28: NHS Camden CCG | D28: 33 | E28: 39 | F28: 84.61538462
A29: % of practices submitting EPS | B29: 04Y | C29: NHS Cannock Chase CCG | D29: 1 | E29: 27 | F29: 3.703703704
A30: % of practices submitting EPS | B30: 09E | C30: NHS Canterbury and Coastal CCG | D30: 10 | E30: 21 | F30: 47.61904762
A31: % of practices submitting EPS | B31: 99F | C31: NHS Castle Point and Rochford CCG | D31: 1 | E31: 27 | F31: 3.703703704
A32: % of practices submitting EPS | B32: 09A | C32: NHS Central London (Westminster) CCG | D32: 3 | E32: 36 | F32: 8.333333333
A33: % of practices submitting EPS | B33: 00W | C33: NHS Central Manchester CCG | D33: 2 | E33: 32 | F33: 6.25
A34: % of practices submitting EPS | B34: 10H | C34: NHS Chiltern CCG | D34: 22 | E34: 34 | F34: 64.70588235
A35: % of practices submitting EPS | B35: 00X | C35: NHS Chorley and South Ribble CCG | D35: 28 | E35: 32 | F35: 87.5
A36: % of practices submitting EPS | B36: 07T | C36: NHS City and Hackney CCG | D36: 29 | E36: 43 | F36: 67.44186047
A37: % of practices submitting EPS | B37: 09G | C37: NHS Coastal West Sussex CCG | D37: 1 | E37: 54 | F37: 1.851851852
A38: % of practices submitting EPS | B38: 03V | C38: NHS Corby CCG | D38: 1 | E38: 5 | F38: 20
A39: % of practices submitting EPS | B39: 05A | C39: NHS Coventry and Rugby CCG | D39: 30 | E39: 76 | F39: 39.47368421
A40: % of practices submitting EPS | B40: 09H | C40: NHS Crawley CCG | D40: 1 | E40: 13 | F40: 7.692307692
A41: % of practices submitting EPS | B41: 07V | C41: NHS Croydon CCG | D41: 58 | E41: 60 | F41: 96.66666667
A42: % of practices submitting EPS | B42: 01H | C42: NHS Cumbria CCG | D42: 54 | E42: 82 | F42: 65.85365854
A43: % of practices submitting EPS | B43: 00C | C43: NHS Darlington CCG | D43: 11 | E43: 11 | F43: 100
A44: % of practices submitting EPS | B44: 09J | C44: NHS Dartford, Gravesham and Swanley CCG | D44: 11 | E44: 34 | F44: 32.35294118
A45: % of practices submitting EPS | B45: 02X | C45: NHS Doncaster CCG | D45: 16 | E45: 43 | F45: 37.20930233
A46: % of practices submitting EPS | B46: 11J | C46: NHS Dorset CCG | D46: 35 | E46: 100 | F46: 35
A47: % of practices submitting EPS | B47: 05C | C47: NHS Dudley CCG | D47: 1 | E47: 47 | F47: 2.127659574
A48: % of practices submitting EPS | B48: 00D | C48: NHS Durham Dales, Easington and Sedgefield CCG | D48: 14 | E48: 41 | F48: 34.14634146
A49: % of practices submitting EPS | B49: 07W | C49: NHS Ealing CCG | D49: 6 | E49: 80 | F49: 7.5
A50: % of practices submitting EPS | B50: 06K | C50: NHS East and North Hertfordshire CCG | D50: 24 | E50: 60 | F50: 40
A51: % of practices submitting EPS | B51: 01A | C51: NHS East Lancashire CCG | D51: 4 | E51: 58 | F51: 6.896551724
A52: % of practices submitting EPS | B52: 03W | C52: NHS East Leicestershire and Rutland CCG | D52: 15 | E52: 33 | F52: 45.45454545
A53: % of practices submitting EPS | B53: 02Y | C53: NHS East Riding of Yorkshire CCG | D53: 16 | E53: 37 | F53: 43.24324324
A54: % of practices submitting EPS | B54: 05D | C54: NHS East Staffordshire CCG | D54: 0 | E54: 19 | F54: 0
A55: % of practices submitting EPS | B55: 09L | C55: NHS East Surrey CCG | D55: 2 | E55: 18 | F55: 11.11111111
A56: % of practices submitting EPS | B56: 09F | C56: NHS Eastbourne, Hailsham and Seaford CCG | D56: 5 | E56: 21 | F56: 23.80952381
A57: % of practices submitting EPS | B57: 01C | C57: NHS Eastern Cheshire CCG | D57: 19 | E57: 23 | F57: 82.60869565
A58: % of practices submitting EPS | B58: 07X | C58: NHS Enfield CCG | D58: 43 | E58: 49 | F58: 87.75510204
A59: % of practices submitting EPS | B59: 03X | C59: NHS Erewash CCG | D59: 4 | E59: 12 | F59: 33.33333333
A60: % of practices submitting EPS | B60: 10K | C60: NHS Fareham and Gosport CCG | D60: 8 | E60: 21 | F60: 38.0952381
A61: % of practices submitting EPS | B61: 02M | C61: NHS Fylde and Wyre CCG | D61: 2 | E61: 21 | F61: 9.523809524
A62: % of practices submitting EPS | B62: 00F | C62: NHS Gateshead CCG | D62: 2 | E62: 31 | F62: 6.451612903
... 77 more rows

Sheet RawData (Area) (hidden)
A1: Metric Name | B1: Code | C1: Name | D1: Numerator | E1: Denominator | F1: Identifier
A2: % of practices submitting EPS | B2: Q44 | C2: Cheshire, Warrington And Wirral Area | D2: 135 | E2: 172 | F2: 78.48837209
A3: % of practices submitting EPS | B3: Q45 | C3: Durham, Darlington And Tees Area | D3: 91 | E3: 171 | F3: 53.21637427
A4: % of practices submitting EPS | B4: Q46 | C4: Greater Manchester Area | D4: 172 | E4: 497 | F4: 34.60764588
A5: % of practices submitting EPS | B5: Q47 | C5: Lancashire Area | D5: 46 | E5: 230 | F5: 20
A6: % of practices submitting EPS | B6: Q48 | C6: Merseyside Area | D6: 110 | E6: 234 | F6: 47.00854701
A7: % of practices submitting EPS | B7: Q49 | C7: Cumbria, Northumberland, Tyne And Wear Area | D7: 120 | E7: 300 | F7: 40
A8: % of practices submitting EPS | B8: Q50 | C8: North Yorkshire And Humber Area | D8: 88 | E8: 230 | F8: 38.26086957
A9: % of practices submitting EPS | B9: Q51 | C9: South Yorkshire And Bassetlaw Area | D9: 88 | E9: 214 | F9: 41.12149533
A10: % of practices submitting EPS | B10: Q52 | C10: West Yorkshire Area | D10: 140 | E10: 329 | F10: 42.55319149
A11: % of practices submitting EPS | B11: Q53 | C11: Arden, Herefordshire And Worcestershire Area | D11: 121 | E11: 231 | F11: 52.38095238
A12: % of practices submitting EPS | B12: Q54 | C12: Birmingham And The Black Country Area | D12: 168 | E12: 452 | F12: 37.16814159
A13: % of practices submitting EPS | B13: Q55 | C13: Derbyshire And Nottinghamshire Area | D13: 117 | E13: 268 | F13: 43.65671642
A14: % of practices submitting EPS | B14: Q56 | C14: East Anglia Area | D14: 39 | E14: 286 | F14: 13.63636364
A15: % of practices submitting EPS | B15: Q57 | C15: Essex Area | D15: 85 | E15: 269 | F15: 31.59851301
A16: % of practices submitting EPS | B16: Q58 | C16: Hertfordshire And The South Midlands Area | D16: 125 | E16: 317 | F16: 39.43217666
A17: % of practices submitting EPS | B17: Q59 | C17: Leicestershire And Lincolnshire Area | D17: 106 | E17: 246 | F17: 43.08943089
A18: % of practices submitting EPS | B18: Q60 | C18: Shropshire And Staffordshire Area | D18: 26 | E18: 242 | F18: 10.74380165
A19: % of practices submitting EPS | B19: Q64 | C19: Bath, Gloucestershire, Swindon And Wiltshire Area | D19: 108 | E19: 193 | F19: 55.95854922
A20: % of practices submitting EPS | B20: Q65 | C20: Bristol, North Somerset, Somerset And South Gloucestershire Area | D20: 39 | E20: 182 | F20: 21.42857143
A21: % of practices submitting EPS | B21: Q66 | C21: Devon, Cornwall And Isles Of Scilly Area | D21: 113 | E21: 226 | F21: 50
A22: % of practices submitting EPS | B22: Q67 | C22: Kent And Medway Area | D22: 129 | E22: 257 | F22: 50.19455253
A23: % of practices submitting EPS | B23: Q68 | C23: Surrey And Sussex Area | D23: 30 | E23: 332 | F23: 9.036144578
A24: % of practices submitting EPS | B24: Q69 | C24: Thames Valley Area | D24: 133 | E24: 239 | F24: 55.64853556
A25: % of practices submitting EPS | B25: Q70 | C25: Wessex Area | D25: 126 | E25: 316 | F25: 39.87341772
A26: % of practices submitting EPS | B26: Q71 | C26: London Area | D26: 1062 | E26: 1423 | F26: 74.63106114
A27: % of practices enabled for EPS | B27: Q44 | C27: Cheshire, Warrington And Wirral Area | D27: 137 | E27: 172 | F27: 79.65116279
A28: % of practices enabled for EPS | B28: Q45 | C28: Durham, Darlington And Tees Area | D28: 91 | E28: 171 | F28: 53.21637427
A29: % of practices enabled for EPS | B29: Q46 | C29: Greater Manchester Area | D29: 175 | E29: 497 | F29: 35.21126761
A30: % of practices enabled for EPS | B30: Q47 | C30: Lancashire Area | D30: 49 | E30: 230 | F30: 21.30434783
A31: % of practices enabled for EPS | B31: Q48 | C31: Merseyside Area | D31: 110 | E31: 234 | F31: 47.00854701
A32: % of practices enabled for EPS | B32: Q49 | C32: Cumbria, Northumberland, Tyne And Wear Area | D32: 120 | E32: 300 | F32: 40
A33: % of practices enabled for EPS | B33: Q50 | C33: North Yorkshire And Humber Area | D33: 91 | E33: 230 | F33: 39.56521739
A34: % of practices enabled for EPS | B34: Q51 | C34: South Yorkshire And Bassetlaw Area | D34: 88 | E34: 214 | F34: 41.12149533
A35: % of practices enabled for EPS | B35: Q52 | C35: West Yorkshire Area | D35: 140 | E35: 329 | F35: 42.55319149
A36: % of practices enabled for EPS | B36: Q53 | C36: Arden, Herefordshire And Worcestershire Area | D36: 123 | E36: 231 | F36: 53.24675325
A37: % of practices enabled for EPS | B37: Q54 | C37: Birmingham And The Black Country Area | D37: 171 | E37: 452 | F37: 37.83185841
A38: % of practices enabled for EPS | B38: Q55 | C38: Derbyshire And Nottinghamshire Area | D38: 117 | E38: 268 | F38: 43.65671642
A39: % of practices enabled for EPS | B39: Q56 | C39: East Anglia Area | D39: 39 | E39: 286 | F39: 13.63636364
A40: % of practices enabled for EPS | B40: Q57 | C40: Essex Area | D40: 85 | E40: 269 | F40: 31.59851301
A41: % of practices enabled for EPS | B41: Q58 | C41: Hertfordshire And The South Midlands Area | D41: 127 | E41: 317 | F41: 40.06309148
A42: % of practices enabled for EPS | B42: Q59 | C42: Leicestershire And Lincolnshire Area | D42: 107 | E42: 246 | F42: 43.49593496
A43: % of practices enabled for EPS | B43: Q60 | C43: Shropshire And Staffordshire Area | D43: 26 | E43: 242 | F43: 10.74380165
A44: % of practices enabled for EPS | B44: Q64 | C44: Bath, Gloucestershire, Swindon And Wiltshire Area | D44: 108 | E44: 193 | F44: 55.95854922
A45: % of practices enabled for EPS | B45: Q65 | C45: Bristol, North Somerset, Somerset And South Gloucestershire Area | D45: 41 | E45: 182 | F45: 22.52747253
A46: % of practices enabled for EPS | B46: Q66 | C46: Devon, Cornwall And Isles Of Scilly Area | D46: 115 | E46: 226 | F46: 50.88495575
A47: % of practices enabled for EPS | B47: Q67 | C47: Kent And Medway Area | D47: 132 | E47: 257 | F47: 51.3618677
A48: % of practices enabled for EPS | B48: Q68 | C48: Surrey And Sussex Area | D48: 30 | E48: 332 | F48: 9.036144578
A49: % of practices enabled for EPS | B49: Q69 | C49: Thames Valley Area | D49: 136 | E49: 239 | F49: 56.90376569
A50: % of practices enabled for EPS | B50: Q70 | C50: Wessex Area | D50: 126 | E50: 316 | F50: 39.87341772
A51: % of practices enabled for EPS | B51: Q71 | C51: London Area | D51: 1084 | E51: 1423 | F51: 76.17709065
A52: % EPS items | B52: Q44 | C52: Cheshire, Warrington And Wirral Area | D52: 2457223 | E52: 6783716 | F52: 36.22237429
A53: % EPS items | B53: Q45 | C53: Durham, Darlington And Tees Area | D53: 1649892 | E53: 7914003 | F53: 20.84775555
A54: % EPS items | B54: Q46 | C54: Greater Manchester Area | D54: 2426342 | E54: 15774802 | F54: 15.38112491
A55: % EPS items | B55: Q47 | C55: Lancashire Area | D55: 444246 | E55: 8870969 | F55: 5.00786329
A56: % EPS items | B56: Q48 | C56: Merseyside Area | D56: 1599021 | E56: 7628176 | F56: 20.96203601
A57: % EPS items | B57: Q49 | C57: Cumbria, Northumberland, Tyne And Wear Area | D57: 1607718 | E57: 12854231 | F57: 12.50730596
A58: % EPS items | B58: Q50 | C58: North Yorkshire And Humber Area | D58: 1356775 | E58: 9629609 | F58: 14.08961672
A59: % EPS items | B59: Q51 | C59: South Yorkshire And Bassetlaw Area | D59: 1085900 | E59: 9232849 | F59: 11.76126676
A60: % EPS items | B60: Q52 | C60: West Yorkshire Area | D60: 1683393 | E60: 12718896 | F60: 13.23537043
A61: % EPS items | B61: Q53 | C61: Arden, Herefordshire And Worcestershire Area | D61: 1423638 | E61: 8409610 | F61: 16.92870418
A62: % EPS items | B62: Q54 | C62: Birmingham And The Black Country Area | D62: 1329543 | E62: 12434643 | F62: 10.69224907
... 77 more rows

Sheet RawData (AHSN) (hidden)
A1: Metric Name | B1: Code | C1: Name | D1: Numerator | E1: Denominator | F1: Identifier
A2: DDD Osteoporosis drugs per 100,000 resident population | B2: AHSN1 | C2: Eastern AHSN | D2: 25337121 | E2: 4424298 | F2: 572681.16
A3: DDD Osteoporosis drugs per 100,000 resident population | B3: AHSN2 | C3: East Midlands AHSN | D3: 24372470 | E3: 4436135 | F3: 549407.76
A4: DDD Osteoporosis drugs per 100,000 resident population | B4: AHSN3 | C4: Greater manchester AHSN | D4: 15501109 | E4: 2943521 | F4: 526617.92
A5: DDD Osteoporosis drugs per 100,000 resident population | B5: AHSN4 | C5: Imperial College AHSN | D5: 9712627 | E5: 2013463 | F5: 482384.18
A6: DDD Osteoporosis drugs per 100,000 resident population | B6: AHSN5 | C6: Kent Surrey & Sussex AHSN | D6: 27849808 | E6: 4496626 | F6: 619349
A7: DDD Osteoporosis drugs per 100,000 resident population | B7: AHSN6 | C7: North East & North Cumbria AHSN | D7: 24490009 | E7: 3268257 | F7: 749329.35
A8: DDD Osteoporosis drugs per 100,000 resident population | B8: AHSN7 | C8: North West Coast AHSN | D8: 25705252 | E8: 4198887 | F8: 612192.04
A9: DDD Osteoporosis drugs per 100,000 resident population | B9: AHSN8 | C9: Oxford AHSN | D9: 15458826 | E9: 3374821 | F9: 458063.58
A10: DDD Osteoporosis drugs per 100,000 resident population | B10: AHSN9 | C10: South London AHSN | D10: 14962787 | E10: 3158043 | F10: 473799.34
A11: DDD Osteoporosis drugs per 100,000 resident population | B11: AHSN10 | C11: South West AHSN | D11: 15894876 | E11: 2230976 | F11: 712462.89
A12: DDD Osteoporosis drugs per 100,000 resident population | B12: AHSN11 | C12: UCL Partners AHSN | D12: 26485035 | E12: 5465515 | F12: 484584.44
A13: DDD Osteoporosis drugs per 100,000 resident population | B13: AHSN12 | C13: Wessex AHSN | D13: 17772303 | E13: 3202474 | F13: 554955.42
A14: DDD Osteoporosis drugs per 100,000 resident population | B14: AHSN13 | C14: West Midlands AHSN | D14: 30267446 | E14: 5674712 | F14: 533374.13
A15: DDD Osteoporosis drugs per 100,000 resident population | B15: AHSN14 | C15: West of England AHSN | D15: 15275467 | E15: 2397443 | F15: 637156.63
A16: DDD Osteoporosis drugs per 100,000 resident population | B16: AHSN15 | C16: Yorkshire & Humber AHSN | D16: 30513878 | E16: 5291658 | F16: 576641.16
A17: Summary Care Records Availability | B17: AHSN1 | C17: Eastern AHSN | D17: 501 | E17: 529 | F17: 94.706994
A18: Summary Care Records Availability | B18: AHSN2 | C18: East Midlands AHSN | D18: 581 | E18: 586 | F18: 99.146758
A19: Summary Care Records Availability | B19: AHSN3 | C19: Greater manchester AHSN | D19: 480 | E19: 516 | F19: 93.023256
A20: Summary Care Records Availability | B20: AHSN4 | C20: Imperial College AHSN | D20: 398 | E20: 402 | F20: 99.004975
A21: Summary Care Records Availability | B21: AHSN5 | C21: Kent Surrey & Sussex AHSN | D21: 564 | E21: 594 | F21: 94.949495
A22: Summary Care Records Availability | B22: AHSN6 | C22: North East & North Cumbria AHSN | D22: 481 | E22: 490 | F22: 98.163265
A23: Summary Care Records Availability | B23: AHSN7 | C23: North West Coast AHSN | D23: 676 | E23: 689 | F23: 98.113208
A24: Summary Care Records Availability | B24: AHSN8 | C24: Oxford AHSN | D24: 370 | E24: 389 | F24: 95.115681
A25: Summary Care Records Availability | B25: AHSN9 | C25: South London AHSN | D25: 448 | E25: 456 | F25: 98.245614
A26: Summary Care Records Availability | B26: AHSN10 | C26: South West AHSN | D26: 206 | E26: 303 | F26: 67.986799
A27: Summary Care Records Availability | B27: AHSN11 | C27: UCL Partners AHSN | D27: 838 | E27: 879 | F27: 95.335609
A28: Summary Care Records Availability | B28: AHSN12 | C28: Wessex AHSN | D28: 359 | E28: 372 | F28: 96.505376
A29: Summary Care Records Availability | B29: AHSN13 | C29: West Midlands AHSN | D29: 861 | E29: 919 | F29: 93.688792
A30: Summary Care Records Availability | B30: AHSN14 | C30: West of England AHSN | D30: 291 | E30: 298 | F30: 97.651007
A31: Summary Care Records Availability | B31: AHSN15 | C31: Yorkshire & Humber AHSN | D31: 743 | E31: 751 | F31: 98.934754
A32: Antibacterial items per STAR PU | B32: AHSN1 | C32: Eastern AHSN | D32: 843196 | E32: 2627668 | F32: 0.3208913759
A33: Antibacterial items per STAR PU | B33: AHSN2 | C33: East Midlands AHSN | D33: 809617 | E33: 2603697 | F33: 0.3109490083
A34: Antibacterial items per STAR PU | B34: AHSN3 | C34: Greater manchester AHSN | D34: 607679 | E34: 1709104 | F34: 0.3555541383
A35: Antibacterial items per STAR PU | B35: AHSN4 | C35: Imperial College AHSN | D35: 315388 | E35: 1176292 | F35: 0.2681205007
A36: Antibacterial items per STAR PU | B36: AHSN5 | C36: Kent Surrey & Sussex AHSN | D36: 826870 | E36: 2678455 | F36: 0.308711552
A37: Antibacterial items per STAR PU | B37: AHSN6 | C37: North East & North Cumbria AHSN | D37: 673455 | E37: 1918910 | F37: 0.3509570537
A38: Antibacterial items per STAR PU | B38: AHSN7 | C38: North West Coast AHSN | D38: 868230 | E38: 2485529 | F38: 0.349313969
A39: Antibacterial items per STAR PU | B39: AHSN8 | C39: Oxford AHSN | D39: 602320 | E39: 1971323 | F39: 0.3055409996
A40: Antibacterial items per STAR PU | B40: AHSN9 | C40: South London AHSN | D40: 513305 | E40: 1797665 | F40: 0.2855398531
A41: Antibacterial items per STAR PU | B41: AHSN10 | C41: South West AHSN | D41: 388197 | E41: 1366787 | F41: 0.2840215776
A42: Antibacterial items per STAR PU | B42: AHSN11 | C42: UCL Partners AHSN | D42: 949789 | E42: 3120710 | F42: 0.3043502921
A43: Antibacterial items per STAR PU | B43: AHSN12 | C43: Wessex AHSN | D43: 562850 | E43: 1901255 | F43: 0.296041299
A44: Antibacterial items per STAR PU | B44: AHSN13 | C44: West Midlands AHSN | D44: 1099211 | E44: 3333222 | F44: 0.3297743145
A45: Antibacterial items per STAR PU | B45: AHSN14 | C45: West of England AHSN | D45: 411809 | E45: 1413247 | F45: 0.2913920921
A46: Antibacterial items per STAR PU | B46: AHSN15 | C46: Yorkshire & Humber AHSN | D46: 1048821 | E46: 3094119 | F46: 0.3389724183
A47: Co-amoxiclav, Cephalosporins and Quinolones % items | B47: AHSN1 | C47: Eastern AHSN | D47: 97522 | E47: 838882 | F47: 11.62523454
A48: Co-amoxiclav, Cephalosporins and Quinolones % items | B48: AHSN2 | C48: East Midlands AHSN | D48: 86976 | E48: 806026 | F48: 10.79071891
A49: Co-amoxiclav, Cephalosporins and Quinolones % items | B49: AHSN3 | C49: Greater manchester AHSN | D49: 53660 | E49: 604498 | F49: 8.87678702
A50: Co-amoxiclav, Cephalosporins and Quinolones % items | B50: AHSN4 | C50: Imperial College AHSN | D50: 35099 | E50: 312241 | F50: 11.24099654
A51: Co-amoxiclav, Cephalosporins and Quinolones % items | B51: AHSN5 | C51: Kent Surrey & Sussex AHSN | D51: 87292 | E51: 822130 | F51: 10.61778551
A52: Co-amoxiclav, Cephalosporins and Quinolones % items | B52: AHSN6 | C52: North East & North Cumbria AHSN | D52: 55996 | E52: 668505 | F52: 8.376302346
A53: Co-amoxiclav, Cephalosporins and Quinolones % items | B53: AHSN7 | C53: North West Coast AHSN | D53: 84745 | E53: 862055 | F53: 9.830579255
A54: Co-amoxiclav, Cephalosporins and Quinolones % items | B54: AHSN8 | C54: Oxford AHSN | D54: 60533 | E54: 599081 | F54: 10.10430977
A55: Co-amoxiclav, Cephalosporins and Quinolones % items | B55: AHSN9 | C55: South London AHSN | D55: 59956 | E55: 510932 | F55: 11.73463396
A56: Co-amoxiclav, Cephalosporins and Quinolones % items | B56: AHSN10 | C56: South West AHSN | D56: 39980 | E56: 385207 | F56: 10.37883528
A57: Co-amoxiclav, Cephalosporins and Quinolones % items | B57: AHSN11 | C57: UCL Partners AHSN | D57: 108840 | E57: 943585 | F57: 11.5347319
A58: Co-amoxiclav, Cephalosporins and Quinolones % items | B58: AHSN12 | C58: Wessex AHSN | D58: 61216 | E58: 559422 | F58: 10.94272302
A59: Co-amoxiclav, Cephalosporins and Quinolones % items | B59: AHSN13 | C59: West Midlands AHSN | D59: 96617 | E59: 1093197 | F59: 8.83802279
A60: Co-amoxiclav, Cephalosporins and Quinolones % items | B60: AHSN14 | C60: West of England AHSN | D60: 54741 | E60: 409064 | F60: 13.38201357
A61: Co-amoxiclav, Cephalosporins and Quinolones % items | B61: AHSN15 | C61: Yorkshire & Humber AHSN | D61: 80104 | E61: 1043769 | F61: 7.674495027
A62: % EPS items | B62: AHSN1 | C62: Eastern AHSN | D62: 2098245 | E62: 23892507 | F62: 8.782021075
... 77 more rows

Sheet RawData (CLS) (hidden)
A1: Metric Name | B1: Code | C1: Name | D1: Numerator | E1: Denominator | F1: Identifier
A2: % of practices submitting EPS | B2: CLS1 | C2: Cube | D2: 805 | E2: 1991 | F2: 40.43194375
A3: % of practices submitting EPS | B3: CLS2 | C3: Cylinder | D3: 507 | E3: 972 | F3: 52.16049383
A4: % of practices submitting EPS | B4: CLS3 | C4: Sphere | D4: 248 | E4: 726 | F4: 34.15977961
A5: % of practices submitting EPS | B5: CLS4 | C5: Pyramid | D5: 418 | E5: 1127 | F5: 37.08961846
A6: % of practices submitting EPS | B6: CLS5 | C6: Cone | D6: 551 | E6: 1391 | F6: 39.61179008
A7: % of practices submitting EPS | B7: CLS6 | C7: Prism | D7: 409 | E7: 881 | F7: 46.42451759
A8: % of practices submitting EPS | B8: CLS7 | C8: Torus | D8: 460 | E8: 527 | F8: 87.28652751
A9: % of practices submitting EPS | B9: CLS8 | C9: Tetrahedron | D9: 119 | E9: 241 | F9: 49.37759336
A10: % of practices enabled for EPS | B10: CLS1 | C10: Cube | D10: 816 | E10: 1991 | F10: 40.98442993
A11: % of practices enabled for EPS | B11: CLS2 | C11: Cylinder | D11: 511 | E11: 972 | F11: 52.57201646
A12: % of practices enabled for EPS | B12: CLS3 | C12: Sphere | D12: 251 | E12: 726 | F12: 34.57300275
A13: % of practices enabled for EPS | B13: CLS4 | C13: Pyramid | D13: 420 | E13: 1127 | F13: 37.26708075
A14: % of practices enabled for EPS | B14: CLS5 | C14: Cone | D14: 559 | E14: 1391 | F14: 40.18691589
A15: % of practices enabled for EPS | B15: CLS6 | C15: Prism | D15: 418 | E15: 881 | F15: 47.446084
A16: % of practices enabled for EPS | B16: CLS7 | C16: Torus | D16: 470 | E16: 527 | F16: 89.18406072
A17: % of practices enabled for EPS | B17: CLS8 | C17: Tetrahedron | D17: 123 | E17: 241 | F17: 51.0373444
A18: % EPS items | B18: CLS1 | C18: Cube | D18: 10938548 | E18: 72147263 | F18: 15.16141784
A19: % EPS items | B19: CLS2 | C19: Cylinder | D19: 5021142 | E19: 31285335 | F19: 16.0495069
A20: % EPS items | B20: CLS3 | C20: Sphere | D20: 2914581 | E20: 25158911 | F20: 11.58468663
A21: % EPS items | B21: CLS4 | C21: Pyramid | D21: 6735962 | E21: 51015965 | F21: 13.20363537
A22: % EPS items | B22: CLS5 | C22: Cone | D22: 7810312 | E22: 56666507 | F22: 13.78294236
A23: % EPS items | B23: CLS6 | C23: Prism | D23: 3541740 | E23: 22909494 | F23: 15.45970417
A24: % EPS items | B24: CLS7 | C24: Torus | D24: 3224408 | E24: 11807355 | F24: 27.30847002
A25: % EPS items | B25: CLS8 | C25: Tetrahedron | D25: 702429 | E25: 4365888 | F25: 16.08902931
A26: % of pharmacies conducting MUR | B26: CLS1 | C26: Cube | D26: 2422.583333 | E26: 2978.25 | F26: 81.34251098
A27: % of pharmacies conducting MUR | B27: CLS2 | C27: Cylinder | D27: 1153.666667 | E27: 1413.75 | F27: 81.60330091
A28: % of pharmacies conducting MUR | B28: CLS3 | C28: Sphere | D28: 931 | E28: 1120.25 | F28: 83.10644945
A29: % of pharmacies conducting MUR | B29: CLS4 | C29: Pyramid | D29: 1488.5 | E29: 1774.083333 | F29: 83.90248485
A30: % of pharmacies conducting MUR | B30: CLS5 | C30: Cone | D30: 1778 | E30: 2114.75 | F30: 84.07613193
A31: % of pharmacies conducting MUR | B31: CLS6 | C31: Prism | D31: 941.6666667 | E31: 1197.333333 | F31: 78.64699332
A32: % of pharmacies conducting MUR | B32: CLS7 | C32: Torus | D32: 558.5 | E32: 675.5 | F32: 82.67949667
A33: % of pharmacies conducting MUR | B33: CLS8 | C33: Tetrahedron | D33: 242 | E33: 346.8333333 | F33: 69.77414704
A34: % of Pharmacies conducting NMS | B34: CLS1 | C34: Cube | D34: 1645.5 | E34: 2978.25 | F34: 55.25056661
A35: % of Pharmacies conducting NMS | B35: CLS2 | C35: Cylinder | D35: 799.75 | E35: 1413.75 | F35: 56.5694076
A36: % of Pharmacies conducting NMS | B36: CLS3 | C36: Sphere | D36: 644.6666667 | E36: 1120.25 | F36: 57.54667857
A37: % of Pharmacies conducting NMS | B37: CLS4 | C37: Pyramid | D37: 1105.416667 | E37: 1774.083333 | F37: 62.30917375
A38: % of Pharmacies conducting NMS | B38: CLS5 | C38: Cone | D38: 1313.833333 | E38: 2114.75 | F38: 62.12712299
A39: % of Pharmacies conducting NMS | B39: CLS6 | C39: Prism | D39: 638.3333333 | E39: 1197.333333 | F39: 53.31291759
A40: % of Pharmacies conducting NMS | B40: CLS7 | C40: Torus | D40: 349.4166667 | E40: 675.5 | F40: 51.72711572
A41: % of Pharmacies conducting NMS | B41: CLS8 | C41: Tetrahedron | D41: 154.25 | E41: 346.8333333 | F41: 44.47381067
A42: Antibacterial items per STAR PU | B42: CLS1 | C42: Cube | D42: 2517093 | E42: 7086259 | F42: 0.3552075926
A43: Antibacterial items per STAR PU | B43: CLS2 | C43: Cylinder | D43: 1339441 | E43: 4327707 | F43: 0.309503624
A44: Antibacterial items per STAR PU | B44: CLS3 | C44: Sphere | D44: 907003 | E44: 2865217 | F44: 0.3165564772
A45: Antibacterial items per STAR PU | B45: CLS4 | C45: Pyramid | D45: 1676411 | E45: 5346006 | F45: 0.3135819526
A46: Antibacterial items per STAR PU | B46: CLS5 | C46: Cone | D46: 1972652 | E46: 6624548 | F46: 0.2977791089
A47: Antibacterial items per STAR PU | B47: CLS6 | C47: Prism | D47: 933963 | E47: 2830801 | F47: 0.3299288788
A48: Antibacterial items per STAR PU | B48: CLS7 | C48: Torus | D48: 484291 | E48: 1768301 | F48: 0.2738736222
A49: Antibacterial items per STAR PU | B49: CLS8 | C49: Tetrahedron | D49: 181574 | E49: 767522 | F49: 0.2365717204
A50: Co-amoxiclav, Cephalosporins and Quinolones % items | B50: CLS1 | C50: Cube | D50: 211679 | E50: 2503207 | F50: 8.456312243
A51: Co-amoxiclav, Cephalosporins and Quinolones % items | B51: CLS2 | C51: Cylinder | D51: 144001 | E51: 1332470 | F51: 10.80707258
A52: Co-amoxiclav, Cephalosporins and Quinolones % items | B52: CLS3 | C52: Sphere | D52: 95564 | E52: 901563 | F52: 10.59981388
A53: Co-amoxiclav, Cephalosporins and Quinolones % items | B53: CLS4 | C53: Pyramid | D53: 173322 | E53: 1666134 | F53: 10.40264469
A54: Co-amoxiclav, Cephalosporins and Quinolones % items | B54: CLS5 | C54: Cone | D54: 210311 | E54: 1960427 | F54: 10.72781593
A55: Co-amoxiclav, Cephalosporins and Quinolones % items | B55: CLS6 | C55: Prism | D55: 94180 | E55: 927398 | F55: 10.15529471
A56: Co-amoxiclav, Cephalosporins and Quinolones % items | B56: CLS7 | C56: Torus | D56: 54047 | E56: 481364 | F56: 11.22788576
A57: Co-amoxiclav, Cephalosporins and Quinolones % items | B57: CLS8 | C57: Tetrahedron | D57: 21864 | E57: 180358 | F57: 12.12255625
A58: NSAIDS Ibuprofen & Naproxen % items | B58: CLS1 | C58: Cube | D58: 778888 | E58: 989565 | F58: 78.71014031
A59: NSAIDS Ibuprofen & Naproxen % items | B59: CLS2 | C59: Cylinder | D59: 320924 | E59: 420349 | F59: 76.34703544
A60: NSAIDS Ibuprofen & Naproxen % items | B60: CLS3 | C60: Sphere | D60: 251785 | E60: 321963 | F60: 78.20308545
A61: NSAIDS Ibuprofen & Naproxen % items | B61: CLS4 | C61: Pyramid | D61: 496731 | E61: 666060 | F61: 74.57751554
A62: NSAIDS Ibuprofen & Naproxen % items | B62: CLS5 | C62: Cone | D62: 560009 | E62: 761458 | F62: 73.54430579
... 77 more rows

Sheet RawData (Trust) (hidden)
A1: Metric Name | B1: Code | C1: Name | D1: Numerator | E1: Denominator | F1: Identifier
A2: Denosumab (60mg/ml) mgs per 100,000 FCE days | B2: R1A | C2: Worcestershire Health And Care NHS Trust | D2: 0 | E2: 0 | F2: 0
A3: Denosumab (60mg/ml) mgs per 100,000 FCE days | B3: R1D | C3: Shropshire Community Health NHS Trust | D3: 0 | E3: 0 | F3: 0
A4: Denosumab (60mg/ml) mgs per 100,000 FCE days | B4: R1E | C4: Staffordshire And Stoke On Trent Partnership NHS Trust | D4: 0 | E4: 0 | F4: 0
A5: Denosumab (60mg/ml) mgs per 100,000 FCE days | B5: R1G | C5: Torbay And Southern Devon Health And Care NHS Trust | D5: 0 | E5: 0 | F5: 0
A6: Denosumab (60mg/ml) mgs per 100,000 FCE days | B6: R1J | C6: Gloucestershire Care Services NHS Trust | D6: 0 | E6: 0 | F6: 0
A7: Denosumab (60mg/ml) mgs per 100,000 FCE days | B7: RDR | C7: Sussex Community NHS Trust | D7: 0 | E7: 0 | F7: 0
A8: Denosumab (60mg/ml) mgs per 100,000 FCE days | B8: RY1 | C8: Liverpool Community Health NHS Trust | D8: 0 | E8: 0 | F8: 0
A9: Denosumab (60mg/ml) mgs per 100,000 FCE days | B9: RY2 | C9: Bridgewater Community Healthcare NHS Trust | D9: 0 | E9: 0 | F9: 0
A10: Denosumab (60mg/ml) mgs per 100,000 FCE days | B10: RY3 | C10: Norfolk Community Health And Care NHS Trust | D10: 0 | E10: 0 | F10: 0
A11: Denosumab (60mg/ml) mgs per 100,000 FCE days | B11: RY4 | C11: Hertfordshire Community NHS Trust | D11: 0 | E11: 0 | F11: 0
A12: Denosumab (60mg/ml) mgs per 100,000 FCE days | B12: RY5 | C12: Lincolnshire Community Health Services NHS Trust | D12: 0 | E12: 0 | F12: 0
A13: Denosumab (60mg/ml) mgs per 100,000 FCE days | B13: RY6 | C13: Leeds Community Healthcare NHS Trust | D13: 0 | E13: 0 | F13: 0
A14: Denosumab (60mg/ml) mgs per 100,000 FCE days | B14: RY7 | C14: Wirral Community NHS Trust | D14: 0 | E14: 0 | F14: 0
A15: Denosumab (60mg/ml) mgs per 100,000 FCE days | B15: RY8 | C15: Derbyshire Community Health Services NHS Trust | D15: 0 | E15: 0 | F15: 0
A16: Denosumab (60mg/ml) mgs per 100,000 FCE days | B16: RY9 | C16: Hounslow And Richmond Community Healthcare NHS Trust | D16: 0 | E16: 0 | F16: 0
A17: Denosumab (60mg/ml) mgs per 100,000 FCE days | B17: RYV | C17: Cambridgeshire Community Services NHS Trust | D17: 0 | E17: 0 | F17: 0
A18: Denosumab (60mg/ml) mgs per 100,000 FCE days | B18: RYW | C18: Birmingham Community Healthcare NHS Trust | D18: 0 | E18: 0 | F18: 0
A19: Denosumab (60mg/ml) mgs per 100,000 FCE days | B19: RYX | C19: Central London Community Healthcare NHS Trust | D19: 0 | E19: 0 | F19: 0
A20: Denosumab (60mg/ml) mgs per 100,000 FCE days | B20: RYY | C20: Kent Community Health NHS Trust | D20: 0 | E20: 0 | F20: 0
A21: Denosumab (60mg/ml) mgs per 100,000 FCE days | B21: R1F | C21: Isle Of Wight NHS Trust | D21: 4140 | E21: 115218 | F21: 3593.2
A22: Denosumab (60mg/ml) mgs per 100,000 FCE days | B22: RA3 | C22: Weston Area Health NHS Trust | D22: 60 | E22: 27349 | F22: 219.4
A23: Denosumab (60mg/ml) mgs per 100,000 FCE days | B23: RA4 | C23: Yeovil District Hospital NHS Foundation Trust | D23: 5340 | E23: 124753 | F23: 4280.5
A24: Denosumab (60mg/ml) mgs per 100,000 FCE days | B24: RBD | C24: Dorset County Hospital NHS Foundation Trust | D24: 1800 | E24: 140166 | F24: 1284.2
A25: Denosumab (60mg/ml) mgs per 100,000 FCE days | B25: RBT | C25: Mid Cheshire Hospitals NHS Foundation Trust | D25: 1920 | E25: 222881 | F25: 861.4
A26: Denosumab (60mg/ml) mgs per 100,000 FCE days | B26: RBZ | C26: Northern Devon Healthcare NHS Trust | D26: 6480 | E26: 197751 | F26: 3276.8
A27: Denosumab (60mg/ml) mgs per 100,000 FCE days | B27: RC1 | C27: Bedford Hospital NHS Trust | D27: 1080 | E27: 114267 | F27: 945.2
A28: Denosumab (60mg/ml) mgs per 100,000 FCE days | B28: RC3 | C28: Ealing Hospital NHS Trust | D28: 1500 | E28: 133641 | F28: 1122.4
A29: Denosumab (60mg/ml) mgs per 100,000 FCE days | B29: RCD | C29: Harrogate And District NHS Foundation Trust | D29: 6900 | E29: 143675 | F29: 4802.5
A30: Denosumab (60mg/ml) mgs per 100,000 FCE days | B30: RCF | C30: Airedale NHS Foundation Trust | D30: 1440 | E30: 74120 | F30: 1942.8
A31: Denosumab (60mg/ml) mgs per 100,000 FCE days | B31: RCX | C31: The Queen Elizabeth Hospital King's Lynn NHS Trust | D31: 420 | E31: 96890 | F31: 433.5
A32: Denosumab (60mg/ml) mgs per 100,000 FCE days | B32: RD8 | C32: Milton Keynes Hospital NHS Foundation Trust | D32: 420 | E32: 142813 | F32: 294.1
A33: Denosumab (60mg/ml) mgs per 100,000 FCE days | B33: RE9 | C33: South Tyneside NHS Foundation Trust | D33: 2880 | E33: 143888 | F33: 2001.6
A34: Denosumab (60mg/ml) mgs per 100,000 FCE days | B34: RFF | C34: Barnsley Hospital NHS Foundation Trust | D34: 3480 | E34: 181845 | F34: 1913.7
A35: Denosumab (60mg/ml) mgs per 100,000 FCE days | B35: RFW | C35: West Middlesex University Hospital NHS Trust | D35: 1800 | E35: 157557 | F35: 1142.4
A36: Denosumab (60mg/ml) mgs per 100,000 FCE days | B36: RGR | C36: West Suffolk NHS Foundation Trust | D36: 2760 | E36: 180271 | F36: 1531
A37: Denosumab (60mg/ml) mgs per 100,000 FCE days | B37: RJC | C37: South Warwickshire General Hospitals NHS Trust | D37: 13320 | E37: 209124 | F37: 6369.4
A38: Denosumab (60mg/ml) mgs per 100,000 FCE days | B38: RJD | C38: Mid Staffordshire NHS Foundation Trust | D38: 44400 | E38: 151490 | F38: 29308.9
A39: Denosumab (60mg/ml) mgs per 100,000 FCE days | B39: RJF | C39: Burton Hospitals NHS Foundation Trust | D39: 38520 | E39: 193478 | F39: 19909.2
A40: Denosumab (60mg/ml) mgs per 100,000 FCE days | B40: RJN | C40: East Cheshire NHS Trust | D40: 840 | E40: 128567 | F40: 653.4
A41: Denosumab (60mg/ml) mgs per 100,000 FCE days | B41: RLQ | C41: Wye Valley NHS Trust | D41: 1560 | E41: 152411 | F41: 1023.5
A42: Denosumab (60mg/ml) mgs per 100,000 FCE days | B42: RLT | C42: George Eliot Hospital NHS Trust | D42: 1140 | E42: 125066 | F42: 911.5
A43: Denosumab (60mg/ml) mgs per 100,000 FCE days | B43: RMP | C43: Tameside Hospital NHS Foundation Trust | D43: 1680 | E43: 182234 | F43: 921.9
A44: Denosumab (60mg/ml) mgs per 100,000 FCE days | B44: RN7 | C44: Dartford And Gravesham NHS Trust | D44: 19140 | E44: 222220 | F44: 8613.1
A45: Denosumab (60mg/ml) mgs per 100,000 FCE days | B45: RNQ | C45: Kettering General Hospital NHS Foundation Trust | D45: 3600 | E45: 234492 | F45: 1535.2
A46: Denosumab (60mg/ml) mgs per 100,000 FCE days | B46: RNZ | C46: Salisbury NHS Foundation Trust | D46: 4980 | E46: 183325 | F46: 2716.5
A47: Denosumab (60mg/ml) mgs per 100,000 FCE days | B47: RQQ | C47: Hinchingbrooke Health Care NHS Trust | D47: 360 | E47: 85341 | F47: 421.8
A48: Denosumab (60mg/ml) mgs per 100,000 FCE days | B48: RQX | C48: Homerton University Hospital NHS Foundation Trust | D48: 1080 | E48: 178428 | F48: 605.3
A49: Denosumab (60mg/ml) mgs per 100,000 FCE days | B49: RA2 | C49: Royal Surrey County Hospital NHS Foundation Trust | D49: 3060 | E49: 167870 | F49: 1822.8
A50: Denosumab (60mg/ml) mgs per 100,000 FCE days | B50: RA9 | C50: South Devon Healthcare NHS Foundation Trust | D50: 30000 | E50: 174308 | F50: 17210.9
A51: Denosumab (60mg/ml) mgs per 100,000 FCE days | B51: RAJ | C51: Southend University Hospital NHS Foundation Trust | D51: 4200 | E51: 251384 | F51: 1670.8
A52: Denosumab (60mg/ml) mgs per 100,000 FCE days | B52: RAP | C52: North Middlesex University Hospital NHS Trust | D52: 780 | E52: 142868 | F52: 546
A53: Denosumab (60mg/ml) mgs per 100,000 FCE days | B53: RAS | C53: The Hillingdon Hospitals NHS Foundation Trust | D53: 6660 | E53: 174066 | F53: 3826.1
A54: Denosumab (60mg/ml) mgs per 100,000 FCE days | B54: RAX | C54: Kingston Hospital NHS Foundation Trust | D54: 1980 | E54: 191504 | F54: 1033.9
A55: Denosumab (60mg/ml) mgs per 100,000 FCE days | B55: RBA | C55: Taunton And Somerset NHS Foundation Trust | D55: 240 | E55: 117415 | F55: 204.4
A56: Denosumab (60mg/ml) mgs per 100,000 FCE days | B56: RBK | C56: Walsall Healthcare NHS Trust | D56: 18600 | E56: 233048 | F56: 7981.2
A57: Denosumab (60mg/ml) mgs per 100,000 FCE days | B57: RBN | C57: St Helens And Knowsley Hospitals NHS Trust | D57: 9180 | E57: 305321 | F57: 3006.7
A58: Denosumab (60mg/ml) mgs per 100,000 FCE days | B58: RC9 | C58: Luton And Dunstable University Hospital NHS Foundation Trust | D58: 3540 | E58: 264330 | F58: 1339.2
A59: Denosumab (60mg/ml) mgs per 100,000 FCE days | B59: RD1 | C59: Royal United Hospital Bath NHS Trust | D59: 11520 | E59: 249825 | F59: 4611.2
A60: Denosumab (60mg/ml) mgs per 100,000 FCE days | B60: RD3 | C60: Poole Hospital NHS Foundation Trust | D60: 360 | E60: 161534 | F60: 222.9
A61: Denosumab (60mg/ml) mgs per 100,000 FCE days | B61: RD7 | C61: Heatherwood And Wexham Park Hospitals NHS Foundation Trust | D61: 1500 | E61: 259816 | F61: 577.3
A62: Denosumab (60mg/ml) mgs per 100,000 FCE days | B62: RDD | C62: Basildon And Thurrock University Hospitals NHS Foundation Trust | D62: 13320 | E62: 287570 | F62: 4631.9
... 77 more rows

Sheet RawData (England) (hidden)
A1: Metric Name | B1: Code | C1: Name | D1: Numerator | E1: Denominator | F1: Identifier
A2: % EPS items | B2: ENG | C2: England | D2: 40889122 | E2: 275356718 | F2: 14.8495095
A3: % of EPS Repeat Dispensing | B3: ENG | C3: England | D3: 12554063 | E3: 107484296 | F3: 11.67990438
A4: % of pharmacies conducting MUR | B4: ENG | C4: England | D4: 9515.916667 | E4: 11620.75 | F4: 81.88728496
A5: % of Pharmacies conducting NMS | B5: ENG | C5: England | D5: 6651.166667 | E5: 11620.75 | F5: 57.23526164
A6: % of practices enabled for EPS | B6: ENG | C6: England | D6: 3568 | E6: 7856 | F6: 45.41751527
A7: % of practices submitting EPS | B7: ENG | C7: England | D7: 3517 | E7: 7856 | F7: 44.76832994
A8: % of Repeat Dispensing | B8: ENG | C8: England | D8: 74797033 | E8: 1047044514 | F8: 7.143634487
A9: Atrial fibrillation (AF004) % achieving upper threshold or above | B9: ENG | C9: England | D9: 3811 | E9: 7864 | F9: 48.46134283
A10: Atrial fibrillation (AF004) % underlying achievement | B10: ENG | C10: England | D10: 363991 | E10: 526686 | F10: 69.10967825
A11: Antibacterial items per STAR PU | B11: ENG | C11: England | D11: 10012428 | E11: 31616361 | F11: 0.3166850227
A12: Antidepressants (selected): ADQ/STAR PU (ADQ based) | B12: ENG | C12: England | D12: 400916305.5 | E12: 1228030841 | F12: 0.3264708769
A13: Antidepressants: First choice % items | B13: ENG | C13: England | D13: 7882491 | E13: 11396529 | F13: 69.16571704
A14: Asthma (AST003) % achieving upper threshold or above | B14: ENG | C14: England | D14: 4974 | E14: 7914 | F14: 62.85064443
A15: Asthma (AST003) % underlying achievement | B15: ENG | C15: England | D15: 2343319 | E15: 3338782 | F15: 70.18484585
A16: Chronic Obstructive Pulmonary Disease (COPD003) % achieving upper threshold or above | B16: ENG | C16: England | D16: 1622 | E16: 7900 | F16: 20.53164557
A17: Chronic Obstructive Pulmonary Disease (COPD003) % underlying achievement | B17: ENG | C17: England | D17: 807380 | E17: 1004077 | F17: 80.41016775
A18: Co-amoxiclav, Cephalosporins and Quinolones % items | B18: ENG | C18: England | D18: 1004968 | E18: 9952921 | F18: 10.09721669
A19: Depression (DEP002) % achieving upper threshold or above | B19: ENG | C19: England | D19: 931 | E19: 7717 | F19: 12.06427368
A20: Depression (DEP002) % underlying achievement | B20: ENG | C20: England | D20: 276895 | E20: 474446 | F20: 58.36175244
A21: Diabetes Mellitus (DM009) % achieving upper threshold or above | B21: ENG | C21: England | D21: 67 | E21: 7915 | F21: 0.8464939987
A22: Diabetes Mellitus (DM009) % underlying achievement | B22: ENG | C22: England | D22: 2255255 | E22: 2812331 | F22: 80.19166307
A23: Heart failure (HF003) % achieving upper threshold or above | B23: ENG | C23: England | D23: 3203 | E23: 7740 | F23: 41.38242894
A24: Heart failure (HF003) % underlying achievement | B24: ENG | C24: England | D24: 92957 | E24: 107215 | F24: 86.70148766
A25: Heart failure (HF004) % achieving upper threshold or above | B25: ENG | C25: England | D25: 5960 | E25: 7636 | F25: 78.05133578
A26: Heart failure (HF004) % underlying achievement | B26: ENG | C26: England | D26: 68565 | E26: 92341 | F26: 74.25195742
A27: Mental Health (MH010) % achieving upper threshold or above | B27: ENG | C27: England | D27: 3436 | E27: 7144 | F27: 48.09630459
A28: Mental Health (MH010) % underlying achievement | B28: ENG | C28: England | D28: 40675 | E28: 50015 | F28: 81.32560232
A29: NSAIDS Ibuprofen & Naproxen % items | B29: ENG | C29: England | D29: 2863557 | E29: 3716648 | F29: 77.04676364
A30: Osteoporosis (OST003) % achieving upper threshold or above | B30: ENG | C30: England | D30: 5431 | E30: 7054 | F30: 76.99177771
A31: Osteoporosis (OST003) % underlying achievement | B31: ENG | C31: England | D31: 45965 | E31: 68221 | F31: 67.37661424
A32: Hypnotics: ADQ/STAR PU (ADQ based) | B32: ENG | C32: England | D32: 39760507 | E32: 145047024 | F32: 0.2741214945
A33: Safety Audit Software | B33: ENG | C33: England | D33: 1890 | E33: 7881 | F33: 23.98172821
A34: Atrial fibrillation: Access to audit tool | B34: ENG | C34: England | D34: 2891 | E34: 7877 | F34: 36.70179002
A35: Emergency Asthma Admissions | B35: ENG | C35: England | D35: 58187 | E35: 3340484 | F35: 1.741873333
A36: Emergency COPD Admissions | B36: ENG | C36: England | D36: 118417 | E36: 1004920 | F36: 11.78372408
A37: Emergency diabetes admissions | B37: ENG | C37: England | D37: 37769 | E37: 2814004 | F37: 1.34218004
A38: DDD Osteoporosis drugs per 100,000 resident population | B38: ENG | C38: England | D38: 305562848 | E38: 53865817 | F38: 567266.71
A39: Denosumab (60mg/ml) mgs per 100,000 FCE days | B39: ENG | C39: England | D39: 1079460 | E39: 42265649 | F39: 2553.9889
A40: Summary Care Records Utilisation | B40: ENG | C40: England | D40: 105343 | E40: 307632 | F40: 34.243187
A41: Summary Care Records Availability | B41: ENG | C41: England | D41: 7471 | E41: 7826 | F41: 95.463838
A42: NRLS - Reporting rate | B42: ENG | C42: England | D42: 82308 | E42: 27246533 | F42: 302.08614
A43: NRLS - % of harmful events | B43: ENG | C43: England | D43: 10121 | E43: 84163 | F43: 12.025474
A44: Medicines Reconciliation | B44: ENG | C44: England | D44: 33309 | E44: 45987 | F44: 72.431339
A45: Number of NMS per 1,000 dispensed items | B45: ENG | C45: England | D45: 749513 | E45: 970051.823 | F45: 0.7726525349
A46: Number of MUR per 1,000 dispensed items | B46: ENG | C46: England | D46: 3158684 | E46: 970051.823 | F46: 3.256201293
A47: Denosumab (60mg/ml) mgs per 100,000 resident population | B47: ENG | C47: England | D47: 5683379.996 | E47: 53865817 | F47: 10550.99563

Sheet RawData (OACs) (hidden)
A1: Metric Name | B1: Type | C1: Code | D1: Name | E1: Apixaban, Dabigatran etexilate & Rivaroxaban items | F1: Warfarin Sodium Items | G1: Total Items | H1: Apixaban, Dabigatran etexilate & Rivaroxaban items (%) | I1: Warfarin Sodium Items (%)
A2: Oral Anticoagulants % items | B2: CCG | C2: 02N | D2: NHS Airedale, Wharfedale and Craven CCG | E2: 1037 | F2: 12647 | G2: 13684 | H2: 0.07578193511 | I2: 0.9242180649
A3: Oral Anticoagulants % items | B3: CCG | C3: 09C | D3: NHS Ashford CCG | E3: 1777 | F3: 6203 | G3: 7980 | H3: 0.2226817043 | I3: 0.7773182957
A4: Oral Anticoagulants % items | B4: CCG | C4: 10Y | D4: NHS Aylesbury Vale CCG | E4: 1574 | F4: 11009 | G4: 12583 | H4: 0.1250894063 | I4: 0.8749105937
A5: Oral Anticoagulants % items | B5: CCG | C5: 07L | D5: NHS Barking and Dagenham CCG | E5: 825 | F5: 7473 | G5: 8298 | H5: 0.09942154736 | I5: 0.9005784526
A6: Oral Anticoagulants % items | B6: CCG | C6: 07M | D6: NHS Barnet CCG | E6: 797 | F6: 13493 | G6: 14290 | H6: 0.05577326802 | I6: 0.944226732
A7: Oral Anticoagulants % items | B7: CCG | C7: 02P | D7: NHS Barnsley CCG | E7: 1730 | F7: 19631 | G7: 21361 | H7: 0.08098871776 | I7: 0.9190112822
A8: Oral Anticoagulants % items | B8: CCG | C8: 99E | D8: NHS Basildon and Brentwood CCG | E8: 605 | F8: 15686 | G8: 16291 | H8: 0.03713706955 | I8: 0.9628629305
A9: Oral Anticoagulants % items | B9: CCG | C9: 02Q | D9: NHS Bassetlaw CCG | E9: 1257 | F9: 9037 | G9: 10294 | H9: 0.122109967 | I9: 0.877890033
A10: Oral Anticoagulants % items | B10: CCG | C10: 11E | D10: NHS Bath and North East Somerset CCG | E10: 2525 | F10: 12307 | G10: 14832 | H10: 0.1702400216 | I10: 0.8297599784
A11: Oral Anticoagulants % items | B11: CCG | C11: 06F | D11: NHS Bedfordshire CCG | E11: 1970 | F11: 28171 | G11: 30141 | H11: 0.06535947712 | I11: 0.9346405229
A12: Oral Anticoagulants % items | B12: CCG | C12: 07N | D12: NHS Bexley CCG | E12: 664 | F12: 9788 | G12: 10452 | H12: 0.06352851129 | I12: 0.9364714887
A13: Oral Anticoagulants % items | B13: CCG | C13: 13P | D13: NHS Birmingham CrossCity CCG | E13: 2703 | F13: 27780 | G13: 30483 | H13: 0.08867237477 | I13: 0.9113276252
A14: Oral Anticoagulants % items | B14: CCG | C14: 04X | D14: NHS Birmingham South and Central CCG | E14: 642 | F14: 7316 | G14: 7958 | H14: 0.08067353606 | I14: 0.9193264639
A15: Oral Anticoagulants % items | B15: CCG | C15: 00Q | D15: NHS Blackburn with Darwen CCG | E15: 366 | F15: 7401 | G15: 7767 | H15: 0.0471224411 | I15: 0.9528775589
A16: Oral Anticoagulants % items | B16: CCG | C16: 00R | D16: NHS Blackpool CCG | E16: 383 | F16: 13260 | G16: 13643 | H16: 0.02807300447 | I16: 0.9719269955
A17: Oral Anticoagulants % items | B17: CCG | C17: 00T | D17: NHS Bolton CCG | E17: 2877 | F17: 13849 | G17: 16726 | H17: 0.1720076528 | I17: 0.8279923472
A18: Oral Anticoagulants % items | B18: CCG | C18: 10G | D18: NHS Bracknell and Ascot CCG | E18: 350 | F18: 6855 | G18: 7205 | H18: 0.04857737682 | I18: 0.9514226232
A19: Oral Anticoagulants % items | B19: CCG | C19: 02W | D19: NHS Bradford City CCG | E19: 457 | F19: 1183 | G19: 1640 | H19: 0.2786585366 | I19: 0.7213414634
A20: Oral Anticoagulants % items | B20: CCG | C20: 02R | D20: NHS Bradford Districts CCG | E20: 3453 | F20: 10191 | G20: 13644 | H20: 0.2530782762 | I20: 0.7469217238
A21: Oral Anticoagulants % items | B21: CCG | C21: 07P | D21: NHS Brent CCG | E21: 602 | F21: 9131 | G21: 9733 | H21: 0.06185143327 | I21: 0.9381485667
A22: Oral Anticoagulants % items | B22: CCG | C22: 09D | D22: NHS Brighton and Hove CCG | E22: 1158 | F22: 10660 | G22: 11818 | H22: 0.09798612286 | I22: 0.9020138771
A23: Oral Anticoagulants % items | B23: CCG | C23: 11H | D23: NHS Bristol CCG | E23: 11679 | F23: 13725 | G23: 25404 | H23: 0.4597307511 | I23: 0.5402692489
A24: Oral Anticoagulants % items | B24: CCG | C24: 07Q | D24: NHS Bromley CCG | E24: 731 | F24: 16079 | G24: 16810 | H24: 0.04348602023 | I24: 0.9565139798
A25: Oral Anticoagulants % items | B25: CCG | C25: 00V | D25: NHS Bury CCG | E25: 927 | F25: 10108 | G25: 11035 | H25: 0.08400543725 | I25: 0.9159945628
A26: Oral Anticoagulants % items | B26: CCG | C26: 02T | D26: NHS Calderdale CCG | E26: 1608 | F26: 10663 | G26: 12271 | H26: 0.131040665 | I26: 0.868959335
A27: Oral Anticoagulants % items | B27: CCG | C27: 06H | D27: NHS Cambridgeshire and Peterborough CCG | E27: 2965 | F27: 57383 | G27: 60348 | H27: 0.04913170279 | I27: 0.9508682972
A28: Oral Anticoagulants % items | B28: CCG | C28: 07R | D28: NHS Camden CCG | E28: 347 | F28: 6651 | G28: 6998 | H28: 0.04958559588 | I28: 0.9504144041
A29: Oral Anticoagulants % items | B29: CCG | C29: 04Y | D29: NHS Cannock Chase CCG | E29: 794 | F29: 7048 | G29: 7842 | H29: 0.1012496812 | I29: 0.8987503188
A30: Oral Anticoagulants % items | B30: CCG | C30: 09E | D30: NHS Canterbury and Coastal CCG | E30: 2182 | F30: 3465 | G30: 5647 | H30: 0.3863998583 | I30: 0.6136001417
A31: Oral Anticoagulants % items | B31: CCG | C31: 99F | D31: NHS Castle Point and Rochford CCG | E31: 2555 | F31: 10315 | G31: 12870 | H31: 0.1985236985 | I31: 0.8014763015
A32: Oral Anticoagulants % items | B32: CCG | C32: 09A | D32: NHS Central London (Westminster) CCG | E32: 1596 | F32: 5367 | G32: 6963 | H32: 0.2292115467 | I32: 0.7707884533
A33: Oral Anticoagulants % items | B33: CCG | C33: 00W | D33: NHS Central Manchester CCG | E33: 538 | F33: 7078 | G33: 7616 | H33: 0.0706407563 | I33: 0.9293592437
A34: Oral Anticoagulants % items | B34: CCG | C34: 10H | D34: NHS Chiltern CCG | E34: 2830 | F34: 17631 | G34: 20461 | H34: 0.1383119105 | I34: 0.8616880895
A35: Oral Anticoagulants % items | B35: CCG | C35: 00X | D35: NHS Chorley and South Ribble CCG | E35: 729 | F35: 8035 | G35: 8764 | H35: 0.0831811958 | I35: 0.9168188042
A36: Oral Anticoagulants % items | B36: CCG | C36: 07T | D36: NHS City and Hackney CCG | E36: 452 | F36: 5719 | G36: 6171 | H36: 0.07324582726 | I36: 0.9267541727
A37: Oral Anticoagulants % items | B37: CCG | C37: 09G | D37: NHS Coastal West Sussex CCG | E37: 4396 | F37: 41907 | G37: 46303 | H37: 0.09493985271 | I37: 0.9050601473
A38: Oral Anticoagulants % items | B38: CCG | C38: 03V | D38: NHS Corby CCG | E38: 123 | F38: 3462 | G38: 3585 | H38: 0.03430962343 | I38: 0.9656903766
A39: Oral Anticoagulants % items | B39: CCG | C39: 05A | D39: NHS Coventry and Rugby CCG | E39: 1304 | F39: 23819 | G39: 25123 | H39: 0.05190462922 | I39: 0.9480953708
A40: Oral Anticoagulants % items | B40: CCG | C40: 09H | D40: NHS Crawley CCG | E40: 468 | F40: 7732 | G40: 8200 | H40: 0.05707317073 | I40: 0.9429268293
A41: Oral Anticoagulants % items | B41: CCG | C41: 07V | D41: NHS Croydon CCG | E41: 427 | F41: 12505 | G41: 12932 | H41: 0.03301886792 | I41: 0.9669811321
A42: Oral Anticoagulants % items | B42: CCG | C42: 01H | D42: NHS Cumbria CCG | E42: 3224 | F42: 39157 | G42: 42381 | H42: 0.07607182464 | I42: 0.9239281754
A43: Oral Anticoagulants % items | B43: CCG | C43: 00C | D43: NHS Darlington CCG | E43: 1543 | F43: 4125 | G43: 5668 | H43: 0.2722300635 | I43: 0.7277699365
A44: Oral Anticoagulants % items | B44: CCG | C44: 09J | D44: NHS Dartford, Gravesham and Swanley CCG | E44: 2697 | F44: 11505 | G44: 14202 | H44: 0.1899028306 | I44: 0.8100971694
A45: Oral Anticoagulants % items | B45: CCG | C45: 02X | D45: NHS Doncaster CCG | E45: 2770 | F45: 20667 | G45: 23437 | H45: 0.118189188 | I45: 0.881810812
A46: Oral Anticoagulants % items | B46: CCG | C46: 11J | D46: NHS Dorset CCG | E46: 4201 | F46: 66567 | G46: 70768 | H46: 0.05936298892 | I46: 0.9406370111
A47: Oral Anticoagulants % items | B47: CCG | C47: 05C | D47: NHS Dudley CCG | E47: 5129 | F47: 8683 | G47: 13812 | H47: 0.3713437591 | I47: 0.6286562409
A48: Oral Anticoagulants % items | B48: CCG | C48: 00D | D48: NHS Durham Dales, Easington and Sedgefield CCG | E48: 4282 | F48: 19757 | G48: 24039 | H48: 0.17812721 | I48: 0.82187279
A49: Oral Anticoagulants % items | B49: CCG | C49: 07W | D49: NHS Ealing CCG | E49: 1130 | F49: 9816 | G49: 10946 | H49: 0.1032340581 | I49: 0.8967659419
A50: Oral Anticoagulants % items | B50: CCG | C50: 06K | D50: NHS East and North Hertfordshire CCG | E50: 3317 | F50: 45833 | G50: 49150 | H50: 0.06748728383 | I50: 0.9325127162
A51: Oral Anticoagulants % items | B51: CCG | C51: 01A | D51: NHS East Lancashire CCG | E51: 1111 | F51: 21027 | G51: 22138 | H51: 0.05018520192 | I51: 0.9498147981
A52: Oral Anticoagulants % items | B52: CCG | C52: 03W | D52: NHS East Leicestershire and Rutland CCG | E52: 1388 | F52: 19614 | G52: 21002 | H52: 0.06608894391 | I52: 0.9339110561
A53: Oral Anticoagulants % items | B53: CCG | C53: 02Y | D53: NHS East Riding of Yorkshire CCG | E53: 1787 | F53: 28509 | G53: 30296 | H53: 0.05898468445 | I53: 0.9410153156
A54: Oral Anticoagulants % items | B54: CCG | C54: 05D | D54: NHS East Staffordshire CCG | E54: 507 | F54: 5250 | G54: 5757 | H54: 0.08806670141 | I54: 0.9119332986
A55: Oral Anticoagulants % items | B55: CCG | C55: 09L | D55: NHS East Surrey CCG | E55: 1298 | F55: 8953 | G55: 10251 | H55: 0.126621793 | I55: 0.873378207
A56: Oral Anticoagulants % items | B56: CCG | C56: 09F | D56: NHS Eastbourne, Hailsham and Seaford CCG | E56: 2106 | F56: 15724 | G56: 17830 | H56: 0.1181155356 | I56: 0.8818844644
A57: Oral Anticoagulants % items | B57: CCG | C57: 01C | D57: NHS Eastern Cheshire CCG | E57: 1587 | F57: 14729 | G57: 16316 | H57: 0.09726648688 | I57: 0.9027335131
A58: Oral Anticoagulants % items | B58: CCG | C58: 07X | D58: NHS Enfield CCG | E58: 414 | F58: 11848 | G58: 12262 | H58: 0.03376284456 | I58: 0.9662371554
A59: Oral Anticoagulants % items | B59: CCG | C59: 03X | D59: NHS Erewash CCG | E59: 294 | F59: 3264 | G59: 3558 | H59: 0.0826306914 | I59: 0.9173693086
A60: Oral Anticoagulants % items | B60: CCG | C60: 10K | D60: NHS Fareham and Gosport CCG | E60: 2705 | F60: 11099 | G60: 13804 | H60: 0.1959576934 | I60: 0.8040423066
A61: Oral Anticoagulants % items | B61: CCG | C61: 02M | D61: NHS Fylde and Wyre CCG | E61: 627 | F61: 13289 | G61: 13916 | H61: 0.04505605059 | I61: 0.9549439494
A62: Oral Anticoagulants % items | B62: CCG | C62: 00F | D62: NHS Gateshead CCG | E62: 2379 | F62: 9955 | G62: 12334 | H62: 0.1928814659 | I62: 0.8071185341
... 77 more rows

Sheet RawData(DIS) (hidden)
A1: Metric Name | B1: Type | C1: Code | D1: Name | E1: Sulfonylureas | F1: Biguanides | G1: Dipetidylpeptidase-4 inhibitors (CG87) | H1: Glucagon-like peptide-1 receptor activators | I1: Insulin release stimulators | J1: Intestinal alpha glucosidases inhibitors | K1: Sodium-glucose co-transporter 2 (SGLT2) inhibitors | L1: Thiazolidinediones | M1: Total | N1: Sulfonylureas (%) | O1: Biguanides (%) | P1: Dipetidylpeptidase-4 inhibitors (CG87) (%) | Q1: Glucagon-like peptide-1 receptor activators (%) | R1: Insulin release stimulators (%) | S1: Intestinal alpha glucosidases inhibitors (%) | T1: Sodium-glucose co-transporter 2 (SGLT2) inhibitors (%) | U1: Thiazolidinediones (%)
A2: Antidiabetic drugs (BNF section 6.1.2) | B2: CCG | C2: 02N | D2: NHS Airedale, Wharfedale and Craven CCG | E2: 6381 | F2: 11371 | G2: 2003 | H2: 483 | I2: 26 | J2: 7 | K2: 51 | L2: 1001 | M2: 21323 | N2: 0.2992543263 | O2: 0.5332739296 | P2: 0.09393612531 | Q2: 0.02265159687 | R2: 0.001219340618 | S2: 0.0003282840126 | T2: 0.00239178352 | U2: 0.0469446138
A3: Antidiabetic drugs (BNF section 6.1.2) | B3: CCG | C3: 09C | D3: NHS Ashford CCG | E3: 3777 | F3: 9104 | G3: 1998 | H3: 446 | I3: 96 | J3: 34 | K3: 412 | L3: 819 | M3: 16686 | N3: 0.2263574254 | O3: 0.5456070958 | P3: 0.1197411003 | Q3: 0.02672899437 | R3: 0.005753326142 | S3: 0.002037636342 | T3: 0.02469135802 | U3: 0.04908306365
A4: Antidiabetic drugs (BNF section 6.1.2) | B4: CCG | C4: 10Y | D4: NHS Aylesbury Vale CCG | E4: 7902 | F4: 18416 | G4: 1710 | H4: 316 | I4: 48 | J4: 2 | K4: 37 | L4: 967 | M4: 29398 | N4: 0.2687937955 | O4: 0.6264371726 | P4: 0.05816722226 | Q4: 0.01074903055 | R4: 0.001632764134 | S4: 6.80318389e-05 | T4: 0.00125858902 | U4: 0.03289339411
A5: Antidiabetic drugs (BNF section 6.1.2) | B5: CCG | C5: 07L | D5: NHS Barking and Dagenham CCG | E5: 6139 | F5: 21201 | G5: 6068 | H5: 642 | I5: 639 | J5: 65 | K5: 319 | L5: 1784 | M5: 36857 | N5: 0.1665626611 | O5: 0.5752231598 | P5: 0.164636297 | Q5: 0.01741867217 | R5: 0.0173372765 | S5: 0.001763572727 | T5: 0.008655072306 | U5: 0.04840328838
A6: Antidiabetic drugs (BNF section 6.1.2) | B6: CCG | C6: 07M | D6: NHS Barnet CCG | E6: 12173 | F6: 27030 | G6: 7209 | H6: 1024 | I6: 204 | J6: 114 | K6: 558 | L6: 1533 | M6: 49845 | N6: 0.2442170729 | O6: 0.5422810713 | P6: 0.1446283479 | Q6: 0.02054368542 | R6: 0.004092687331 | S6: 0.002287089979 | T6: 0.01119470358 | U6: 0.03075534156
A7: Antidiabetic drugs (BNF section 6.1.2) | B7: CCG | C7: 02P | D7: NHS Barnsley CCG | E7: 11593 | F7: 29776 | G7: 5956 | H7: 1660 | I7: 106 | J7: 42 | K7: 312 | L7: 1602 | M7: 51047 | N7: 0.2271044332 | O7: 0.5833055811 | P7: 0.1166767881 | Q7: 0.03251905107 | R7: 0.002076517719 | S7: 0.0008227711717 | T7: 0.006112014418 | U7: 0.03138284326
A8: Antidiabetic drugs (BNF section 6.1.2) | B8: CCG | C8: 99E | D8: NHS Basildon and Brentwood CCG | E8: 8023 | F8: 19259 | G8: 5429 | H8: 1038 | I8: 109 | J8: 42 | K8: 562 | L8: 1283 | M8: 35745 | N8: 0.2244509722 | O8: 0.5387886418 | P8: 0.151881382 | Q8: 0.02903902644 | R8: 0.003049377535 | S8: 0.001174989509 | T8: 0.01572247867 | U8: 0.03589313191
A9: Antidiabetic drugs (BNF section 6.1.2) | B9: CCG | C9: 02Q | D9: NHS Bassetlaw CCG | E9: 3746 | F9: 11754 | G9: 2209 | H9: 580 | I9: 108 | J9: 19 | K9: 413 | L9: 1054 | M9: 19883 | N9: 0.1884021526 | O9: 0.5911582759 | P9: 0.1110999346 | Q9: 0.02917064829 | R9: 0.005431775889 | S9: 0.0009555902027 | T9: 0.02077151335 | U9: 0.05301010914
A10: Antidiabetic drugs (BNF section 6.1.2) | B10: CCG | C10: 11E | D10: NHS Bath and North East Somerset CCG | E10: 7647 | F10: 13387 | G10: 1696 | H10: 420 | I10: 1 | J10: 35 | K10: 186 | L10: 584 | M10: 23956 | N10: 0.3192102187 | O10: 0.558816163 | P10: 0.07079646018 | Q10: 0.01753214226 | R10: 4.174319586e-05 | S10: 0.001461011855 | T10: 0.00776423443 | U10: 0.02437802638
A11: Antidiabetic drugs (BNF section 6.1.2) | B11: CCG | C11: 06F | D11: NHS Bedfordshire CCG | E11: 19307 | F11: 36170 | G11: 6553 | H11: 1321 | I11: 154 | J11: 124 | K11: 222 | L11: 2349 | M11: 66200 | N11: 0.2916465257 | O11: 0.5463746224 | P11: 0.09898791541 | Q11: 0.01995468278 | R11: 0.002326283988 | S11: 0.001873111782 | T11: 0.00335347432 | U11: 0.03548338369
A12: Antidiabetic drugs (BNF section 6.1.2) | B12: CCG | C12: 07N | D12: NHS Bexley CCG | E12: 8475 | F12: 19076 | G12: 4049 | H12: 632 | I12: 47 | J12: 28 | K12: 210 | L12: 735 | M12: 33252 | N12: 0.2548718874 | O12: 0.5736797787 | P12: 0.1217671118 | Q12: 0.01900637556 | R12: 0.001413448815 | S12: 0.0008420546133 | T12: 0.006315409599 | U12: 0.0221039336
A13: Antidiabetic drugs (BNF section 6.1.2) | B13: CCG | C13: 13P | D13: NHS Birmingham CrossCity CCG | E13: 23991 | F13: 64739 | G13: 16645 | H13: 2774 | I13: 283 | J13: 99 | K13: 1205 | L13: 4857 | M13: 114593 | N13: 0.2093583378 | O13: 0.5649472481 | P13: 0.1452532005 | Q13: 0.02420741232 | R13: 0.002469609837 | S13: 0.000863927116 | T13: 0.01051547651 | U13: 0.0423847879
A14: Antidiabetic drugs (BNF section 6.1.2) | B14: CCG | C14: 04X | D14: NHS Birmingham South and Central CCG | E14: 8861 | F14: 21780 | G14: 3974 | H14: 835 | I14: 73 | J14: 27 | K14: 277 | L14: 1806 | M14: 37633 | N14: 0.2354582414 | O14: 0.578747376 | P14: 0.1055988096 | Q14: 0.02218797332 | R14: 0.001939786889 | S14: 0.0007174554248 | T14: 0.00736056121 | U14: 0.04798979619
A15: Antidiabetic drugs (BNF section 6.1.2) | B15: CCG | C15: 00Q | D15: NHS Blackburn with Darwen CCG | E15: 8344 | F15: 19549 | G15: 3650 | H15: 896 | I15: 253 | J15: 201 | K15: 565 | L15: 1326 | M15: 34784 | N15: 0.2398804048 | O15: 0.5620112695 | P15: 0.1049333027 | Q15: 0.02575896964 | R15: 0.007273459062 | S15: 0.005778518859 | T15: 0.01624310028 | U15: 0.03812097516
A16: Antidiabetic drugs (BNF section 6.1.2) | B16: CCG | C16: 00R | D16: NHS Blackpool CCG | E16: 8772 | F16: 20874 | G16: 4747 | H16: 842 | I16: 73 | J16: 51 | K16: 620 | L16: 621 | M16: 36600 | N16: 0.2396721311 | O16: 0.5703278689 | P16: 0.1296994536 | Q16: 0.02300546448 | R16: 0.001994535519 | S16: 0.001393442623 | T16: 0.01693989071 | U16: 0.01696721311
A17: Antidiabetic drugs (BNF section 6.1.2) | B17: CCG | C17: 00T | D17: NHS Bolton CCG | E17: 13629 | F17: 28658 | G17: 7790 | H17: 1302 | I17: 137 | J17: 35 | K17: 1204 | L17: 1583 | M17: 54338 | N17: 0.2508189481 | O17: 0.5274025544 | P17: 0.1433619198 | Q17: 0.02396113217 | R17: 0.002521255843 | S17: 0.0006441164563 | T17: 0.0221576061 | U17: 0.02913246715
A18: Antidiabetic drugs (BNF section 6.1.2) | B18: CCG | C18: 10G | D18: NHS Bracknell and Ascot CCG | E18: 3290 | F18: 7227 | G18: 1847 | H18: 487 | I18: 12 | J18: 35 | K18: 253 | L18: 395 | M18: 13546 | N18: 0.2428761258 | O18: 0.5335154289 | P18: 0.1363502141 | Q18: 0.03595157242 | R18: 0.0008858703676 | S18: 0.002583788572 | T18: 0.01867710025 | U18: 0.0291598996
A19: Antidiabetic drugs (BNF section 6.1.2) | B19: CCG | C19: 02W | D19: NHS Bradford City CCG | E19: 11734 | F19: 19815 | G19: 4088 | H19: 139 | I19: 38 | J19: 45 | K19: 252 | L19: 3497 | M19: 39608 | N19: 0.2962532822 | O19: 0.5002777217 | P19: 0.1032114724 | Q19: 0.003509392042 | R19: 0.000959402141 | S19: 0.001136134114 | T19: 0.00636235104 | U19: 0.0882902444
A20: Antidiabetic drugs (BNF section 6.1.2) | B20: CCG | C20: 02R | D20: NHS Bradford Districts CCG | E20: 19300 | F20: 32269 | G20: 6070 | H20: 458 | I20: 61 | J20: 23 | K20: 256 | L20: 4071 | M20: 62508 | N20: 0.3087604787 | O20: 0.5162379215 | P20: 0.09710757023 | Q20: 0.007327062136 | R20: 0.000975875088 | S20: 0.000367952902 | T20: 0.004095475779 | U20: 0.06512766366
A21: Antidiabetic drugs (BNF section 6.1.2) | B21: CCG | C21: 07P | D21: NHS Brent CCG | E21: 20977 | F21: 38500 | G21: 7954 | H21: 724 | I21: 251 | J21: 366 | K21: 358 | L21: 2371 | M21: 71501 | N21: 0.2933805122 | O21: 0.5384540076 | P21: 0.1112431994 | Q21: 0.01012573251 | R21: 0.003510440413 | S21: 0.005118809527 | T21: 0.00500692298 | U21: 0.03316037538
A22: Antidiabetic drugs (BNF section 6.1.2) | B22: CCG | C22: 09D | D22: NHS Brighton and Hove CCG | E22: 9783 | F22: 16682 | G22: 1964 | H22: 283 | I22: 102 | J22: 14 | K22: 30 | L22: 1390 | M22: 30248 | N22: 0.3234263422 | O22: 0.5515075377 | P22: 0.06492991272 | Q22: 0.009355990479 | R22: 0.003372123777 | S22: 0.0004628405184 | T22: 0.0009918011108 | U22: 0.04595345147
A23: Antidiabetic drugs (BNF section 6.1.2) | B23: CCG | C23: 11H | D23: NHS Bristol CCG | E23: 20009 | F23: 34956 | G23: 6744 | H23: 1467 | I23: 65 | J23: 121 | K23: 381 | L23: 1714 | M23: 65457 | N23: 0.3056815925 | O23: 0.5340299739 | P23: 0.1030294697 | Q23: 0.02241165956 | R23: 0.0009930183174 | S23: 0.001848541791 | T23: 0.00582061506 | U23: 0.02618512917
A24: Antidiabetic drugs (BNF section 6.1.2) | B24: CCG | C24: 07Q | D24: NHS Bromley CCG | E24: 7344 | F24: 17223 | G24: 3013 | H24: 390 | I24: 180 | J24: 49 | K24: 116 | L24: 901 | M24: 29216 | N24: 0.2513691128 | O24: 0.5895057503 | P24: 0.1031284228 | Q24: 0.01334884995 | R24: 0.006161007667 | S24: 0.001677163198 | T24: 0.003970427163 | U24: 0.03083926616
A25: Antidiabetic drugs (BNF section 6.1.2) | B25: CCG | C25: 00V | D25: NHS Bury CCG | E25: 6901 | F25: 17240 | G25: 2994 | H25: 1181 | I25: 32 | J25: 70 | K25: 266 | L25: 1503 | M25: 30187 | N25: 0.2286083413 | O25: 0.5711067678 | P25: 0.09918176699 | Q25: 0.03912280121 | R25: 0.001060058966 | S25: 0.002318878988 | T25: 0.008811740153 | U25: 0.04978964455
A26: Antidiabetic drugs (BNF section 6.1.2) | B26: CCG | C26: 02T | D26: NHS Calderdale CCG | E26: 8117 | F26: 19746 | G26: 3888 | H26: 656 | I26: 25 | J26: 31 | K26: 407 | L26: 2314 | M26: 35184 | N26: 0.2307014552 | O26: 0.5612210095 | P26: 0.1105047749 | Q26: 0.01864483856 | R26: 0.0007105502501 | S26: 0.0008810823101 | T26: 0.01156775807 | U26: 0.06576853115
A27: Antidiabetic drugs (BNF section 6.1.2) | B27: CCG | C27: 06H | D27: NHS Cambridgeshire and Peterborough CCG | E27: 34188 | F27: 78726 | G27: 8171 | H27: 2876 | I27: 261 | J27: 216 | K27: 857 | L27: 7507 | M27: 132802 | N27: 0.257435882 | O27: 0.5928073372 | P27: 0.06152768784 | Q27: 0.02165630036 | R27: 0.001965331847 | S27: 0.001626481529 | T27: 0.006453216066 | U27: 0.05652776314
A28: Antidiabetic drugs (BNF section 6.1.2) | B28: CCG | C28: 07R | D28: NHS Camden CCG | E28: 5350 | F28: 10919 | G28: 1923 | H28: 342 | I28: 54 | J28: 31 | K28: 17 | L28: 413 | M28: 19049 | N28: 0.280854638 | O28: 0.5732059426 | P28: 0.1009501811 | Q28: 0.01795369836 | R28: 0.002834794477 | S28: 0.001627382015 | T28: 0.0008924352984 | U28: 0.02168092813
A29: Antidiabetic drugs (BNF section 6.1.2) | B29: CCG | C29: 04Y | D29: NHS Cannock Chase CCG | E29: 5133 | F29: 14133 | G29: 3834 | H29: 428 | I29: 20 | J29: 23 | K29: 442 | L29: 250 | M29: 24263 | N29: 0.2115566913 | O29: 0.58249186 | P29: 0.1580183819 | Q29: 0.01764002803 | R29: 0.0008243003751 | S29: 0.0009479454313 | T29: 0.01821703829 | U29: 0.01030375469
A30: Antidiabetic drugs (BNF section 6.1.2) | B30: CCG | C30: 09E | D30: NHS Canterbury and Coastal CCG | E30: 6070 | F30: 14562 | G30: 2587 | H30: 629 | I30: 21 | J30: 25 | K30: 407 | L30: 793 | M30: 25094 | N30: 0.2418904918 | O30: 0.5802980792 | P30: 0.1030923727 | Q30: 0.02506575277 | R30: 0.0008368534311 | S30: 0.0009962540846 | T30: 0.0162190165 | U30: 0.03160117956
A31: Antidiabetic drugs (BNF section 6.1.2) | B31: CCG | C31: 99F | D31: NHS Castle Point and Rochford CCG | E31: 6260 | F31: 14329 | G31: 2667 | H31: 651 | I31: 31 | J31: 22 | K31: 291 | L31: 1020 | M31: 25271 | N31: 0.2477147719 | O31: 0.5670135729 | P31: 0.1055359899 | Q31: 0.02576075343 | R31: 0.001226702544 | S31: 0.000870563096 | T31: 0.0115151755 | U31: 0.04036247082
A32: Antidiabetic drugs (BNF section 6.1.2) | B32: CCG | C32: 09A | D32: NHS Central London (Westminster) CCG | E32: 6082 | F32: 12808 | G32: 2063 | H32: 400 | I32: 58 | J32: 27 | K32: 167 | L32: 732 | M32: 22337 | N32: 0.2722836549 | O32: 0.5733983973 | P32: 0.09235797108 | Q32: 0.01790750772 | R32: 0.00259658862 | S32: 0.001208756771 | T32: 0.007476384474 | U32: 0.03277073913
A33: Antidiabetic drugs (BNF section 6.1.2) | B33: CCG | C33: 00W | D33: NHS Central Manchester CCG | E33: 8020 | F33: 20703 | G33: 4855 | H33: 1286 | I33: 52 | J33: 35 | K33: 729 | L33: 1603 | M33: 37283 | N33: 0.2151114449 | O33: 0.5552932972 | P33: 0.1302202076 | Q33: 0.03449293244 | R33: 0.001394737548 | S33: 0.0009387656573 | T33: 0.01955314755 | U33: 0.0429954671
A34: Antidiabetic drugs (BNF section 6.1.2) | B34: CCG | C34: 10H | D34: NHS Chiltern CCG | E34: 9758 | F34: 22509 | G34: 1566 | H34: 442 | I34: 104 | J34: 28 | K34: 92 | L34: 874 | M34: 35373 | N34: 0.2758601193 | O34: 0.6363327962 | P34: 0.04427105419 | Q34: 0.0124954061 | R34: 0.002940095553 | S34: 0.0007915641874 | T34: 0.002600853759 | U34: 0.02470811071
A35: Antidiabetic drugs (BNF section 6.1.2) | B35: CCG | C35: 00X | D35: NHS Chorley and South Ribble CCG | E35: 6430 | F35: 14764 | G35: 3395 | H35: 700 | I35: 55 | J35: 4 | K35: 406 | L35: 884 | M35: 26638 | N35: 0.2413844883 | O35: 0.5542458143 | P35: 0.1274495082 | Q35: 0.02627824912 | R35: 0.002064719574 | S35: 0.0001501614235 | T35: 0.01524138449 | U35: 0.0331856746
A36: Antidiabetic drugs (BNF section 6.1.2) | B36: CCG | C36: 07T | D36: NHS City and Hackney CCG | E36: 9194 | F36: 20000 | G36: 3912 | H36: 337 | I36: 245 | J36: 76 | K36: 81 | L36: 337 | M36: 34182 | N36: 0.2689719736 | O36: 0.5851032707 | P36: 0.1144461998 | Q36: 0.009858990112 | R36: 0.007167515066 | S36: 0.002223392429 | T36: 0.002369668246 | U36: 0.009858990112
A37: Antidiabetic drugs (BNF section 6.1.2) | B37: CCG | C37: 09G | D37: NHS Coastal West Sussex CCG | E37: 12879 | F37: 39577 | G37: 10404 | H37: 1397 | I37: 224 | J37: 76 | K37: 412 | L37: 3141 | M37: 68110 | N37: 0.189091176 | O37: 0.5810747321 | P37: 0.1527528997 | Q37: 0.02051093819 | R37: 0.003288797533 | S37: 0.00111584202 | T37: 0.00604903832 | U37: 0.04611657613
A38: Antidiabetic drugs (BNF section 6.1.2) | B38: CCG | C38: 03V | D38: NHS Corby CCG | E38: 2564 | F38: 6315 | G38: 522 | H38: 123 | I38: 9 | J38: 2 | K38: 22 | L38: 121 | M38: 9678 | N38: 0.2649307708 | O38: 0.6525108493 | P38: 0.05393676379 | Q38: 0.01270923745 | R38: 0.0009299442033 | S38: 0.0002066542674 | T38: 0.002273196942 | U38: 0.01250258318
A39: Antidiabetic drugs (BNF section 6.1.2) | B39: CCG | C39: 05A | D39: NHS Coventry and Rugby CCG | E39: 18678 | F39: 46880 | G39: 9820 | H39: 1735 | I39: 337 | J39: 126 | K39: 709 | L39: 1653 | M39: 79938 | N39: 0.2336560835 | O39: 0.5864545022 | P39: 0.122845205 | Q39: 0.02170432085 | R39: 0.00421576722 | S39: 0.001576221572 | T39: 0.008869373765 | U39: 0.02067852586
A40: Antidiabetic drugs (BNF section 6.1.2) | B40: CCG | C40: 09H | D40: NHS Crawley CCG | E40: 3211 | F40: 10153 | G40: 2533 | H40: 531 | I40: 60 | J40: 5 | K40: 113 | L40: 631 | M40: 17237 | N40: 0.1862853165 | O40: 0.589023612 | P40: 0.1469513256 | Q40: 0.03080582468 | R40: 0.003480884145 | S40: 0.0002900736787 | T40: 0.006555665139 | U40: 0.03660729825
A41: Antidiabetic drugs (BNF section 6.1.2) | B41: CCG | C41: 07V | D41: NHS Croydon CCG | E41: 14764 | F41: 32630 | G41: 5281 | H41: 731 | I41: 91 | J41: 57 | K41: 212 | L41: 980 | M41: 54746 | N41: 0.2696818032 | O41: 0.5960252804 | P41: 0.09646366858 | Q41: 0.0133525737 | R41: 0.001662221897 | S41: 0.001041171958 | T41: 0.003872429036 | U41: 0.0179008512
A42: Antidiabetic drugs (BNF section 6.1.2) | B42: CCG | C42: 01H | D42: NHS Cumbria CCG | E42: 21941 | F42: 44858 | G42: 3997 | H42: 1559 | I42: 182 | J42: 58 | K42: 146 | L42: 2071 | M42: 74812 | N42: 0.2932818264 | O42: 0.5996096883 | P42: 0.05342725766 | Q42: 0.02083890285 | R42: 0.002432764797 | S42: 0.0007752766936 | T42: 0.001951558573 | U42: 0.0276827247
A43: Antidiabetic drugs (BNF section 6.1.2) | B43: CCG | C43: 00C | D43: NHS Darlington CCG | E43: 4980 | F43: 9674 | G43: 1593 | H43: 457 | I43: 11 | J43: 7 | K43: 227 | L43: 561 | M43: 17510 | N43: 0.2844089092 | O43: 0.5524842947 | P43: 0.09097658481 | Q43: 0.02609937179 | R43: 0.00062821245 | S43: 0.0003997715591 | T43: 0.01296402056 | U43: 0.03203883495
A44: Antidiabetic drugs (BNF section 6.1.2) | B44: CCG | C44: 09J | D44: NHS Dartford, Gravesham and Swanley CCG | E44: 9801 | F44: 22444 | G44: 5329 | H44: 832 | I44: 67 | J44: 86 | K44: 802 | L44: 1685 | M44: 41046 | N44: 0.23878088 | O44: 0.5468011499 | P44: 0.1298299469 | Q44: 0.02026994104 | R44: 0.001632314964 | S44: 0.002095210252 | T44: 0.01953905374 | U44: 0.04105150319
A45: Antidiabetic drugs (BNF section 6.1.2) | B45: CCG | C45: 02X | D45: NHS Doncaster CCG | E45: 15215 | F45: 36006 | G45: 9595 | H45: 1581 | I45: 21 | J45: 74 | K45: 1208 | L45: 3411 | M45: 67111 | N45: 0.2267139515 | O45: 0.5365141333 | P45: 0.142972091 | Q45: 0.02355798602 | R45: 0.0003129144254 | S45: 0.001102650832 | T45: 0.0180000298 | U45: 0.05082624309
A46: Antidiabetic drugs (BNF section 6.1.2) | B46: CCG | C46: 11J | D46: NHS Dorset CCG | E46: 25212 | F46: 51267 | G46: 11610 | H46: 2354 | I46: 182 | J46: 92 | K46: 919 | L46: 2408 | M46: 94044 | N46: 0.2680872783 | O46: 0.5451384458 | P46: 0.1234528519 | Q46: 0.02503083663 | R46: 0.001935264344 | S46: 0.0009782654927 | T46: 0.009772021607 | U46: 0.02560503594
A47: Antidiabetic drugs (BNF section 6.1.2) | B47: CCG | C47: 05C | D47: NHS Dudley CCG | E47: 11610 | F47: 24581 | G47: 4808 | H47: 1217 | I47: 77 | J47: 21 | K47: 725 | L47: 1925 | M47: 44964 | N47: 0.2582065653 | O47: 0.5466817899 | P47: 0.1069299884 | Q47: 0.02706609732 | R47: 0.001712481096 | S47: 0.0004670402989 | T47: 0.01612401032 | U47: 0.0428120274
A48: Antidiabetic drugs (BNF section 6.1.2) | B48: CCG | C48: 00D | D48: NHS Durham Dales, Easington and Sedgefield CCG | E48: 17570 | F48: 35895 | G48: 6162 | H48: 1648 | I48: 83 | J48: 82 | K48: 745 | L48: 1499 | M48: 63684 | N48: 0.275893474 | O48: 0.5636423591 | P48: 0.09675899755 | Q48: 0.0258777715 | R48: 0.001303310094 | S48: 0.001287607562 | T48: 0.01169838578 | U48: 0.02353809434
A49: Antidiabetic drugs (BNF section 6.1.2) | B49: CCG | C49: 07W | D49: NHS Ealing CCG | E49: 22381 | F49: 41132 | G49: 9754 | H49: 695 | I49: 202 | J49: 181 | K49: 422 | L49: 1599 | M49: 76366 | N49: 0.2930754524 | O49: 0.5386166619 | P49: 0.1277269989 | Q49: 0.009100908781 | R49: 0.002645156221 | S49: 0.002370164733 | T49: 0.005526019433 | U49: 0.02093863761
A50: Antidiabetic drugs (BNF section 6.1.2) | B50: CCG | C50: 06K | D50: NHS East and North Hertfordshire CCG | E50: 21149 | F50: 48842 | G50: 9891 | H50: 1678 | I50: 260 | J50: 231 | K50: 770 | L50: 2757 | M50: 85578 | N50: 0.2471312721 | O50: 0.5707307953 | P50: 0.1155787702 | Q50: 0.01960784314 | R50: 0.003038164014 | S50: 0.002699291874 | T50: 0.00899763958 | U50: 0.0322162238
A51: Antidiabetic drugs (BNF section 6.1.2) | B51: CCG | C51: 01A | D51: NHS East Lancashire CCG | E51: 15664 | F51: 37748 | G51: 4932 | H51: 1633 | I51: 193 | J51: 85 | K51: 564 | L51: 1843 | M51: 62662 | N51: 0.249976062 | O51: 0.6024065622 | P51: 0.07870798889 | Q51: 0.02606045131 | R51: 0.003080016597 | S51: 0.001356483993 | T51: 0.009000670263 | U51: 0.02941176471
A52: Antidiabetic drugs (BNF section 6.1.2) | B52: CCG | C52: 03W | D52: NHS East Leicestershire and Rutland CCG | E52: 10352 | F52: 25060 | G52: 3603 | H52: 1151 | I52: 165 | J52: 12 | K52: 36 | L52: 1056 | M52: 41435 | N52: 0.2498370942 | O52: 0.604802703 | P52: 0.08695547243 | Q52: 0.02777844817 | R52: 0.003982140702 | S52: 0.0002896102329 | T52: 0.0008688306987 | U52: 0.02548570049
A53: Antidiabetic drugs (BNF section 6.1.2) | B53: CCG | C53: 02Y | D53: NHS East Riding of Yorkshire CCG | E53: 11955 | F53: 29453 | G53: 5698 | H53: 1577 | I53: 148 | J53: 17 | K53: 559 | L53: 2161 | M53: 51568 | N53: 0.2318298169 | O53: 0.5711487744 | P53: 0.1104948805 | Q53: 0.03058098045 | R53: 0.002869996897 | S53: 0.0003296618058 | T53: 0.01084005585 | U53: 0.04190583307
A54: Antidiabetic drugs (BNF section 6.1.2) | B54: CCG | C54: 05D | D54: NHS East Staffordshire CCG | E54: 5448 | F54: 13927 | G54: 2640 | H54: 395 | I54: 41 | J54: 17 | K54: 286 | L54: 513 | M54: 23267 | N54: 0.2341513732 | O54: 0.5985730863 | P54: 0.1134654231 | Q54: 0.01697683414 | R54: 0.001762152405 | S54: 0.000730648558 | T54: 0.01229208751 | U54: 0.02204839472
A55: Antidiabetic drugs (BNF section 6.1.2) | B55: CCG | C55: 09L | D55: NHS East Surrey CCG | E55: 4414 | F55: 10176 | G55: 2338 | H55: 554 | I55: 30 | J55: 33 | K55: 318 | L55: 478 | M55: 18341 | N55: 0.2406629955 | O55: 0.5548225288 | P55: 0.1274739654 | Q55: 0.03020555041 | R55: 0.001635679625 | S55: 0.001799247587 | T55: 0.01733820402 | U55: 0.02606182869
A56: Antidiabetic drugs (BNF section 6.1.2) | B56: CCG | C56: 09F | D56: NHS Eastbourne, Hailsham and Seaford CCG | E56: 7270 | F56: 15554 | G56: 2530 | H56: 780 | I56: 148 | J56: 34 | K56: 70 | L56: 1327 | M56: 27713 | N56: 0.2623317577 | O56: 0.5612528416 | P56: 0.09129289503 | Q56: 0.02814563562 | R56: 0.005340453939 | S56: 0.00122686104 | T56: 0.002525890376 | U56: 0.04788366471
A57: Antidiabetic drugs (BNF section 6.1.2) | B57: CCG | C57: 01C | D57: NHS Eastern Cheshire CCG | E57: 5758 | F57: 15377 | G57: 2778 | H57: 407 | I57: 188 | J57: 45 | K57: 296 | L57: 848 | M57: 25697 | N57: 0.224072849 | O57: 0.5983967 | P57: 0.1081060046 | Q57: 0.01583842472 | R57: 0.007316029108 | S57: 0.00175117718 | T57: 0.01151885434 | U57: 0.03299996108
A58: Antidiabetic drugs (BNF section 6.1.2) | B58: CCG | C58: 07X | D58: NHS Enfield CCG | E58: 16650 | F58: 33247 | G58: 7418 | H58: 664 | I58: 106 | J58: 271 | K58: 649 | L58: 3248 | M58: 62253 | N58: 0.26745699 | O58: 0.5340626155 | P58: 0.119158916 | Q58: 0.01066615264 | R58: 0.001702729186 | S58: 0.004353203862 | T58: 0.01042520039 | U58: 0.05217419241
A59: Antidiabetic drugs (BNF section 6.1.2) | B59: CCG | C59: 03X | D59: NHS Erewash CCG | E59: 2684 | F59: 6587 | G59: 309 | H59: 332 | I59: 12 | J59: 1 | K59: 38 | L59: 581 | M59: 10544 | N59: 0.254552352 | O59: 0.624715478 | P59: 0.02930576631 | Q59: 0.03148710167 | R59: 0.001138088012 | S59: 9.484066768e-05 | T59: 0.003603945372 | U59: 0.05510242792
A60: Antidiabetic drugs (BNF section 6.1.2) | B60: CCG | C60: 10K | D60: NHS Fareham and Gosport CCG | E60: 5956 | F60: 13405 | G60: 3074 | H60: 698 | I60: 39 | J60: 50 | K60: 613 | L60: 487 | M60: 24322 | N60: 0.2448811775 | O60: 0.5511471096 | P60: 0.1263876326 | Q60: 0.02869829784 | R60: 0.001603486555 | S60: 0.002055751994 | T60: 0.02520351945 | U60: 0.02002302442
A61: Antidiabetic drugs (BNF section 6.1.2) | B61: CCG | C61: 02M | D61: NHS Fylde and Wyre CCG | E61: 6490 | F61: 15893 | G61: 4280 | H61: 713 | I61: 82 | J61: 28 | K61: 584 | L61: 566 | M61: 28636 | N61: 0.2266377986 | O61: 0.5550006984 | P61: 0.1494622154 | Q61: 0.02489872887 | R61: 0.002863528426 | S61: 0.0009777901942 | T61: 0.02039390976 | U61: 0.01976533035
A62: Antidiabetic drugs (BNF section 6.1.2) | B62: CCG | C62: 00F | D62: NHS Gateshead CCG | E62: 11013 | F62: 21070 | G62: 1819 | H62: 658 | I62: 36 | J62: 144 | K62: 29 | L62: 2179 | M62: 36948 | N62: 0.2980675544 | O62: 0.5702609072 | P62: 0.04923135217 | Q62: 0.01780881238 | R62: 0.0009743423189 | S62: 0.003897369276 | T62: 0.000784886868 | U62: 0.05897477536
... 77 more rows

Sheet Guide
A1: Medicines Optimisation - Clinical Commissioning Group (CCG) Dashboard Guide
A4: The Medicines Optimisation CCG dashboard aims to bring together a range of medicine-related data in a way never previously done to help commissioners explore how well their local populations are supported to optimise the medicines prescribed to them. It has been designed to provide the user with the ability to easily understand their position on a number of metrics, and compare against the national and local position. NHS England welcomes your feedback about this dashboard and how it has been used locally. Please email England.MODashboard@nhs.net
A6: This page gives the user simple instructions on how to use the dashboard
A8: There are 4 key elements to the CCG dashboard: • Dashboard (CCG) • Summary Charts (CCG / Trust / Area / AHSN / Cluster / OACs / New Diabetes) • Metric Specifications • Data tables for each metric (grouped by key therapeutic theme)
B11: Dashboard (CCG)
B12: This allows the user to select their CCG, and the dashboard will populate a qualitative report of their performance against each of the metrics in the dashboard. It also includes charts and a table of figures to show performance relative to other CCGs and the national position. There is also functionality to allow CCGs to be compared against other CCGs within the same Area, Academic Health Science Network or CCG Cluster.
C14: STEP 1: Click and select the required CCG from the drop down list
C15: At the top of the screen there is an orange box that can be used to select a CCG to view. Clicking in this box will provide a list of all the CCGs covered by the dashboard. Once a selection has been made the individual charts will automatically adjust to highlight the selected CCG and the value will be displayed underneath the chart.
C17: STEP 2: Click and select a grouping method from the drop down list
C18: At the top of the screen there is also a dark blue box that can be used to select a grouping method for the data. There are three possible grouping methods for the dashboard: AREA, AHSN (Academic Health Science Network), CLUSTER (CCG Cluster). Once a group is selected, the dashboard will automatically adjust to show the details that match the selected group for the selected CCG. This information will be displayed on the charts in dark blue.
C20: STEP 3 (OPTIONAL): Multiple possible Academic Health Science Networks
C21: The following CCGs are covered by more than one Academic Health Science Networks: • NHS Bedfordshire CCG (Eastern / Oxford) • NHS Cumbria CCG (North East & North Cumbria / North West Coast) • NHS Mid Essex CCG (Eastern / UCL Partners) • NHS Nene CCG (East Midlands / Oxford) • NHS West Essex CCG (Eastern / UCL Partners) • NHS Wiltshire CCG (Wessex / West of England) If any of these CCGs are selected along with the AHSN grouping option, an additional drop down list will appear to allow a selection to be made from the possible AHSNs.
C23: STEP 4: View data
C24: Once the selections have been made, the dashboard will automatically adjust to show the relevant information for each metric. Within the dashboard, there is a separate chart for each metric, labelled with the metric name and a description. The light blue base shows results for each CCG in England to show the distribution nationally. The orange bar highlights the result for the selected CCG, and the dark blue bars highlight the results for each of the CCGs that are in the same group (Area, AHSN, CCG Cluster) as the selected CCG. The two horizontal lines show the average results for the selected grouping level and the national average. These figures are also displayed beneath the chart. A further breakdown of the data displayed for each metric (including numerator and denominator details) can be viewed by clicking on the button at the top of the screen labelled "Figures At A Glance".
B28: Summary (CCG)
B29: This allows the user to view a summary for an individual metric at CCG level. The user is required to select a metric to view and a CCG to view the results for which are then displayed across the various charts. The main body of the report contains a chart showing the results for each of the CCGs nationally, with the ability to select specific CCGs to highlight. There are also three additional charts at the bottom of the sheet which, once a CCG has been selected, will display the results for the appropriate Area, Academic Health Science Network and CCG Cluster.
C31: STEP 1: Click and select the required metric from the drop down list
C32: At the top of the screen there is a drop down box that can be used to select a metric to display on the form. The list includes each of the metrics where data is recorded at a CCG level and all of the metrics are grouped by key therapeutic topic. Once a metric has been selected, the dashboard will automatically adjust to populate the charts with the corresponding information. This includes showing the relevant charts and also displaying a summary of the metric at the top right of the screen.
C34: STEP 2: Click and select the required CCG from the drop down list
C35: At the top of the screen there is a box that can be used to select a CCG to view. Clicking in this box will provide a list of all the CCGs covered by the dashboard. Once a selection has been made the dashboard will automatically adjust to highlight the selected CCG on the charts with a dark blue bar.
C37: STEP 3 (OPTIONAL): Multiple possible Academic Health Science Networks
C38: The following CCGs are covered by more than one Academic Health Science Networks: • NHS Bedfordshire CCG (Eastern / Oxford) • NHS Cumbria CCG (North East & North Cumbria / North West Coast) • NHS Mid Essex CCG (Eastern / UCL Partners) • NHS Nene CCG (East Midlands / Oxford) • NHS West Essex CCG (Eastern / UCL Partners) • NHS Wiltshire CCG (Wessex / West of England) If any of these CCGs are selected along with the AHSN grouping option, an additional drop down list will appear to allow a selection to be made from the possible AHSNs.
C40: STEP 4 (OPTIONAL): Select additional CCGs for comparison
C41: There is the option to select up to eight additional CCGs to be highlighted on the charts. Each additional CCG can be selected from the drop down lists next to the main chart and these will be displayed with a coloured bar to match the colour next to the selected CCG name. If any of these additional CCGs belong to the same Area, AHSN or CCG Cluster as the main CCG, they will also be highlighted on the smaller grouped charts at the bottom of the screen.
B45: Summary (Trust)
B46: This allows the user to view a summary for an individual metric at Trust level. The user is required to select a metric to view and a Trust to view the results for which are then displayed across the various charts. The main body of the report contains a chart showing the results for each of the Trusts nationally, with the ability to select specific Trusts to highlight. There are also three additional charts at the bottom of the sheet which, once a Trust has been selected, will display the results for the appropriate Area, Academic Health Science Network and Cluster.
C48: STEP 1: Click and select the required metric from the drop down list
C49: At the top of the screen there is a drop down box that can be used to select a metric to display on the form. The list includes each of the metrics where data is recorded at Trust level and all of the metrics are grouped by key therapeutic topic. Once a metric has been selected, the dashboard will automatically adjust to populate the charts with the corresponding information. This includes showing the relevant charts and also displaying a summary of the metric at the top right of the screen.
C51: STEP 2: Click and select the required Trust from the drop down list
C52: At the top of the screen there is a box that can be used to select a Trust to view. Clicking in this box will provide a list of all the Trusts covered by the dashboard. Once a selection has been made the dashboard will automatically adjust to highlight the selected Trust on the charts with a dark blue bar.
C54: STEP 3 (OPTIONAL): Multiple possible Academic Health Science Networks
C55: The following Trusts are covered by more than one Academic Health Science Network: • Central And North West London NHS Foundation Trust (Imperial College / Oxford) • Epsom And St Helier University Hospitals NHS Trust (Kent Surrey & Sussex / South London) • Frimley Park Hospital NHS Foundation Trust (Kent Surrey & Sussex / Oxford) • Southern Health NHS Foundation Trust (Oxford / Wessex) • South Central Ambulance Service NHS Foundation Trust (Oxford / Wessex) • South Western Ambulance Service NHS Foundation Trust (South West / West of England) • The Royal Marsden NHS Foundation Trust (Imperial College / South London) If any of these Trusts are selected, an additional drop down list will appear to allow a selection to be made from the possible AHSNs. London Ambulance Service NHS Trust is currently not affiliated to any AHSN.
C57: STEP 4 (OPTIONAL): Select additional Trusts for comparison
C58: There is the option to select up to eight additional Trusts to be highlighted on the charts. Each additional Trust can be selected from the drop down lists next to the main chart and these will be displayed with a coloured bar to match the colour next to the selected Trust name. If any of these additional Trusts belong to the same Area, AHSN or Cluster as the main Trust, they will also be highlighted on the smaller grouped charts at the bottom of the screen.
B62: Summary (Area)
... 43 more rows

Sheet Contents
A1: Medicines Optimisation Dashboard
A2: Contents
B4: Guide
B5: Provides an understanding of the purpose of the Medicines Optimisation Dashboard and how to use it.
B7: Dashboard (CCG)
B8: Allows users to select a CCG, and the dashboard will populate a qualitative report of their performance against each of the metrics. It also includes an option to allow a selection of a grouping measure to show performance relative to Area, Academic Health Science Network or CCG Cluster in addition to the national position.
B10: Figures at a Glance
B11: Displays the figures corresponding to the selections made on the Dashboard (CCG) page. Includes the figures for each metric, along with the figures for the corresponding Area, Academic Health Science Network, CCG Cluster and the national position.
B13: Summary (CCG)
B14: Dashboard allowing the comparison of CCG data for a selected metric. Comparisons are displayed across the national position in addition to within the appropriate Area, Academic Health Science Network and CCG Cluster.
B16: Summary (Trust)
B17: Dashboard allowing the comparison of Trust data for a selected metric. Comparisons are displayed across the national position in addition to within the appropriate Area, Academic Health Science Network and Trust Cluster.
B19: Summary (Area)
B20: Dashboard allowing the comparison of Area data for a selected metric. Comparisons are displayed across the national position. A summary of the data is also displayed for the CCGs and Trusts within the selected Area.
B22: Summary (AHSN)
B23: Dashboard allowing the comparison of Academic Health Science Network (AHSN) data for a selected metric. Comparisons are displayed across the national position. A summary of the data is also displayed for the CCGs and Trusts within the selected AHSN.
B25: Summary (Cluster)
B26: Dashboard allowing the comparison of CCG Cluster data for a selected metric. Comparisons are displayed across the national position. A summary of the data is also displayed for the CCGs within the selected Cluster.
B28: Summary (OACs)
B29: Dashboard showing the "Oral Anticoagulants % Items" Metric data for a selected CCG. Comparisons are displayed across the national position in addition to within the appropriate Area, Academic Health Science Network and CCG Cluster.
B31: Summary (Diabetes)
B32: Dashboard showing the "Antidiabetic drugs (BNF section 6.1.2)" Metric data for a selected CCG. Comparisons are displayed across the national position in addition to within the appropriate Area, Academic Health Science Network and CCG Cluster.
B34: Metric Specifications
B35: Provides a breakdown of the metrics covered within the dashboard, including details and definitions
B37: Community Support
B38: Data appendix for the following data metrics:- • % EPS items • % of practices enabled for EPS • % of practices submitting EPS • % of repeat dispensing • % of EPS repeat dispensing • % of pharmacies conducting MUR • Number of MUR per 1,000 dispensed items • % of pharmacies conducting NMS • Number of NMS claims per 1,000 dispensed items
B40: CVD-CHD
B41: Data appendix for the following data metrics:- • Atrial fibrillation: Access to audit tool • Atrial fibrillation: (AF004) % achieving upper threshold or above • Atrial fibrillation: (AF004) % underlying achievement • Heart failure (HF003) % achieving upper threshold or above • Heart failure (HF003) % underlying achievement • Heart failure (HF004) % achieving upper threshold or above • Heart failure (HF004) % underlying achievement • NSAIDS Ibuprofen & Naproxen % items • Oral anticoagulant % Items
B43: Mental Health
B44: Data appendix for the following data metrics:- • Antidepressants (selected): ADQ/STAR PU (ADQ based) • Antidepressants: First choice % items • Depression (DEP002) % achieving upper threshold or above • Depression (DEP002) % underlying achievement • Hypnotics: ADQ/STAR PU (ADQ based) • Mental Health (MH010) % achieving upper threshold or above • Mental Health (MH010) % underlying achievement
B46: Antibiotics
B47: Data appendix for the following data metrics:- • Antibacterial items per STAR PU • Co-amoxiclav, Cephalosporins and Quinolones % items
B49: Diabetes
B50: Data appendix for the following data metrics:- • Antidiabetic drugs (BNF section 6.1.2) • Diabetes Mellitus (DM009) % achieving upper threshold or above • Diabetes Mellitus (DM009) % underlying achievement • Emergency diabetes admissions
B52: Osteoporosis (CCG)
B53: Data appendix for the following data metrics:- • DDD Osteoporosis drugs per 100,000 resident population • Denosumab (60mg/ml) mgs per 100,000 resident population • Osteoporosis (OST003) % achieving upper threshold or above • Osteoporosis (OST003) % underlying achievement
B55: Osteoporosis (TRUST)
B56: Data appendix for the following data metrics:- • Denosumab (60mg/ml) mgs per 100,000 FCE days
B58: Respiratory
B59: Data appendix for the following data metrics:- • Asthma (AST003) % achieving upper threshold or above • Asthma (AST003) % underlying achievement • Emergency asthma admissions • Chronic obstructive pulmonary disease (COPD003) % achieving upper threshold or above • Chronic obstructive pulmonary disease (COPD003) % underlying achievement • Emergency COPD admissions
B61: Patient Safety (CCG)
B62: Data appendix for the following data metrics:- • Safety audit software • Summary care records availability
B64: Patient Safety (TRUST)
B65: Data appendix for the following data metrics:- • Medicines reconciliation • NRLS - % of harmful events • NRLS - reporting rate • Summary care records utilisation
B67: Cluster Apportionment
B68: Provides a detailed breakdown of the calculations used throughout the apportionment of CCGs to CCG Clusters

Sheet Dashboard (CCG)
A1: Medicines Optimisation - CCG Dashboard
C3: Click and select the required CCG within the dropdown box: | G3: Click and select the required grouping level (AREA/AHSN/CLUSTER):
H4: =IF(G4="","Please select a grouping level to view", IF(C4="","Please select a CCG to view data for", IF($G$4="AREA",VLOOKUP($C$4,Dashboard_Data!$B$12:$H$222,3,FALSE), IF($G$4="AHSN",IF('Split AHSN'!$B$6=1,VLOOKUP($C$4,Dashboard_Data!$B$12:$H$222,5,FALSE), "Please select an AHSN to view ------->"), IF($G$4="CLUSTER",VLOOKUP($C$4,Dashboard_Data!$B$12:$H$222,7,FALSE)))))) -> Please select a grouping level to view
G5: =IF(OR($C$4="",$G$4<>"CLUSTER"),"","*" & VLOOKUP($H$4,DTable_Clusters,3,FALSE)) -> 
A7: COMMUNITY SUPPORT
C8: =Dashboard_Data!$AD$6 -> % EPS items | G8: =Dashboard_Data!$BR$6 -> % of Practices enabled for EPS | K8: =Dashboard_Data!$CB$6 -> % of Practices submitting EPS
C9: =INDEX(Table_Metrics,MATCH(C8,Table_Metrics_ID,0),MATCH("Description",Table_Metrics_Header,0)) -> Percentage of all items supplied via electronic prescriptions | G9: =INDEX(Table_Metrics,MATCH(G8,Table_Metrics_ID,0),MATCH("Description",Table_Metrics_Header,0)) -> Percentage of practices enabled for electronic prescriptions (EPS) | K9: =INDEX(Table_Metrics,MATCH(K8,Table_Metrics_ID,0),MATCH("Description",Table_Metrics_Header,0)) -> Percentage of practices undertaking electronic prescriptions (EPS)
C11: CCG (%) | D11: =IF($G$4="","Select grouping",$G$4 & " (%)") -> Select grouping | E11: England (%) | G11: CCG (%) | H11: =IF($G$4="","Select grouping",$G$4 & " (%)") -> Select grouping | I11: England (%) | K11: CCG (%) | L11: =IF($G$4="","Select grouping",$G$4 & " (%)") -> Select grouping | M11: England (%)
C12: =Dashboard_Data!$AJ$8 -> n/a | D12: =Dashboard_Data!$AJ$9 -> n/a | E12: =Dashboard_Data!$AJ$10 -> 14.8495095 | G12: =Dashboard_Data!$BX$8 -> n/a | H12: =Dashboard_Data!$BX$9 -> n/a | I12: =Dashboard_Data!$BX$10 -> 45.41751527 | K12: =Dashboard_Data!$CH$8 -> n/a | L12: =Dashboard_Data!$CH$9 -> n/a | M12: =Dashboard_Data!$CH$10 -> 44.76832994
C14: =Dashboard_Data!$DF$6 -> % of Repeat Dispensing | G14: =Dashboard_Data!$AN$6 -> % of EPS Repeat Dispensing | K14: =Dashboard_Data!$AX$6 -> % of Pharmacies conducting MUR
C15: =INDEX(Table_Metrics,MATCH(C14,Table_Metrics_ID,0),MATCH("Description",Table_Metrics_Header,0)) -> Percentage of repeat dispensing items compared to all prescribing | G15: =INDEX(Table_Metrics,MATCH(G14,Table_Metrics_ID,0),MATCH("Description",Table_Metrics_Header,0)) -> Percentage of all items prescribed as electronic repeat dispensing as a proportion of all electronic prescriptions | K15: =INDEX(Table_Metrics,MATCH(K14,Table_Metrics_ID,0),MATCH("Description",Table_Metrics_Header,0)) -> Percentage of pharmacies conducting MUR
C17: CCG (%) | D17: =IF($G$4="","Select grouping",$G$4 & " (%)") -> Select grouping | E17: England (%) | G17: CCG (%) | H17: =IF($G$4="","Select grouping",$G$4 & " (%)") -> Select grouping | I17: England (%) | K17: CCG (%) | L17: =IF($G$4="","Select grouping",$G$4 & " (%)") -> Select grouping | M17: England (%)
C18: =Dashboard_Data!$DL$8 -> n/a | D18: =Dashboard_Data!$DL$9 -> n/a | E18: =Dashboard_Data!$DL$10 -> 7.143634487 | G18: =Dashboard_Data!$AT$8 -> n/a | H18: =Dashboard_Data!$AT$9 -> n/a | I18: =Dashboard_Data!$AT$10 -> 11.67990438 | K18: =Dashboard_Data!$BD$8 -> n/a | L18: =Dashboard_Data!$BD$9 -> n/a | M18: =Dashboard_Data!$BD$10 -> 81.88728496
C20: =Dashboard_Data!$CL$6 -> Number of MUR per 1,000 dispensed items | G20: =Dashboard_Data!$BH$6 -> % of Pharmacies conducting NMS | K20: =Dashboard_Data!$CV$6 -> Number of NMS per 1,000 dispensed items
C21: =INDEX(Table_Metrics,MATCH(C20,Table_Metrics_ID,0),MATCH("Description",Table_Metrics_Header,0)) -> Number of MUR per 1,000 prescription items dispensed | G21: =INDEX(Table_Metrics,MATCH(G20,Table_Metrics_ID,0),MATCH("Description",Table_Metrics_Header,0)) -> Percentage of pharmacies conducting NMS | K21: =INDEX(Table_Metrics,MATCH(K20,Table_Metrics_ID,0),MATCH("Description",Table_Metrics_Header,0)) -> Number of NMS per 1,000 dispensed items
C23: CCG | D23: =IF($G$4="","Select grouping",$G$4) -> Select grouping | E23: England | G23: CCG (%) | H23: =IF($G$4="","Select grouping",$G$4 & " (%)") -> Select grouping | I23: England (%) | K23: CCG | L23: =IF($G$4="","Select grouping",$G$4) -> Select grouping | M23: England
C24: =Dashboard_Data!$CR$8 -> n/a | D24: =Dashboard_Data!$CR$9 -> n/a | E24: =Dashboard_Data!$CR$10 -> 3.256201293 | G24: =Dashboard_Data!$BN$8 -> n/a | H24: =Dashboard_Data!$BN$9 -> n/a | I24: =Dashboard_Data!$BN$10 -> 57.23526164 | K24: =Dashboard_Data!$DB$8 -> n/a | L24: =Dashboard_Data!$DB$9 -> n/a | M24: =Dashboard_Data!$DB$10 -> 0.7726525349
A26: CVD/CHD
C27: =Dashboard_Data!$ET$6 -> Atrial fibrillation: Access to audit tool | G27: =Dashboard_Data!$DP$6 -> Atrial fibrillation (AF004) % achieving upper threshold or above | K27: =Dashboard_Data!$DZ$6 -> Atrial fibrillation (AF004) % underlying achievement
C28: =INDEX(Table_Metrics,MATCH(C27,Table_Metrics_ID,0),MATCH("Description",Table_Metrics_Header,0)) -> Number of downloads of the software that supports audit of patients prescribed anticoagulants for AF in relation to the number of practices within the CCG. NB: can currently only measure practices who are engaged with the GRASP tool. | G28: =INDEX(Table_Metrics,MATCH(G27,Table_Metrics_ID,0),MATCH("Description",Table_Metrics_Header,0)) -> The percentage of practices in a CCG that achieve upper threshold or above (70% or more inclusive of exceptions) for QOF indicator AF004 | K28: =INDEX(Table_Metrics,MATCH(K27,Table_Metrics_ID,0),MATCH("Description",Table_Metrics_Header,0)) -> Percentage underlying achievement at CCG level for QOF indicator AF004 inclusive of exceptions
C30: CCG | D30: =IF($G$4="","Select grouping",$G$4) -> Select grouping | E30: England | G30: CCG (%) | H30: =IF($G$4="","Select grouping",$G$4 & " (%)") -> Select grouping | I30: England (%) | K30: CCG (%) | L30: =IF($G$4="","Select grouping",$G$4 & " (%)") -> Select grouping | M30: England (%)
C31: =Dashboard_Data!$EZ$8 -> n/a | D31: =Dashboard_Data!$EZ$9 -> n/a | E31: =Dashboard_Data!$EZ$10 -> 36.70179002 | G31: =Dashboard_Data!$DV$8 -> n/a | H31: =Dashboard_Data!$DV$9 -> n/a | I31: =Dashboard_Data!$DV$10 -> 48.46134283 | K31: =Dashboard_Data!$EF$8 -> n/a | L31: =Dashboard_Data!$EF$9 -> n/a | M31: =Dashboard_Data!$EF$10 -> 69.10967825
C33: =Dashboard_Data!$FN$6 -> Heart failure (HF003) % achieving upper threshold or above | G33: =Dashboard_Data!$FD$6 -> Heart failure (HF003) % underlying achievement | K33: =Dashboard_Data!$GH$6 -> Heart failure (HF004) % achieving upper threshold or above
C34: =INDEX(Table_Metrics,MATCH(C33,Table_Metrics_ID,0),MATCH("Description",Table_Metrics_Header,0)) -> The percentage of practices in a CCG that achieve upper threshold or above (100% inclusive of exceptions) for QOF indicator HF003 | G34: =INDEX(Table_Metrics,MATCH(G33,Table_Metrics_ID,0),MATCH("Description",Table_Metrics_Header,0)) -> Percentage underlying achievement at CCG level for QOF indicator HF003 inclusive of exceptions | K34: =INDEX(Table_Metrics,MATCH(K33,Table_Metrics_ID,0),MATCH("Description",Table_Metrics_Header,0)) -> The percentage of practices in a CCG that achieve upper threshold or above (65% or more inclusive of exceptions) for QOF indicator HF004
C36: CCG (%) | D36: =IF($G$4="","Select grouping",$G$4 & " (%)") -> Select grouping | E36: England (%) | G36: CCG (%) | H36: =IF($G$4="","Select grouping",$G$4 & " (%)") -> Select grouping | I36: England (%) | K36: CCG (%) | L36: =IF($G$4="","Select grouping",$G$4 & " (%)") -> Select grouping | M36: England (%)
C37: =Dashboard_Data!$FT$8 -> n/a | D37: =Dashboard_Data!$FT$9 -> n/a | E37: =Dashboard_Data!$FT$10 -> 41.38242894 | G37: =Dashboard_Data!$FJ$8 -> n/a | H37: =Dashboard_Data!$FJ$9 -> n/a | I37: =Dashboard_Data!$FJ$10 -> 86.70148766 | K37: =Dashboard_Data!$GN$8 -> n/a | L37: =Dashboard_Data!$GN$9 -> n/a | M37: =Dashboard_Data!$GN$10 -> 78.05133578
C39: =Dashboard_Data!$FX$6 -> Heart failure (HF004) % underlying achievement | G39: =Dashboard_Data!$EJ$6 -> NSAIDS Ibuprofen & Naproxen % items | K39: =Dashboard_Data!PP6 -> Oral Anticoagulants % items
C40: =INDEX(Table_Metrics,MATCH(C39,Table_Metrics_ID,0),MATCH("Description",Table_Metrics_Header,0)) -> Percentage underlying achievement at CCG level for QOF indicator HF004 inclusive of exceptions | G40: =INDEX(Table_Metrics,MATCH(G39,Table_Metrics_ID,0),MATCH("Description",Table_Metrics_Header,0)) -> Number of prescription items for ibuprofen and naproxen as a percentage of the total number of prescription items for all NSAIDs | K40: =Metrics!E21 -> The proportion of prescription items for apixaban, dabigatran etexilate and rivaroxaban and the proportion of prescription items for warfarin as a percentage of the total number of prescription items for oral anticoagulants
C42: CCG (%) | D42: =IF($G$4="","Select grouping",$G$4 & " (%)") -> Select grouping | E42: England (%) | G42: CCG (%) | H42: =IF($G$4="","Select grouping",$G$4 & " (%)") -> Select grouping | I42: England (%) | K42: Click to view complete summary
C43: =Dashboard_Data!$GD$8 -> n/a | D43: =Dashboard_Data!$GD$9 -> n/a | E43: =Dashboard_Data!$GD$10 -> 74.25195742 | G43: =Dashboard_Data!$EP$8 -> n/a | H43: =Dashboard_Data!$EP$9 -> n/a | I43: =Dashboard_Data!$EP$10 -> 77.04676364
A45: MENTAL HEALTH
C46: =Dashboard_Data!$JJ$6 -> Antidepressants (selected): ADQ/STAR PU (ADQ based) | G46: =Dashboard_Data!$JT$6 -> Antidepressants: First choice % items | K46: =Dashboard_Data!$IZ$6 -> Depression (DEP002) % achieving upper threshold or above
C47: =INDEX(Table_Metrics,MATCH(C46,Table_Metrics_ID,0),MATCH("Description",Table_Metrics_Header,0)) -> Number of average daily quantities (ADQs) for selected antidepressant prescribing per antidepressants (BNF 4.3 sub-set) ADQ based STAR-PU | G47: =INDEX(Table_Metrics,MATCH(G46,Table_Metrics_ID,0),MATCH("Description",Table_Metrics_Header,0)) -> Number of prescription items for Selective Serotonin Re-uptake Inhibitors (SSRIs) (sub-set of BNF 4.3.3) prescribed by approved name as a percentage of the total number of prescription items for ‘selected’ antidepressants (sub-set of BNF 4.3) | K47: =INDEX(Table_Metrics,MATCH(K46,Table_Metrics_ID,0),MATCH("Description",Table_Metrics_Header,0)) -> The percentage of practices in a CCG that achieve upper threshold or above (80% or more inclusive of exceptions) for QOF indicator DEP002
C49: CCG | D49: =IF($G$4="","Select grouping",$G$4) -> Select grouping | E49: England | G49: CCG (%) | H49: =IF($G$4="","Select grouping",$G$4 & " (%)") -> Select grouping | I49: England (%) | K49: CCG (%) | L49: =IF($G$4="","Select grouping",$G$4 & " (%)") -> Select grouping | M49: England (%)
C50: =Dashboard_Data!$JP$8 -> n/a | D50: =Dashboard_Data!$JP$9 -> n/a | E50: =Dashboard_Data!$JP$10 -> 0.3264708769 | G50: =Dashboard_Data!$JZ$8 -> n/a | H50: =Dashboard_Data!$JZ$9 -> n/a | I50: =Dashboard_Data!$JZ$10 -> 69.16571704 | K50: =Dashboard_Data!$JF$8 -> n/a | L50: =Dashboard_Data!$JF$9 -> n/a | M50: =Dashboard_Data!$JF$10 -> 12.06427368
C52: =Dashboard_Data!$IP$6 -> Depression (DEP002) % underlying achievement | G52: =Dashboard_Data!$KD$6 -> Hypnotics: ADQ/STAR PU (ADQ based) | K52: =Dashboard_Data!$HV$6 -> Mental Health (MH010) % achieving upper threshold or above
C53: =INDEX(Table_Metrics,MATCH(C52,Table_Metrics_ID,0),MATCH("Description",Table_Metrics_Header,0)) -> Percentage underlying achievement at CCG level for QOF indicator DEP002 inclusive of exceptions | G53: =INDEX(Table_Metrics,MATCH(G52,Table_Metrics_ID,0),MATCH("Description",Table_Metrics_Header,0)) -> Number of average daily quantities (ADQs) for benzodiazepines (indicated for use as hypnotics) and “Z” drugs per hypnotics (BNF 4.1.1 sub-set) ADQ based STAR-PU | K53: =INDEX(Table_Metrics,MATCH(K52,Table_Metrics_ID,0),MATCH("Description",Table_Metrics_Header,0)) -> The percentage of practices in a CCG that achieve upper threshold or above (90% or more inclusive of exceptions) for QOF indicator MH010
C55: CCG (%) | D55: =IF($G$4="","Select grouping",$G$4 & " (%)") -> Select grouping | E55: England (%) | G55: CCG | H55: =IF($G$4="","Select grouping",$G$4) -> Select grouping | I55: England | K55: CCG (%) | L55: =IF($G$4="","Select grouping",$G$4 & " (%)") -> Select grouping | M55: England (%)
C56: =Dashboard_Data!$IV$8 -> n/a | D56: =Dashboard_Data!$IV$9 -> n/a | E56: =Dashboard_Data!$IV$10 -> 58.36175244 | G56: =Dashboard_Data!$KJ$8 -> n/a | H56: =Dashboard_Data!$KJ$9 -> n/a | I56: =Dashboard_Data!$KJ$10 -> 0.2741214945 | K56: =Dashboard_Data!$IB$8 -> n/a | L56: =Dashboard_Data!$IB$9 -> n/a | M56: =Dashboard_Data!$IB$10 -> 48.09630459
C58: =Dashboard_Data!$IF$6 -> Mental Health (MH010) % underlying achievement
C59: =INDEX(Table_Metrics,MATCH(C58,Table_Metrics_ID,0),MATCH("Description",Table_Metrics_Header,0)) -> Percentage underlying achievement at CCG level for QOF indicator MH010 inclusive of exceptions
C61: CCG (%) | D61: =IF($G$4="","Select grouping",$G$4 & " (%)") -> Select grouping | E61: England (%)
C62: =Dashboard_Data!$IL$8 -> n/a | D62: =Dashboard_Data!$IL$9 -> n/a | E62: =Dashboard_Data!$IL$10 -> 81.32560232
A64: ANTIBIOTICS
C65: =Dashboard_Data!$J$6 -> Antibacterial items per STAR PU | G65: =Dashboard_Data!$T$6 -> Co-amoxiclav, Cephalosporins and Quinolones % items
C66: =INDEX(Table_Metrics,MATCH(C65,Table_Metrics_ID,0),MATCH("Description",Table_Metrics_Header,0)) -> Number of prescription items for antibacterial drugs (BNF 5.1) per oral antibacterial (BNF 5.1 sub-set) ITEM based STAR-PU | G66: =INDEX(Table_Metrics,MATCH(G65,Table_Metrics_ID,0),MATCH("Description",Table_Metrics_Header,0)) -> Number of prescription items for co-amoxiclav, cephalosporins and quinolones as a percentage of the total number of prescription items for selected antibacterial drugs (sub-set of BNF 5.1)
C68: CCG | D68: =IF($G$4="","Select grouping",$G$4) -> Select grouping | E68: England | G68: CCG (%) | H68: =IF($G$4="","Select grouping",$G$4 & " (%)") -> Select grouping | I68: England (%)
C69: =Dashboard_Data!$P$8 -> n/a | D69: =Dashboard_Data!$P$9 -> n/a | E69: =Dashboard_Data!$P$10 -> 0.3166850227 | G69: =Dashboard_Data!$Z$8 -> n/a | H69: =Dashboard_Data!$Z$9 -> n/a | I69: =Dashboard_Data!$Z$10 -> 10.09721669
A71: DIABETES
C72: =Dashboard_Data!OT6 -> Antidiabetic drugs (BNF section 6.1.2) | G72: =Dashboard_Data!$GR$6 -> Diabetes Mellitus (DM009) % achieving upper threshold or above
C73: =INDEX(Table_Metrics,MATCH(C72,Table_Metrics_ID,0),MATCH("Description",Table_Metrics_Header,0)) -> Proportion of prescription items for Sulfonylureas (BNF 6.1.2.1), Biguanides (BNF 6.1.2.2) and Other antidiabetes drugs (BNF 6.1.2.3): Dipeptidylpeptidase-4 inhibitors / Glucagon-like peptide-1 receptor activators / Insulin release stimulators / Intestinal alpha glucosidases inhibitors / Sodium-glucose co-transporter 2 (SGLT2) inhibitors / Thiazolidinediones | G73: =INDEX(Table_Metrics,MATCH(G72,Table_Metrics_ID,0),MATCH("Description",Table_Metrics_Header,0)) -> The percentage of practices in a CCG that achieve upper threshold or above (92% or more inclusive of exceptions) for QOF indicator DM009
C75: Click to view complete summary | G75: CCG (%) | H75: =IF($G$4="","Select grouping",$G$4 & " (%)") -> Select grouping | I75: England (%)
G76: =Dashboard_Data!$GX$8 -> n/a | H76: =Dashboard_Data!$GX$9 -> n/a | I76: =Dashboard_Data!$GX$10 -> 0.8464939987
C78: =Dashboard_Data!$HB$6 -> Diabetes Mellitus (DM009) % underlying achievement | G78: =Dashboard_Data!$HL$6 -> Emergency diabetes admissions
C79: =INDEX(Table_Metrics,MATCH(C78,Table_Metrics_ID,0),MATCH("Description",Table_Metrics_Header,0)) -> Percentage underlying achievement at CCG level for QOF indicator DM009 inclusive of exceptions | G79: =INDEX(Table_Metrics,MATCH(G78,Table_Metrics_ID,0),MATCH("Description",Table_Metrics_Header,0)) -> The number of emergency attendances for diabetes per 100 patients on the practice diabetes disease register
C81: CCG (%) | D81: =IF($G$4="","Select grouping",$G$4 & " (%)") -> Select grouping | E81: England (%) | G81: CCG | H81: =IF($G$4="","Select grouping",$G$4) -> Select grouping | I81: England
C82: =Dashboard_Data!$HH$8 -> n/a | D82: =Dashboard_Data!$HH$9 -> n/a | E82: =Dashboard_Data!$HH$10 -> 80.19166307 | G82: =Dashboard_Data!$HR$8 -> n/a | H82: =Dashboard_Data!$HR$9 -> n/a | I82: =Dashboard_Data!$HR$10 -> 1.34218004
A84: OSTEOPOROSIS
C85: =Dashboard_Data!$KN$6 -> DDD Osteoporosis drugs per 100,000 resident population | G85: =Dashboard_Data!$KX$6 -> Osteoporosis (OST003) % achieving upper threshold or above | K85: =Dashboard_Data!$LH$6 -> Osteoporosis (OST003) % underlying achievement
C86: =INDEX(Table_Metrics,MATCH(C85,Table_Metrics_ID,0),MATCH("Description",Table_Metrics_Header,0)) -> The total number of Daily Defined Doses (DDDs) for Alendronic acid; Raloxifene Hydrochloride; Risedronate Sodium (excluding 30mg tablets); Strontium ranelate; Teriparatide per 100,000 resident population | G86: =INDEX(Table_Metrics,MATCH(G85,Table_Metrics_ID,0),MATCH("Description",Table_Metrics_Header,0)) -> The percentage of practices in a CCG that achieve upper threshold or above (60% or more inclusive of exceptions) for QOF indicator OST003 | K86: =INDEX(Table_Metrics,MATCH(K85,Table_Metrics_ID,0),MATCH("Description",Table_Metrics_Header,0)) -> Percentage underlying achievement at CCG level for QOF indicator OST003 inclusive of exceptions
C88: CCG | D88: =IF($G$4="","Select grouping",$G$4) -> Select grouping | E88: England | G88: CCG (%) | H88: =IF($G$4="","Select grouping",$G$4 & " (%)") -> Select grouping | I88: England (%) | K88: CCG (%) | L88: =IF($G$4="","Select grouping",$G$4 & " (%)") -> Select grouping | M88: England (%)
C89: =Dashboard_Data!$KT$8 -> n/a | D89: =Dashboard_Data!$KT$9 -> n/a | E89: =Dashboard_Data!$KT$10 -> 567266.71 | G89: =Dashboard_Data!$LD$8 -> n/a | H89: =Dashboard_Data!$LD$9 -> n/a | I89: =Dashboard_Data!$LD$10 -> 76.99177771 | K89: =Dashboard_Data!$LN$8 -> n/a | L89: =Dashboard_Data!$LN$9 -> n/a | M89: =Dashboard_Data!$LN$10 -> 67.37661424
A91: RESPIRATORY
C92: =Dashboard_Data!$MB$6 -> Asthma (AST003) % achieving upper threshold or above | G92: =Dashboard_Data!$LR$6 -> Asthma (AST003) % underlying achievement | K92: =Dashboard_Data!$ML$6 -> Emergency Asthma Admissions
C93: =INDEX(Table_Metrics,MATCH(C92,Table_Metrics_ID,0),MATCH("Description",Table_Metrics_Header,0)) -> The percentage of practices in a CCG that achieve upper threshold or above (70% or more inclusive of exceptions) for QOF indicator AST003 | G93: =INDEX(Table_Metrics,MATCH(G92,Table_Metrics_ID,0),MATCH("Description",Table_Metrics_Header,0)) -> Percentage underlying achievement at CCG level for QOF indicator AST003 inclusive of exceptions | K93: =INDEX(Table_Metrics,MATCH(K92,Table_Metrics_ID,0),MATCH("Description",Table_Metrics_Header,0)) -> The number of emergency attendances for asthma per 100 patients on the practice asthma disease register
C95: CCG (%) | D95: =IF($G$4="","Select grouping",$G$4 & " (%)") -> Select grouping | E95: England (%) | G95: CCG (%) | H95: =IF($G$4="","Select grouping",$G$4 & " (%)") -> Select grouping | I95: England (%) | K95: CCG | L95: =IF($G$4="","Select grouping",$G$4) -> Select grouping | M95: England
C96: =Dashboard_Data!$MH$8 -> n/a | D96: =Dashboard_Data!$MH$9 -> n/a | E96: =Dashboard_Data!$MH$10 -> 62.85064443 | G96: =Dashboard_Data!$LX$8 -> n/a | H96: =Dashboard_Data!$LX$9 -> n/a | I96: =Dashboard_Data!$LX$10 -> 70.18484585 | K96: =Dashboard_Data!$MR$8 -> n/a | L96: =Dashboard_Data!$MR$9 -> n/a | M96: =Dashboard_Data!$MR$10 -> 1.741873333
C98: =Dashboard_Data!$NF$6 -> Chronic Obstructive Pulmonary Disease (COPD003) % achieving upper threshold or above | G98: =Dashboard_Data!$MV$6 -> Chronic Obstructive Pulmonary Disease (COPD003) % underlying achievement | K98: =Dashboard_Data!$NP$6 -> Emergency COPD Admissions
C99: =INDEX(Table_Metrics,MATCH(C98,Table_Metrics_ID,0),MATCH("Description",Table_Metrics_Header,0)) -> The percentage of practices in a CCG that achieve upper threshold or above (90% or more inclusive of exceptions) for QOF indicator COPD003 | G99: =INDEX(Table_Metrics,MATCH(G98,Table_Metrics_ID,0),MATCH("Description",Table_Metrics_Header,0)) -> Percentage underlying achievement at CCG level for QOF indicator COPD003 inclusive of exceptions | K99: =INDEX(Table_Metrics,MATCH(K98,Table_Metrics_ID,0),MATCH("Description",Table_Metrics_Header,0)) -> The number of emergency attendances for chronic obstructive pulmonary disease per 100 patients on the practice COPD disease register
C101: CCG (%) | D101: =IF($G$4="","Select grouping",$G$4 & " (%)") -> Select grouping | E101: England (%) | G101: CCG (%) | H101: =IF($G$4="","Select grouping",$G$4 & " (%)") -> Select grouping | I101: England (%) | K101: CCG | L101: =IF($G$4="","Select grouping",$G$4) -> Select grouping | M101: England
C102: =Dashboard_Data!$NL$8 -> n/a | D102: =Dashboard_Data!$NL$9 -> n/a | E102: =Dashboard_Data!$NL$10 -> 20.53164557 | G102: =Dashboard_Data!$NB$8 -> n/a | H102: =Dashboard_Data!$NB$9 -> n/a | I102: =Dashboard_Data!$NB$10 -> 80.41016775 | K102: =Dashboard_Data!$NV$8 -> n/a | L102: =Dashboard_Data!$NV$9 -> n/a | M102: =Dashboard_Data!$NV$10 -> 11.78372408
A104: PATIENT SAFETY
C105: =Dashboard_Data!$NZ$6 -> Safety Audit Software | G105: =Dashboard_Data!$OJ$6 -> Summary Care Records Availability
C106: =INDEX(Table_Metrics,MATCH(C105,Table_Metrics_ID,0),MATCH("Description",Table_Metrics_Header,0)) -> Proportion of GP practices as a percentage of the total practices in the CCG who have access to software that supports safety audits NB: can currently only measure practices who are engaged with the PINCER tool | G106: =INDEX(Table_Metrics,MATCH(G105,Table_Metrics_ID,0),MATCH("Description",Table_Metrics_Header,0)) -> Proportion of practices who are live with the Summary Care Record (SCR) and therefore able to upload patient records onto the SCR.
C108: CCG (%) | D108: =IF($G$4="","Select grouping",$G$4 & " (%)") -> Select grouping | E108: England (%) | G108: CCG (%) | H108: =IF($G$4="","Select grouping",$G$4 & " (%)") -> Select grouping | I108: England (%)
C109: =Dashboard_Data!$OF$8 -> n/a | D109: =Dashboard_Data!$OF$9 -> n/a | E109: =Dashboard_Data!$OF$10 -> 23.98172821 | G109: =Dashboard_Data!$OP$8 -> n/a | H109: =Dashboard_Data!$OP$9 -> n/a | I109: =Dashboard_Data!$OP$10 -> 95.463838

Sheet Dashboard_Data (hidden)
B2: Dashboard Labels (Charts & Notes)
B3: Group Selection | C3: =IF('Dashboard (CCG)'!$C$4="","", IF('Dashboard (CCG)'!$G$4<>"AHSN",'Dashboard (CCG)'!$H$4, IF('Split AHSN'!$B$6=1,'Dashboard (CCG)'!$H$4, IF('Split AHSN'!$B$5="Valid",'Dashboard (CCG)'!$L$4,"… (Please select AHSN)")))) -> 
B4: Base | C4: All CCGs
B5: Highlighted | C5: =IF('Dashboard (CCG)'!$C$4="","Selected CCG",'Dashboard (CCG)'!$C$4) -> Selected CCG | J5: ANTIBIOTICS: Antibacterial items per STAR PU | T5: ANTIBIOTICS: Co-amoxiclav, Cephalosporins and Quinolones % items | AD5: COMMUNITY SUPPORT: % EPS items | AN5: COMMUNITY SUPPORT: % of EPS Repeat Dispensing | AX5: COMMUNITY SUPPORT: % of pharmacies conducting MUR | BH5: COMMUNITY SUPPORT: % of Pharmacies conducting NMS | BR5: COMMUNITY SUPPORT: % of practices enabled for EPS | CB5: COMMUNITY SUPPORT: % of practices submitting EPS | CL5: COMMUNITY SUPPORT: Number of MUR per 1,000 dispensed items | CV5: COMMUNITY SUPPORT: Number of NMS per 1,000 dispensed items | DF5: COMMUNITY SUPPORT: % of Repeat Dispensing | DP5: CVD/CHD: Atrial fibrillation (AF004) % achieving upper threshold or above | DZ5: CVD/CHD: Atrial fibrillation (AF004) % underlying achievement | EJ5: CVD/CHD: NSAIDS Ibuprofen & Naproxen % items | ET5: CVD/CHD: Atrial fibrillation: Access to audit tool | FD5: CVD/CHD: Heart failure (HF003) % underlying achievement | FN5: CVD/CHD: Heart failure (HF003) % achieving upper threshold or above | FX5: CVD/CHD: Heart failure (HF004) % underlying achievement | GH5: CVD/CHD: Heart failure (HF004) % achieving upper threshold or above | GR5: DIABETES: Diabetes Mellitus (DM009) % achieving upper threshold or above | HB5: DIABETES: Diabetes Mellitus (DM009) % underlying achievement | HL5: DIABETES: Emergency diabetes admissions | HV5: MENTAL HEALTH: Mental Health (MH010) % achieving upper threshold or above | IF5: MENTAL HEALTH: Mental Health (MH010) % underlying achievement | IP5: MENTAL HEALTH: Depression (DEP002) % underlying achievement | IZ5: MENTAL HEALTH: Depression (DEP002) % achieving upper threshold or above | JJ5: MENTAL HEALTH: Antidepressants (selected): ADQ/STAR PU (ADQ based) | JT5: MENTAL HEALTH: Antidepressants: First choice % items | KD5: MENTAL HEALTH: Hypnotics: ADQ/STAR PU (ADQ based) | KN5: OSTEOPOROSIS: DDD Osteoporosis drugs per 100,000 resident population | KX5: OSTEOPOROSIS: Osteoporosis (OST003) % achieving upper threshold or above | LH5: OSTEOPOROSIS: Osteoporosis (OST003) % underlying achievement | LR5: RESPIRATORY: Asthma (AST003) % underlying achievement | MB5: RESPIRATORY: Asthma (AST003) % achieving upper threshold or above | ML5: RESPIRATORY: Emergency Asthma Admissions | MV5: RESPIRATORY: Chronic Obstructive Pulmonary Disease (COPD003) % underlying achievement | NF5: RESPIRATORY: Chronic Obstructive Pulmonary Disease (COPD003) % achieving upper threshold or above | NP5: RESPIRATORY: Emergency COPD Admissions | NZ5: PATIENT SAFETY: Safety Audit Software | OJ5: PATIENT SAFETY: Summary Care Records Availability | OT5: DIABETES: Antidiabetic drugs (BNF section 6.1.2) | PP5: CVD/CHD: Oral Anticoagulants % items
B6: Group Label | C6: =IF('Dashboard (CCG)'!$G$4="","CCGs in group","CCGs in "& IF('Dashboard (CCG)'!$G$4="AHSN",'Split AHSN'!$B$9,'Dashboard (CCG)'!$H$4)) -> CCGs in group | J6: =IF(J5="","",INDEX(Table_Metrics,MATCH(J5,Table_Metrics_Title,0),MATCH("Metric Name",Table_Metrics_Header,0))) -> Antibacterial items per STAR PU | T6: =IF(T5="","",INDEX(Table_Metrics,MATCH(T5,Table_Metrics_Title,0),MATCH("Metric Name",Table_Metrics_Header,0))) -> Co-amoxiclav, Cephalosporins and Quinolones % items | AD6: =IF(AD5="","",INDEX(Table_Metrics,MATCH(AD5,Table_Metrics_Title,0),MATCH("Metric Name",Table_Metrics_Header,0))) -> % EPS items | AN6: =IF(AN5="","",INDEX(Table_Metrics,MATCH(AN5,Table_Metrics_Title,0),MATCH("Metric Name",Table_Metrics_Header,0))) -> % of EPS Repeat Dispensing | AX6: =IF(AX5="","",INDEX(Table_Metrics,MATCH(AX5,Table_Metrics_Title,0),MATCH("Metric Name",Table_Metrics_Header,0))) -> % of Pharmacies conducting MUR | BH6: =IF(BH5="","",INDEX(Table_Metrics,MATCH(BH5,Table_Metrics_Title,0),MATCH("Metric Name",Table_Metrics_Header,0))) -> % of Pharmacies conducting NMS | BR6: =IF(BR5="","",INDEX(Table_Metrics,MATCH(BR5,Table_Metrics_Title,0),MATCH("Metric Name",Table_Metrics_Header,0))) -> % of Practices enabled for EPS | CB6: =IF(CB5="","",INDEX(Table_Metrics,MATCH(CB5,Table_Metrics_Title,0),MATCH("Metric Name",Table_Metrics_Header,0))) -> % of Practices submitting EPS | CL6: =IF(CL5="","",INDEX(Table_Metrics,MATCH(CL5,Table_Metrics_Title,0),MATCH("Metric Name",Table_Metrics_Header,0))) -> Number of MUR per 1,000 dispensed items | CV6: =IF(CV5="","",INDEX(Table_Metrics,MATCH(CV5,Table_Metrics_Title,0),MATCH("Metric Name",Table_Metrics_Header,0))) -> Number of NMS per 1,000 dispensed items | DF6: =IF(DF5="","",INDEX(Table_Metrics,MATCH(DF5,Table_Metrics_Title,0),MATCH("Metric Name",Table_Metrics_Header,0))) -> % of Repeat Dispensing | DP6: =IF(DP5="","",INDEX(Table_Metrics,MATCH(DP5,Table_Metrics_Title,0),MATCH("Metric Name",Table_Metrics_Header,0))) -> Atrial fibrillation (AF004) % achieving upper threshold or above | DZ6: =IF(DZ5="","",INDEX(Table_Metrics,MATCH(DZ5,Table_Metrics_Title,0),MATCH("Metric Name",Table_Metrics_Header,0))) -> Atrial fibrillation (AF004) % underlying achievement | EJ6: =IF(EJ5="","",INDEX(Table_Metrics,MATCH(EJ5,Table_Metrics_Title,0),MATCH("Metric Name",Table_Metrics_Header,0))) -> NSAIDS Ibuprofen & Naproxen % items | ET6: =IF(ET5="","",INDEX(Table_Metrics,MATCH(ET5,Table_Metrics_Title,0),MATCH("Metric Name",Table_Metrics_Header,0))) -> Atrial fibrillation: Access to audit tool | FD6: =IF(FD5="","",INDEX(Table_Metrics,MATCH(FD5,Table_Metrics_Title,0),MATCH("Metric Name",Table_Metrics_Header,0))) -> Heart failure (HF003) % underlying achievement | FN6: =IF(FN5="","",INDEX(Table_Metrics,MATCH(FN5,Table_Metrics_Title,0),MATCH("Metric Name",Table_Metrics_Header,0))) -> Heart failure (HF003) % achieving upper threshold or above | FX6: =IF(FX5="","",INDEX(Table_Metrics,MATCH(FX5,Table_Metrics_Title,0),MATCH("Metric Name",Table_Metrics_Header,0))) -> Heart failure (HF004) % underlying achievement | GH6: =IF(GH5="","",INDEX(Table_Metrics,MATCH(GH5,Table_Metrics_Title,0),MATCH("Metric Name",Table_Metrics_Header,0))) -> Heart failure (HF004) % achieving upper threshold or above | GR6: =IF(GR5="","",INDEX(Table_Metrics,MATCH(GR5,Table_Metrics_Title,0),MATCH("Metric Name",Table_Metrics_Header,0))) -> Diabetes Mellitus (DM009) % achieving upper threshold or above | HB6: =IF(HB5="","",INDEX(Table_Metrics,MATCH(HB5,Table_Metrics_Title,0),MATCH("Metric Name",Table_Metrics_Header,0))) -> Diabetes Mellitus (DM009) % underlying achievement | HL6: =IF(HL5="","",INDEX(Table_Metrics,MATCH(HL5,Table_Metrics_Title,0),MATCH("Metric Name",Table_Metrics_Header,0))) -> Emergency diabetes admissions | HV6: =IF(HV5="","",INDEX(Table_Metrics,MATCH(HV5,Table_Metrics_Title,0),MATCH("Metric Name",Table_Metrics_Header,0))) -> Mental Health (MH010) % achieving upper threshold or above | IF6: =IF(IF5="","",INDEX(Table_Metrics,MATCH(IF5,Table_Metrics_Title,0),MATCH("Metric Name",Table_Metrics_Header,0))) -> Mental Health (MH010) % underlying achievement | IP6: =IF(IP5="","",INDEX(Table_Metrics,MATCH(IP5,Table_Metrics_Title,0),MATCH("Metric Name",Table_Metrics_Header,0))) -> Depression (DEP002) % underlying achievement | IZ6: =IF(IZ5="","",INDEX(Table_Metrics,MATCH(IZ5,Table_Metrics_Title,0),MATCH("Metric Name",Table_Metrics_Header,0))) -> Depression (DEP002) % achieving upper threshold or above | JJ6: =IF(JJ5="","",INDEX(Table_Metrics,MATCH(JJ5,Table_Metrics_Title,0),MATCH("Metric Name",Table_Metrics_Header,0))) -> Antidepressants (selected): ADQ/STAR PU (ADQ based) | JT6: =IF(JT5="","",INDEX(Table_Metrics,MATCH(JT5,Table_Metrics_Title,0),MATCH("Metric Name",Table_Metrics_Header,0))) -> Antidepressants: First choice % items | KD6: =IF(KD5="","",INDEX(Table_Metrics,MATCH(KD5,Table_Metrics_Title,0),MATCH("Metric Name",Table_Metrics_Header,0))) -> Hypnotics: ADQ/STAR PU (ADQ based) | KN6: =IF(KN5="","",INDEX(Table_Metrics,MATCH(KN5,Table_Metrics_Title,0),MATCH("Metric Name",Table_Metrics_Header,0))) -> DDD Osteoporosis drugs per 100,000 resident population | KX6: =IF(KX5="","",INDEX(Table_Metrics,MATCH(KX5,Table_Metrics_Title,0),MATCH("Metric Name",Table_Metrics_Header,0))) -> Osteoporosis (OST003) % achieving upper threshold or above | LH6: =IF(LH5="","",INDEX(Table_Metrics,MATCH(LH5,Table_Metrics_Title,0),MATCH("Metric Name",Table_Metrics_Header,0))) -> Osteoporosis (OST003) % underlying achievement | LR6: =IF(LR5="","",INDEX(Table_Metrics,MATCH(LR5,Table_Metrics_Title,0),MATCH("Metric Name",Table_Metrics_Header,0))) -> Asthma (AST003) % underlying achievement | MB6: =IF(MB5="","",INDEX(Table_Metrics,MATCH(MB5,Table_Metrics_Title,0),MATCH("Metric Name",Table_Metrics_Header,0))) -> Asthma (AST003) % achieving upper threshold or above | ML6: =IF(ML5="","",INDEX(Table_Metrics,MATCH(ML5,Table_Metrics_Title,0),MATCH("Metric Name",Table_Metrics_Header,0))) -> Emergency Asthma Admissions | MV6: =IF(MV5="","",INDEX(Table_Metrics,MATCH(MV5,Table_Metrics_Title,0),MATCH("Metric Name",Table_Metrics_Header,0))) -> Chronic Obstructive Pulmonary Disease (COPD003) % underlying achievement | NF6: =IF(NF5="","",INDEX(Table_Metrics,MATCH(NF5,Table_Metrics_Title,0),MATCH("Metric Name",Table_Metrics_Header,0))) -> Chronic Obstructive Pulmonary Disease (COPD003) % achieving upper threshold or above | NP6: =IF(NP5="","",INDEX(Table_Metrics,MATCH(NP5,Table_Metrics_Title,0),MATCH("Metric Name",Table_Metrics_Header,0))) -> Emergency COPD Admissions | NZ6: =IF(NZ5="","",INDEX(Table_Metrics,MATCH(NZ5,Table_Metrics_Title,0),MATCH("Metric Name",Table_Metrics_Header,0))) -> Safety Audit Software | OJ6: =IF(OJ5="","",INDEX(Table_Metrics,MATCH(OJ5,Table_Metrics_Title,0),MATCH("Metric Name",Table_Metrics_Header,0))) -> Summary Care Records Availability | OT6: =IF(OT5="","",INDEX(Table_Metrics,MATCH(OT5,Table_Metrics_Title,0),MATCH("Metric Name",Table_Metrics_Header,0))) -> Antidiabetic drugs (BNF section 6.1.2) | PP6: =IF(PP5="","",INDEX(Table_Metrics,MATCH(PP5,Table_Metrics_Title,0),MATCH("Metric Name",Table_Metrics_Header,0))) -> Oral Anticoagulants % items
B7: Scope average line | C7: =IF('Dashboard (CCG)'!$G$4="","Group avg", IF('Dashboard (CCG)'!$G$4="AHSN",'Split AHSN'!$B$9,'Dashboard (CCG)'!$H$4) & " (AVG)") -> Group avg | J7: =IF(J5="","",INDEX(Table_Metrics,MATCH(J5,Table_Metrics_Title,0),MATCH("Identifier",Table_Metrics_Header,0))) -> Number of prescription items for antibacterial drugs | T7: =IF(T5="","",INDEX(Table_Metrics,MATCH(T5,Table_Metrics_Title,0),MATCH("Identifier",Table_Metrics_Header,0))) -> Percentage of total prescription items for Co-amoxiclav, Cephalosporins and Quinolones (%) | AD7: =IF(AD5="","",INDEX(Table_Metrics,MATCH(AD5,Table_Metrics_Title,0),MATCH("Identifier",Table_Metrics_Header,0))) -> Percentage of all items supplied electronically (%) | AN7: =IF(AN5="","",INDEX(Table_Metrics,MATCH(AN5,Table_Metrics_Title,0),MATCH("Identifier",Table_Metrics_Header,0))) -> Percentage of EPS repeat dispensing items (%) | AX7: =IF(AX5="","",INDEX(Table_Metrics,MATCH(AX5,Table_Metrics_Title,0),MATCH("Identifier",Table_Metrics_Header,0))) -> Percentage of pharmacies conducting MUR (%) | BH7: =IF(BH5="","",INDEX(Table_Metrics,MATCH(BH5,Table_Metrics_Title,0),MATCH("Identifier",Table_Metrics_Header,0))) -> Percentage of pharmacies conducting NMS (%) | BR7: =IF(BR5="","",INDEX(Table_Metrics,MATCH(BR5,Table_Metrics_Title,0),MATCH("Identifier",Table_Metrics_Header,0))) -> Percentage of practices enabled for EPS (%) | CB7: =IF(CB5="","",INDEX(Table_Metrics,MATCH(CB5,Table_Metrics_Title,0),MATCH("Identifier",Table_Metrics_Header,0))) -> Percentage of practices undertaking EPS (%) | CL7: =IF(CL5="","",INDEX(Table_Metrics,MATCH(CL5,Table_Metrics_Title,0),MATCH("Identifier",Table_Metrics_Header,0))) -> Number of MUR per 1,000 prescription items dispensed | CV7: =IF(CV5="","",INDEX(Table_Metrics,MATCH(CV5,Table_Metrics_Title,0),MATCH("Identifier",Table_Metrics_Header,0))) -> Number of NMS per 1,000 dispensed items | DF7: =IF(DF5="","",INDEX(Table_Metrics,MATCH(DF5,Table_Metrics_Title,0),MATCH("Identifier",Table_Metrics_Header,0))) -> Percentage of repeat dispensing items (%) | DP7: =IF(DP5="","",INDEX(Table_Metrics,MATCH(DP5,Table_Metrics_Title,0),MATCH("Identifier",Table_Metrics_Header,0))) -> Percentage of practices achieving upper threshold or above inclusive of exceptions (%) | DZ7: =IF(DZ5="","",INDEX(Table_Metrics,MATCH(DZ5,Table_Metrics_Title,0),MATCH("Identifier",Table_Metrics_Header,0))) -> Percentage underlying achievement level inclusive of exceptions (%) | EJ7: =IF(EJ5="","",INDEX(Table_Metrics,MATCH(EJ5,Table_Metrics_Title,0),MATCH("Identifier",Table_Metrics_Header,0))) -> Percentage of total prescription items for all NSAIDs (%) | ET7: =IF(ET5="","",INDEX(Table_Metrics,MATCH(ET5,Table_Metrics_Title,0),MATCH("Identifier",Table_Metrics_Header,0))) -> Percentage of practices that have downloaded GRASP AF audit tool (%) | FD7: =IF(FD5="","",INDEX(Table_Metrics,MATCH(FD5,Table_Metrics_Title,0),MATCH("Identifier",Table_Metrics_Header,0))) -> Percentage underlying achievement level inclusive of exceptions (%) | FN7: =IF(FN5="","",INDEX(Table_Metrics,MATCH(FN5,Table_Metrics_Title,0),MATCH("Identifier",Table_Metrics_Header,0))) -> Percentage of practices achieving upper threshold or above inclusive of exceptions (%) | FX7: =IF(FX5="","",INDEX(Table_Metrics,MATCH(FX5,Table_Metrics_Title,0),MATCH("Identifier",Table_Metrics_Header,0))) -> Percentage underlying achievement level inclusive of exceptions (%) | GH7: =IF(GH5="","",INDEX(Table_Metrics,MATCH(GH5,Table_Metrics_Title,0),MATCH("Identifier",Table_Metrics_Header,0))) -> Percentage of practices achieving upper threshold or above inclusive of exceptions (%) | GR7: =IF(GR5="","",INDEX(Table_Metrics,MATCH(GR5,Table_Metrics_Title,0),MATCH("Identifier",Table_Metrics_Header,0))) -> Percentage of practices achieving upper threshold or above (%) | HB7: =IF(HB5="","",INDEX(Table_Metrics,MATCH(HB5,Table_Metrics_Title,0),MATCH("Identifier",Table_Metrics_Header,0))) -> Percentage underlying achievement level inclusive of exceptions (%) | HL7: =IF(HL5="","",INDEX(Table_Metrics,MATCH(HL5,Table_Metrics_Title,0),MATCH("Identifier",Table_Metrics_Header,0))) -> Emergency diabetes admissions per 100 patients on practice diabetes disease register | HV7: =IF(HV5="","",INDEX(Table_Metrics,MATCH(HV5,Table_Metrics_Title,0),MATCH("Identifier",Table_Metrics_Header,0))) -> Percentage of practices achieving upper threshold or above (%) | IF7: =IF(IF5="","",INDEX(Table_Metrics,MATCH(IF5,Table_Metrics_Title,0),MATCH("Identifier",Table_Metrics_Header,0))) -> Percentage underlying achievement level inclusive of exceptions (%) | IP7: =IF(IP5="","",INDEX(Table_Metrics,MATCH(IP5,Table_Metrics_Title,0),MATCH("Identifier",Table_Metrics_Header,0))) -> Percentage underlying achievement level inclusive of exceptions (%) | IZ7: =IF(IZ5="","",INDEX(Table_Metrics,MATCH(IZ5,Table_Metrics_Title,0),MATCH("Identifier",Table_Metrics_Header,0))) -> Percentage of practices achieving upper threshold or above inclusive of exceptions (%) | JJ7: =IF(JJ5="","",INDEX(Table_Metrics,MATCH(JJ5,Table_Metrics_Title,0),MATCH("Identifier",Table_Metrics_Header,0))) -> Antidepressants ADQ / STAR PU | JT7: =IF(JT5="","",INDEX(Table_Metrics,MATCH(JT5,Table_Metrics_Title,0),MATCH("Identifier",Table_Metrics_Header,0))) -> Proportion of first choice generic SSRIs (%) | KD7: =IF(KD5="","",INDEX(Table_Metrics,MATCH(KD5,Table_Metrics_Title,0),MATCH("Identifier",Table_Metrics_Header,0))) -> Hypnotics ADQ / STAR PU | KN7: =IF(KN5="","",INDEX(Table_Metrics,MATCH(KN5,Table_Metrics_Title,0),MATCH("Identifier",Table_Metrics_Header,0))) -> Osteoporosis DDD per 100,000 resident population | KX7: =IF(KX5="","",INDEX(Table_Metrics,MATCH(KX5,Table_Metrics_Title,0),MATCH("Identifier",Table_Metrics_Header,0))) -> Percentage of practices achieving upper threshold or above inclusive of exceptions (%) | LH7: =IF(LH5="","",INDEX(Table_Metrics,MATCH(LH5,Table_Metrics_Title,0),MATCH("Identifier",Table_Metrics_Header,0))) -> Percentage underlying achievement level inclusive of exceptions (%) | LR7: =IF(LR5="","",INDEX(Table_Metrics,MATCH(LR5,Table_Metrics_Title,0),MATCH("Identifier",Table_Metrics_Header,0))) -> Percentage underlying achievement level inclusive of exceptions (%) | MB7: =IF(MB5="","",INDEX(Table_Metrics,MATCH(MB5,Table_Metrics_Title,0),MATCH("Identifier",Table_Metrics_Header,0))) -> Percentage of practices achieving upper threshold or above inclusive of exceptions (%) | ML7: =IF(ML5="","",INDEX(Table_Metrics,MATCH(ML5,Table_Metrics_Title,0),MATCH("Identifier",Table_Metrics_Header,0))) -> Emergency asthma admissions per 100 patients on asthma disease register | MV7: =IF(MV5="","",INDEX(Table_Metrics,MATCH(MV5,Table_Metrics_Title,0),MATCH("Identifier",Table_Metrics_Header,0))) -> Percentage underlying achievement level inclusive of exceptions (%) | NF7: =IF(NF5="","",INDEX(Table_Metrics,MATCH(NF5,Table_Metrics_Title,0),MATCH("Identifier",Table_Metrics_Header,0))) -> Percentage of practices achieving upper threshold or above inclusive of exceptions (%) | NP7: =IF(NP5="","",INDEX(Table_Metrics,MATCH(NP5,Table_Metrics_Title,0),MATCH("Identifier",Table_Metrics_Header,0))) -> Emergency COPD admissions per 100 patients on COPD disease register | NZ7: =IF(NZ5="","",INDEX(Table_Metrics,MATCH(NZ5,Table_Metrics_Title,0),MATCH("Identifier",Table_Metrics_Header,0))) -> Proportion of practices engaged with the PINCER tool (%) | OJ7: =IF(OJ5="","",INDEX(Table_Metrics,MATCH(OJ5,Table_Metrics_Title,0),MATCH("Identifier",Table_Metrics_Header,0))) -> Percentage of practices live with the SCR (%) | OT7: =IF(OT5="","",INDEX(Table_Metrics,MATCH(OT5,Table_Metrics_Title,0),MATCH("Identifier",Table_Metrics_Header,0))) -> Proportion of diabetes items | PP7: =IF(PP5="","",INDEX(Table_Metrics,MATCH(PP5,Table_Metrics_Title,0),MATCH("Identifier",Table_Metrics_Header,0))) -> Proportion of oral anticoagulants (%)
B8: England average line | C8: England (AVG) | J8: =N11 -> CCG Identifier | P8: =IF('Dashboard (CCG)'!$C$4="","n/a",SUMIF(R12:R222,"<>#N/A")) -> n/a | T8: =X11 -> CCG Identifier | Z8: =IF('Dashboard (CCG)'!$C$4="","n/a",SUMIF(AB12:AB222,"<>#N/A")) -> n/a | AD8: =AH11 -> CCG Identifier | AJ8: =IF('Dashboard (CCG)'!$C$4="","n/a",SUMIF(AL12:AL222,"<>#N/A")) -> n/a | AN8: =AR11 -> CCG Identifier | AT8: =IF('Dashboard (CCG)'!$C$4="","n/a",SUMIF(AV12:AV222,"<>#N/A")) -> n/a | AX8: =BB11 -> CCG Identifier | BD8: =IF('Dashboard (CCG)'!$C$4="","n/a",SUMIF(BF12:BF222,"<>#N/A")) -> n/a | BH8: =BL11 -> CCG Identifier | BN8: =IF('Dashboard (CCG)'!$C$4="","n/a",SUMIF(BP12:BP222,"<>#N/A")) -> n/a | BR8: =BV11 -> CCG Identifier | BX8: =IF('Dashboard (CCG)'!$C$4="","n/a",SUMIF(BZ12:BZ222,"<>#N/A")) -> n/a | CB8: =CF11 -> CCG Identifier | CH8: =IF('Dashboard (CCG)'!$C$4="","n/a",SUMIF(CJ12:CJ222,"<>#N/A")) -> n/a | CL8: =CP11 -> CCG Identifier | CR8: =IF('Dashboard (CCG)'!$C$4="","n/a",SUMIF(CT12:CT222,"<>#N/A")) -> n/a | CV8: =CZ11 -> CCG Identifier | DB8: =IF('Dashboard (CCG)'!$C$4="","n/a",SUMIF(DD12:DD222,"<>#N/A")) -> n/a | DF8: =DJ11 -> CCG Identifier | DL8: =IF('Dashboard (CCG)'!$C$4="","n/a",SUMIF(DN12:DN222,"<>#N/A")) -> n/a | DP8: =DT11 -> CCG Identifier | DV8: =IF('Dashboard (CCG)'!$C$4="","n/a",SUMIF(DX12:DX222,"<>#N/A")) -> n/a | DZ8: =ED11 -> CCG Identifier | EF8: =IF('Dashboard (CCG)'!$C$4="","n/a",SUMIF(EH12:EH222,"<>#N/A")) -> n/a | EJ8: =EN11 -> CCG Identifier | EP8: =IF('Dashboard (CCG)'!$C$4="","n/a",SUMIF(ER12:ER222,"<>#N/A")) -> n/a | ET8: =EX11 -> CCG Identifier | EZ8: =IF('Dashboard (CCG)'!$C$4="","n/a",SUMIF(FB12:FB222,"<>#N/A")) -> n/a | FD8: =FH11 -> CCG Identifier | FJ8: =IF('Dashboard (CCG)'!$C$4="","n/a",SUMIF(FL12:FL222,"<>#N/A")) -> n/a | FN8: =FR11 -> CCG Identifier | FT8: =IF('Dashboard (CCG)'!$C$4="","n/a",SUMIF(FV12:FV222,"<>#N/A")) -> n/a | FX8: =GB11 -> CCG Identifier | GD8: =IF('Dashboard (CCG)'!$C$4="","n/a",SUMIF(GF12:GF222,"<>#N/A")) -> n/a | GH8: =GL11 -> CCG Identifier | GN8: =IF('Dashboard (CCG)'!$C$4="","n/a",SUMIF(GP12:GP222,"<>#N/A")) -> n/a | GR8: =GV11 -> CCG Identifier | GX8: =IF('Dashboard (CCG)'!$C$4="","n/a",SUMIF(GZ12:GZ222,"<>#N/A")) -> n/a | HB8: =HF11 -> CCG Identifier | HH8: =IF('Dashboard (CCG)'!$C$4="","n/a",SUMIF(HJ12:HJ222,"<>#N/A")) -> n/a | HL8: =HP11 -> CCG Identifier | HR8: =IF('Dashboard (CCG)'!$C$4="","n/a",SUMIF(HT12:HT222,"<>#N/A")) -> n/a | HV8: =HZ11 -> CCG Identifier | IB8: =IF('Dashboard (CCG)'!$C$4="","n/a",SUMIF(ID12:ID222,"<>#N/A")) -> n/a | IF8: =IJ11 -> CCG Identifier | IL8: =IF('Dashboard (CCG)'!$C$4="","n/a",SUMIF(IN12:IN222,"<>#N/A")) -> n/a | IP8: =IT11 -> CCG Identifier | IV8: =IF('Dashboard (CCG)'!$C$4="","n/a",SUMIF(IX12:IX222,"<>#N/A")) -> n/a | IZ8: =JD11 -> CCG Identifier | JF8: =IF('Dashboard (CCG)'!$C$4="","n/a",SUMIF(JH12:JH222,"<>#N/A")) -> n/a | JJ8: =JN11 -> CCG Identifier | JP8: =IF('Dashboard (CCG)'!$C$4="","n/a",SUMIF(JR12:JR222,"<>#N/A")) -> n/a | JT8: =JX11 -> CCG Identifier | JZ8: =IF('Dashboard (CCG)'!$C$4="","n/a",SUMIF(KB12:KB222,"<>#N/A")) -> n/a | KD8: =KH11 -> CCG Identifier | KJ8: =IF('Dashboard (CCG)'!$C$4="","n/a",SUMIF(KL12:KL222,"<>#N/A")) -> n/a | KN8: =KR11 -> CCG Identifier | KT8: =IF('Dashboard (CCG)'!$C$4="","n/a",SUMIF(KV12:KV222,"<>#N/A")) -> n/a | KX8: =LB11 -> CCG Identifier | LD8: =IF('Dashboard (CCG)'!$C$4="","n/a",SUMIF(LF12:LF222,"<>#N/A")) -> n/a | LH8: =LL11 -> CCG Identifier | LN8: =IF('Dashboard (CCG)'!$C$4="","n/a",SUMIF(LP12:LP222,"<>#N/A")) -> n/a | LR8: =LV11 -> CCG Identifier | LX8: =IF('Dashboard (CCG)'!$C$4="","n/a",SUMIF(LZ12:LZ222,"<>#N/A")) -> n/a | MB8: =MF11 -> CCG Identifier | MH8: =IF('Dashboard (CCG)'!$C$4="","n/a",SUMIF(MJ12:MJ222,"<>#N/A")) -> n/a | ML8: =MP11 -> CCG Identifier | MR8: =IF('Dashboard (CCG)'!$C$4="","n/a",SUMIF(MT12:MT222,"<>#N/A")) -> n/a | MV8: =MZ11 -> CCG Identifier | NB8: =IF('Dashboard (CCG)'!$C$4="","n/a",SUMIF(ND12:ND222,"<>#N/A")) -> n/a | NF8: =NJ11 -> CCG Identifier | NL8: =IF('Dashboard (CCG)'!$C$4="","n/a",SUMIF(NN12:NN222,"<>#N/A")) -> n/a | NP8: =NT11 -> CCG Identifier | NV8: =IF('Dashboard (CCG)'!$C$4="","n/a",SUMIF(NX12:NX222,"<>#N/A")) -> n/a | NZ8: =OD11 -> CCG Identifier | OF8: =IF('Dashboard (CCG)'!$C$4="","n/a",SUMIF(OH12:OH222,"<>#N/A")) -> n/a | OJ8: =ON11 -> CCG Identifier | OP8: =IF('Dashboard (CCG)'!$C$4="","n/a",SUMIF(OR12:OR222,"<>#N/A")) -> n/a
B9: Figures at a glance | C9: =IF('Dashboard (CCG)'!$C$4="","Please select a CCG to view on the dashboard","") -> Please select a CCG to view on the dashboard | J9: =P11 -> Indicator | P9: =IF('Dashboard (CCG)'!$G$4="","n/a", IF('Dashboard (CCG)'!$G$4="AREA",SUMIFS(RawData_AT[Identifier],RawData_AT[Metric Name],J$6,RawData_AT[Name],$C$3), IF('Dashboard (CCG)'!$G$4="AHSN",SUMIFS(RawData_AHSN[Identifier],RawData_AHSN[Metric Name],J$6,RawData_AHSN[Name],$C$3), IF('Dashboard (CCG)'!$G$4="CLUSTER",SUMIFS(RawData_CLS[Identifier],RawData_CLS[Metric Name],J$6,RawData_CLS[Name],$C$3))))) -> n/a | T9: =Z11 -> Indicator | Z9: =IF('Dashboard (CCG)'!$G$4="","n/a", IF('Dashboard (CCG)'!$G$4="AREA",SUMIFS(RawData_AT[Identifier],RawData_AT[Metric Name],T$6,RawData_AT[Name],$C$3), IF('Dashboard (CCG)'!$G$4="AHSN",SUMIFS(RawData_AHSN[Identifier],RawData_AHSN[Metric Name],T$6,RawData_AHSN[Name],$C$3), IF('Dashboard (CCG)'!$G$4="CLUSTER",SUMIFS(RawData_CLS[Identifier],RawData_CLS[Metric Name],T$6,RawData_CLS[Name],$C$3))))) -> n/a | AD9: =AJ11 -> Indicator | AJ9: =IF('Dashboard (CCG)'!$G$4="","n/a", IF('Dashboard (CCG)'!$G$4="AREA",SUMIFS(RawData_AT[Identifier],RawData_AT[Metric Name],AD$6,RawData_AT[Name],$C$3), IF('Dashboard (CCG)'!$G$4="AHSN",SUMIFS(RawData_AHSN[Identifier],RawData_AHSN[Metric Name],AD$6,RawData_AHSN[Name],$C$3), IF('Dashboard (CCG)'!$G$4="CLUSTER",SUMIFS(RawData_CLS[Identifier],RawData_CLS[Metric Name],AD$6,RawData_CLS[Name],$C$3))))) -> n/a | AN9: =AT11 -> Indicator | AT9: =IF('Dashboard (CCG)'!$G$4="","n/a", IF('Dashboard (CCG)'!$G$4="AREA",SUMIFS(RawData_AT[Identifier],RawData_AT[Metric Name],AN$6,RawData_AT[Name],$C$3), IF('Dashboard (CCG)'!$G$4="AHSN",SUMIFS(RawData_AHSN[Identifier],RawData_AHSN[Metric Name],AN$6,RawData_AHSN[Name],$C$3), IF('Dashboard (CCG)'!$G$4="CLUSTER",SUMIFS(RawData_CLS[Identifier],RawData_CLS[Metric Name],AN$6,RawData_CLS[Name],$C$3))))) -> n/a | AX9: =BD11 -> Indicator | BD9: =IF('Dashboard (CCG)'!$G$4="","n/a", IF('Dashboard (CCG)'!$G$4="AREA",SUMIFS(RawData_AT[Identifier],RawData_AT[Metric Name],AX$6,RawData_AT[Name],$C$3), IF('Dashboard (CCG)'!$G$4="AHSN",SUMIFS(RawData_AHSN[Identifier],RawData_AHSN[Metric Name],AX$6,RawData_AHSN[Name],$C$3), IF('Dashboard (CCG)'!$G$4="CLUSTER",SUMIFS(RawData_CLS[Identifier],RawData_CLS[Metric Name],AX$6,RawData_CLS[Name],$C$3))))) -> n/a | BH9: =BN11 -> Indicator | BN9: =IF('Dashboard (CCG)'!$G$4="","n/a", IF('Dashboard (CCG)'!$G$4="AREA",SUMIFS(RawData_AT[Identifier],RawData_AT[Metric Name],BH$6,RawData_AT[Name],$C$3), IF('Dashboard (CCG)'!$G$4="AHSN",SUMIFS(RawData_AHSN[Identifier],RawData_AHSN[Metric Name],BH$6,RawData_AHSN[Name],$C$3), IF('Dashboard (CCG)'!$G$4="CLUSTER",SUMIFS(RawData_CLS[Identifier],RawData_CLS[Metric Name],BH$6,RawData_CLS[Name],$C$3))))) -> n/a | BR9: =BX11 -> Indicator | BX9: =IF('Dashboard (CCG)'!$G$4="","n/a", IF('Dashboard (CCG)'!$G$4="AREA",SUMIFS(RawData_AT[Identifier],RawData_AT[Metric Name],BR$6,RawData_AT[Name],$C$3), IF('Dashboard (CCG)'!$G$4="AHSN",SUMIFS(RawData_AHSN[Identifier],RawData_AHSN[Metric Name],BR$6,RawData_AHSN[Name],$C$3), IF('Dashboard (CCG)'!$G$4="CLUSTER",SUMIFS(RawData_CLS[Identifier],RawData_CLS[Metric Name],BR$6,RawData_CLS[Name],$C$3))))) -> n/a | CB9: =CH11 -> Indicator | CH9: =IF('Dashboard (CCG)'!$G$4="","n/a", IF('Dashboard (CCG)'!$G$4="AREA",SUMIFS(RawData_AT[Identifier],RawData_AT[Metric Name],CB$6,RawData_AT[Name],$C$3), IF('Dashboard (CCG)'!$G$4="AHSN",SUMIFS(RawData_AHSN[Identifier],RawData_AHSN[Metric Name],CB$6,RawData_AHSN[Name],$C$3), IF('Dashboard (CCG)'!$G$4="CLUSTER",SUMIFS(RawData_CLS[Identifier],RawData_CLS[Metric Name],CB$6,RawData_CLS[Name],$C$3))))) -> n/a | CL9: =CR11 -> Indicator | CR9: =IF('Dashboard (CCG)'!$G$4="","n/a", IF('Dashboard (CCG)'!$G$4="AREA",SUMIFS(RawData_AT[Identifier],RawData_AT[Metric Name],CL$6,RawData_AT[Name],$C$3), IF('Dashboard (CCG)'!$G$4="AHSN",SUMIFS(RawData_AHSN[Identifier],RawData_AHSN[Metric Name],CL$6,RawData_AHSN[Name],$C$3), IF('Dashboard (CCG)'!$G$4="CLUSTER",SUMIFS(RawData_CLS[Identifier],RawData_CLS[Metric Name],CL$6,RawData_CLS[Name],$C$3))))) -> n/a | CV9: =DB11 -> Indicator | DB9: =IF('Dashboard (CCG)'!$G$4="","n/a", IF('Dashboard (CCG)'!$G$4="AREA",SUMIFS(RawData_AT[Identifier],RawData_AT[Metric Name],CV$6,RawData_AT[Name],$C$3), IF('Dashboard (CCG)'!$G$4="AHSN",SUMIFS(RawData_AHSN[Identifier],RawData_AHSN[Metric Name],CV$6,RawData_AHSN[Name],$C$3), IF('Dashboard (CCG)'!$G$4="CLUSTER",SUMIFS(RawData_CLS[Identifier],RawData_CLS[Metric Name],CV$6,RawData_CLS[Name],$C$3))))) -> n/a | DF9: =DL11 -> Indicator | DL9: =IF('Dashboard (CCG)'!$G$4="","n/a", IF('Dashboard (CCG)'!$G$4="AREA",SUMIFS(RawData_AT[Identifier],RawData_AT[Metric Name],DF$6,RawData_AT[Name],$C$3), IF('Dashboard (CCG)'!$G$4="AHSN",SUMIFS(RawData_AHSN[Identifier],RawData_AHSN[Metric Name],DF$6,RawData_AHSN[Name],$C$3), IF('Dashboard (CCG)'!$G$4="CLUSTER",SUMIFS(RawData_CLS[Identifier],RawData_CLS[Metric Name],DF$6,RawData_CLS[Name],$C$3))))) -> n/a | DP9: =DV11 -> Indicator | DV9: =IF('Dashboard (CCG)'!$G$4="","n/a", IF('Dashboard (CCG)'!$G$4="AREA",SUMIFS(RawData_AT[Identifier],RawData_AT[Metric Name],DP$6,RawData_AT[Name],$C$3), IF('Dashboard (CCG)'!$G$4="AHSN",SUMIFS(RawData_AHSN[Identifier],RawData_AHSN[Metric Name],DP$6,RawData_AHSN[Name],$C$3), IF('Dashboard (CCG)'!$G$4="CLUSTER",SUMIFS(RawData_CLS[Identifier],RawData_CLS[Metric Name],DP$6,RawData_CLS[Name],$C$3))))) -> n/a | DZ9: =EF11 -> Indicator | EF9: =IF('Dashboard (CCG)'!$G$4="","n/a", IF('Dashboard (CCG)'!$G$4="AREA",SUMIFS(RawData_AT[Identifier],RawData_AT[Metric Name],DZ$6,RawData_AT[Name],$C$3), IF('Dashboard (CCG)'!$G$4="AHSN",SUMIFS(RawData_AHSN[Identifier],RawData_AHSN[Metric Name],DZ$6,RawData_AHSN[Name],$C$3), IF('Dashboard (CCG)'!$G$4="CLUSTER",SUMIFS(RawData_CLS[Identifier],RawData_CLS[Metric Name],DZ$6,RawData_CLS[Name],$C$3))))) -> n/a | EJ9: =EP11 -> Indicator | EP9: =IF('Dashboard (CCG)'!$G$4="","n/a", IF('Dashboard (CCG)'!$G$4="AREA",SUMIFS(RawData_AT[Identifier],RawData_AT[Metric Name],EJ$6,RawData_AT[Name],$C$3), IF('Dashboard (CCG)'!$G$4="AHSN",SUMIFS(RawData_AHSN[Identifier],RawData_AHSN[Metric Name],EJ$6,RawData_AHSN[Name],$C$3), IF('Dashboard (CCG)'!$G$4="CLUSTER",SUMIFS(RawData_CLS[Identifier],RawData_CLS[Metric Name],EJ$6,RawData_CLS[Name],$C$3))))) -> n/a | ET9: =EZ11 -> Indicator | EZ9: =IF('Dashboard (CCG)'!$G$4="","n/a", IF('Dashboard (CCG)'!$G$4="AREA",SUMIFS(RawData_AT[Identifier],RawData_AT[Metric Name],ET$6,RawData_AT[Name],$C$3), IF('Dashboard (CCG)'!$G$4="AHSN",SUMIFS(RawData_AHSN[Identifier],RawData_AHSN[Metric Name],ET$6,RawData_AHSN[Name],$C$3), IF('Dashboard (CCG)'!$G$4="CLUSTER",SUMIFS(RawData_CLS[Identifier],RawData_CLS[Metric Name],ET$6,RawData_CLS[Name],$C$3))))) -> n/a | FD9: =FJ11 -> Indicator | FJ9: =IF('Dashboard (CCG)'!$G$4="","n/a", IF('Dashboard (CCG)'!$G$4="AREA",SUMIFS(RawData_AT[Identifier],RawData_AT[Metric Name],FD$6,RawData_AT[Name],$C$3), IF('Dashboard (CCG)'!$G$4="AHSN",SUMIFS(RawData_AHSN[Identifier],RawData_AHSN[Metric Name],FD$6,RawData_AHSN[Name],$C$3), IF('Dashboard (CCG)'!$G$4="CLUSTER",SUMIFS(RawData_CLS[Identifier],RawData_CLS[Metric Name],FD$6,RawData_CLS[Name],$C$3))))) -> n/a | FN9: =FT11 -> Indicator | FT9: =IF('Dashboard (CCG)'!$G$4="","n/a", IF('Dashboard (CCG)'!$G$4="AREA",SUMIFS(RawData_AT[Identifier],RawData_AT[Metric Name],FN$6,RawData_AT[Name],$C$3), IF('Dashboard (CCG)'!$G$4="AHSN",SUMIFS(RawData_AHSN[Identifier],RawData_AHSN[Metric Name],FN$6,RawData_AHSN[Name],$C$3), IF('Dashboard (CCG)'!$G$4="CLUSTER",SUMIFS(RawData_CLS[Identifier],RawData_CLS[Metric Name],FN$6,RawData_CLS[Name],$C$3))))) -> n/a | FX9: =GD11 -> Indicator | GD9: =IF('Dashboard (CCG)'!$G$4="","n/a", IF('Dashboard (CCG)'!$G$4="AREA",SUMIFS(RawData_AT[Identifier],RawData_AT[Metric Name],FX$6,RawData_AT[Name],$C$3), IF('Dashboard (CCG)'!$G$4="AHSN",SUMIFS(RawData_AHSN[Identifier],RawData_AHSN[Metric Name],FX$6,RawData_AHSN[Name],$C$3), IF('Dashboard (CCG)'!$G$4="CLUSTER",SUMIFS(RawData_CLS[Identifier],RawData_CLS[Metric Name],FX$6,RawData_CLS[Name],$C$3))))) -> n/a | GH9: =GN11 -> Indicator | GN9: =IF('Dashboard (CCG)'!$G$4="","n/a", IF('Dashboard (CCG)'!$G$4="AREA",SUMIFS(RawData_AT[Identifier],RawData_AT[Metric Name],GH$6,RawData_AT[Name],$C$3), IF('Dashboard (CCG)'!$G$4="AHSN",SUMIFS(RawData_AHSN[Identifier],RawData_AHSN[Metric Name],GH$6,RawData_AHSN[Name],$C$3), IF('Dashboard (CCG)'!$G$4="CLUSTER",SUMIFS(RawData_CLS[Identifier],RawData_CLS[Metric Name],GH$6,RawData_CLS[Name],$C$3))))) -> n/a | GR9: =GX11 -> Indicator | GX9: =IF('Dashboard (CCG)'!$G$4="","n/a", IF('Dashboard (CCG)'!$G$4="AREA",SUMIFS(RawData_AT[Identifier],RawData_AT[Metric Name],GR$6,RawData_AT[Name],$C$3), IF('Dashboard (CCG)'!$G$4="AHSN",SUMIFS(RawData_AHSN[Identifier],RawData_AHSN[Metric Name],GR$6,RawData_AHSN[Name],$C$3), IF('Dashboard (CCG)'!$G$4="CLUSTER",SUMIFS(RawData_CLS[Identifier],RawData_CLS[Metric Name],GR$6,RawData_CLS[Name],$C$3))))) -> n/a | HB9: =HH11 -> Indicator | HH9: =IF('Dashboard (CCG)'!$G$4="","n/a", IF('Dashboard (CCG)'!$G$4="AREA",SUMIFS(RawData_AT[Identifier],RawData_AT[Metric Name],HB$6,RawData_AT[Name],$C$3), IF('Dashboard (CCG)'!$G$4="AHSN",SUMIFS(RawData_AHSN[Identifier],RawData_AHSN[Metric Name],HB$6,RawData_AHSN[Name],$C$3), IF('Dashboard (CCG)'!$G$4="CLUSTER",SUMIFS(RawData_CLS[Identifier],RawData_CLS[Metric Name],HB$6,RawData_CLS[Name],$C$3))))) -> n/a | HL9: =HR11 -> Indicator | HR9: =IF('Dashboard (CCG)'!$G$4="","n/a", IF('Dashboard (CCG)'!$G$4="AREA",SUMIFS(RawData_AT[Identifier],RawData_AT[Metric Name],HL$6,RawData_AT[Name],$C$3), IF('Dashboard (CCG)'!$G$4="AHSN",SUMIFS(RawData_AHSN[Identifier],RawData_AHSN[Metric Name],HL$6,RawData_AHSN[Name],$C$3), IF('Dashboard (CCG)'!$G$4="CLUSTER",SUMIFS(RawData_CLS[Identifier],RawData_CLS[Metric Name],HL$6,RawData_CLS[Name],$C$3))))) -> n/a | HV9: =IB11 -> Indicator | IB9: =IF('Dashboard (CCG)'!$G$4="","n/a", IF('Dashboard (CCG)'!$G$4="AREA",SUMIFS(RawData_AT[Identifier],RawData_AT[Metric Name],HV$6,RawData_AT[Name],$C$3), IF('Dashboard (CCG)'!$G$4="AHSN",SUMIFS(RawData_AHSN[Identifier],RawData_AHSN[Metric Name],HV$6,RawData_AHSN[Name],$C$3), IF('Dashboard (CCG)'!$G$4="CLUSTER",SUMIFS(RawData_CLS[Identifier],RawData_CLS[Metric Name],HV$6,RawData_CLS[Name],$C$3))))) -> n/a | IF9: =IL11 -> Indicator | IL9: =IF('Dashboard (CCG)'!$G$4="","n/a", IF('Dashboard (CCG)'!$G$4="AREA",SUMIFS(RawData_AT[Identifier],RawData_AT[Metric Name],IF$6,RawData_AT[Name],$C$3), IF('Dashboard (CCG)'!$G$4="AHSN",SUMIFS(RawData_AHSN[Identifier],RawData_AHSN[Metric Name],IF$6,RawData_AHSN[Name],$C$3), IF('Dashboard (CCG)'!$G$4="CLUSTER",SUMIFS(RawData_CLS[Identifier],RawData_CLS[Metric Name],IF$6,RawData_CLS[Name],$C$3))))) -> n/a | IP9: =IV11 -> Indicator | IV9: =IF('Dashboard (CCG)'!$G$4="","n/a", IF('Dashboard (CCG)'!$G$4="AREA",SUMIFS(RawData_AT[Identifier],RawData_AT[Metric Name],IP$6,RawData_AT[Name],$C$3), IF('Dashboard (CCG)'!$G$4="AHSN",SUMIFS(RawData_AHSN[Identifier],RawData_AHSN[Metric Name],IP$6,RawData_AHSN[Name],$C$3), IF('Dashboard (CCG)'!$G$4="CLUSTER",SUMIFS(RawData_CLS[Identifier],RawData_CLS[Metric Name],IP$6,RawData_CLS[Name],$C$3))))) -> n/a | IZ9: =JF11 -> Indicator | JF9: =IF('Dashboard (CCG)'!$G$4="","n/a", IF('Dashboard (CCG)'!$G$4="AREA",SUMIFS(RawData_AT[Identifier],RawData_AT[Metric Name],IZ$6,RawData_AT[Name],$C$3), IF('Dashboard (CCG)'!$G$4="AHSN",SUMIFS(RawData_AHSN[Identifier],RawData_AHSN[Metric Name],IZ$6,RawData_AHSN[Name],$C$3), IF('Dashboard (CCG)'!$G$4="CLUSTER",SUMIFS(RawData_CLS[Identifier],RawData_CLS[Metric Name],IZ$6,RawData_CLS[Name],$C$3))))) -> n/a | JJ9: =JP11 -> Indicator | JP9: =IF('Dashboard (CCG)'!$G$4="","n/a", IF('Dashboard (CCG)'!$G$4="AREA",SUMIFS(RawData_AT[Identifier],RawData_AT[Metric Name],JJ$6,RawData_AT[Name],$C$3), IF('Dashboard (CCG)'!$G$4="AHSN",SUMIFS(RawData_AHSN[Identifier],RawData_AHSN[Metric Name],JJ$6,RawData_AHSN[Name],$C$3), IF('Dashboard (CCG)'!$G$4="CLUSTER",SUMIFS(RawData_CLS[Identifier],RawData_CLS[Metric Name],JJ$6,RawData_CLS[Name],$C$3))))) -> n/a | JT9: =JZ11 -> Indicator | JZ9: =IF('Dashboard (CCG)'!$G$4="","n/a", IF('Dashboard (CCG)'!$G$4="AREA",SUMIFS(RawData_AT[Identifier],RawData_AT[Metric Name],JT$6,RawData_AT[Name],$C$3), IF('Dashboard (CCG)'!$G$4="AHSN",SUMIFS(RawData_AHSN[Identifier],RawData_AHSN[Metric Name],JT$6,RawData_AHSN[Name],$C$3), IF('Dashboard (CCG)'!$G$4="CLUSTER",SUMIFS(RawData_CLS[Identifier],RawData_CLS[Metric Name],JT$6,RawData_CLS[Name],$C$3))))) -> n/a | KD9: =KJ11 -> Indicator | KJ9: =IF('Dashboard (CCG)'!$G$4="","n/a", IF('Dashboard (CCG)'!$G$4="AREA",SUMIFS(RawData_AT[Identifier],RawData_AT[Metric Name],KD$6,RawData_AT[Name],$C$3), IF('Dashboard (CCG)'!$G$4="AHSN",SUMIFS(RawData_AHSN[Identifier],RawData_AHSN[Metric Name],KD$6,RawData_AHSN[Name],$C$3), IF('Dashboard (CCG)'!$G$4="CLUSTER",SUMIFS(RawData_CLS[Identifier],RawData_CLS[Metric Name],KD$6,RawData_CLS[Name],$C$3))))) -> n/a | KN9: =KT11 -> Indicator | KT9: =IF('Dashboard (CCG)'!$G$4="","n/a", IF('Dashboard (CCG)'!$G$4="AREA",SUMIFS(RawData_AT[Identifier],RawData_AT[Metric Name],KN$6,RawData_AT[Name],$C$3), IF('Dashboard (CCG)'!$G$4="AHSN",SUMIFS(RawData_AHSN[Identifier],RawData_AHSN[Metric Name],KN$6,RawData_AHSN[Name],$C$3), IF('Dashboard (CCG)'!$G$4="CLUSTER",SUMIFS(RawData_CLS[Identifier],RawData_CLS[Metric Name],KN$6,RawData_CLS[Name],$C$3))))) -> n/a | KX9: =LD11 -> Indicator | LD9: =IF('Dashboard (CCG)'!$G$4="","n/a", IF('Dashboard (CCG)'!$G$4="AREA",SUMIFS(RawData_AT[Identifier],RawData_AT[Metric Name],KX$6,RawData_AT[Name],$C$3), IF('Dashboard (CCG)'!$G$4="AHSN",SUMIFS(RawData_AHSN[Identifier],RawData_AHSN[Metric Name],KX$6,RawData_AHSN[Name],$C$3), IF('Dashboard (CCG)'!$G$4="CLUSTER",SUMIFS(RawData_CLS[Identifier],RawData_CLS[Metric Name],KX$6,RawData_CLS[Name],$C$3))))) -> n/a | LH9: =LN11 -> Indicator | LN9: =IF('Dashboard (CCG)'!$G$4="","n/a", IF('Dashboard (CCG)'!$G$4="AREA",SUMIFS(RawData_AT[Identifier],RawData_AT[Metric Name],LH$6,RawData_AT[Name],$C$3), IF('Dashboard (CCG)'!$G$4="AHSN",SUMIFS(RawData_AHSN[Identifier],RawData_AHSN[Metric Name],LH$6,RawData_AHSN[Name],$C$3), IF('Dashboard (CCG)'!$G$4="CLUSTER",SUMIFS(RawData_CLS[Identifier],RawData_CLS[Metric Name],LH$6,RawData_CLS[Name],$C$3))))) -> n/a | LR9: =LX11 -> Indicator | LX9: =IF('Dashboard (CCG)'!$G$4="","n/a", IF('Dashboard (CCG)'!$G$4="AREA",SUMIFS(RawData_AT[Identifier],RawData_AT[Metric Name],LR$6,RawData_AT[Name],$C$3), IF('Dashboard (CCG)'!$G$4="AHSN",SUMIFS(RawData_AHSN[Identifier],RawData_AHSN[Metric Name],LR$6,RawData_AHSN[Name],$C$3), IF('Dashboard (CCG)'!$G$4="CLUSTER",SUMIFS(RawData_CLS[Identifier],RawData_CLS[Metric Name],LR$6,RawData_CLS[Name],$C$3))))) -> n/a | MB9: =MH11 -> Indicator | MH9: =IF('Dashboard (CCG)'!$G$4="","n/a", IF('Dashboard (CCG)'!$G$4="AREA",SUMIFS(RawData_AT[Identifier],RawData_AT[Metric Name],MB$6,RawData_AT[Name],$C$3), IF('Dashboard (CCG)'!$G$4="AHSN",SUMIFS(RawData_AHSN[Identifier],RawData_AHSN[Metric Name],MB$6,RawData_AHSN[Name],$C$3), IF('Dashboard (CCG)'!$G$4="CLUSTER",SUMIFS(RawData_CLS[Identifier],RawData_CLS[Metric Name],MB$6,RawData_CLS[Name],$C$3))))) -> n/a | ML9: =MR11 -> Indicator | MR9: =IF('Dashboard (CCG)'!$G$4="","n/a", IF('Dashboard (CCG)'!$G$4="AREA",SUMIFS(RawData_AT[Identifier],RawData_AT[Metric Name],ML$6,RawData_AT[Name],$C$3), IF('Dashboard (CCG)'!$G$4="AHSN",SUMIFS(RawData_AHSN[Identifier],RawData_AHSN[Metric Name],ML$6,RawData_AHSN[Name],$C$3), IF('Dashboard (CCG)'!$G$4="CLUSTER",SUMIFS(RawData_CLS[Identifier],RawData_CLS[Metric Name],ML$6,RawData_CLS[Name],$C$3))))) -> n/a | MV9: =NB11 -> Indicator | NB9: =IF('Dashboard (CCG)'!$G$4="","n/a", IF('Dashboard (CCG)'!$G$4="AREA",SUMIFS(RawData_AT[Identifier],RawData_AT[Metric Name],MV$6,RawData_AT[Name],$C$3), IF('Dashboard (CCG)'!$G$4="AHSN",SUMIFS(RawData_AHSN[Identifier],RawData_AHSN[Metric Name],MV$6,RawData_AHSN[Name],$C$3), IF('Dashboard (CCG)'!$G$4="CLUSTER",SUMIFS(RawData_CLS[Identifier],RawData_CLS[Metric Name],MV$6,RawData_CLS[Name],$C$3))))) -> n/a | NF9: =NL11 -> Indicator | NL9: =IF('Dashboard (CCG)'!$G$4="","n/a", IF('Dashboard (CCG)'!$G$4="AREA",SUMIFS(RawData_AT[Identifier],RawData_AT[Metric Name],NF$6,RawData_AT[Name],$C$3), IF('Dashboard (CCG)'!$G$4="AHSN",SUMIFS(RawData_AHSN[Identifier],RawData_AHSN[Metric Name],NF$6,RawData_AHSN[Name],$C$3), IF('Dashboard (CCG)'!$G$4="CLUSTER",SUMIFS(RawData_CLS[Identifier],RawData_CLS[Metric Name],NF$6,RawData_CLS[Name],$C$3))))) -> n/a | NP9: =NV11 -> Indicator | NV9: =IF('Dashboard (CCG)'!$G$4="","n/a", IF('Dashboard (CCG)'!$G$4="AREA",SUMIFS(RawData_AT[Identifier],RawData_AT[Metric Name],NP$6,RawData_AT[Name],$C$3), IF('Dashboard (CCG)'!$G$4="AHSN",SUMIFS(RawData_AHSN[Identifier],RawData_AHSN[Metric Name],NP$6,RawData_AHSN[Name],$C$3), IF('Dashboard (CCG)'!$G$4="CLUSTER",SUMIFS(RawData_CLS[Identifier],RawData_CLS[Metric Name],NP$6,RawData_CLS[Name],$C$3))))) -> n/a | NZ9: =OF11 -> Indicator | OF9: =IF('Dashboard (CCG)'!$G$4="","n/a", IF('Dashboard (CCG)'!$G$4="AREA",SUMIFS(RawData_AT[Identifier],RawData_AT[Metric Name],NZ$6,RawData_AT[Name],$C$3), IF('Dashboard (CCG)'!$G$4="AHSN",SUMIFS(RawData_AHSN[Identifier],RawData_AHSN[Metric Name],NZ$6,RawData_AHSN[Name],$C$3), IF('Dashboard (CCG)'!$G$4="CLUSTER",SUMIFS(RawData_CLS[Identifier],RawData_CLS[Metric Name],NZ$6,RawData_CLS[Name],$C$3))))) -> n/a | OJ9: =OP11 -> Indicator | OP9: =IF('Dashboard (CCG)'!$G$4="","n/a", IF('Dashboard (CCG)'!$G$4="AREA",SUMIFS(RawData_AT[Identifier],RawData_AT[Metric Name],OJ$6,RawData_AT[Name],$C$3), IF('Dashboard (CCG)'!$G$4="AHSN",SUMIFS(RawData_AHSN[Identifier],RawData_AHSN[Metric Name],OJ$6,RawData_AHSN[Name],$C$3), IF('Dashboard (CCG)'!$G$4="CLUSTER",SUMIFS(RawData_CLS[Identifier],RawData_CLS[Metric Name],OJ$6,RawData_CLS[Name],$C$3))))) -> n/a
J10: =Q11 -> England Indicator | P10: =SUMIFS(RawData_Eng[Identifier],RawData_Eng[Metric Name],J$6) -> 0.3166850227 | T10: =AA11 -> England Indicator | Z10: =SUMIFS(RawData_Eng[Identifier],RawData_Eng[Metric Name],T$6) -> 10.09721669 | AD10: =AK11 -> England Indicator | AJ10: =SUMIFS(RawData_Eng[Identifier],RawData_Eng[Metric Name],AD$6) -> 14.8495095 | AN10: =AU11 -> England Indicator | AT10: =SUMIFS(RawData_Eng[Identifier],RawData_Eng[Metric Name],AN$6) -> 11.67990438 | AX10: =BE11 -> England Indicator | BD10: =SUMIFS(RawData_Eng[Identifier],RawData_Eng[Metric Name],AX$6) -> 81.88728496 | BH10: =BO11 -> England Indicator | BN10: =SUMIFS(RawData_Eng[Identifier],RawData_Eng[Metric Name],BH$6) -> 57.23526164 | BR10: =BY11 -> England Indicator | BX10: =SUMIFS(RawData_Eng[Identifier],RawData_Eng[Metric Name],BR$6) -> 45.41751527 | CB10: =CI11 -> England Indicator | CH10: =SUMIFS(RawData_Eng[Identifier],RawData_Eng[Metric Name],CB$6) -> 44.76832994 | CL10: =CS11 -> England Indicator | CR10: =SUMIFS(RawData_Eng[Identifier],RawData_Eng[Metric Name],CL$6) -> 3.256201293 | CV10: =DC11 -> England Indicator | DB10: =SUMIFS(RawData_Eng[Identifier],RawData_Eng[Metric Name],CV$6) -> 0.7726525349 | DF10: =DM11 -> England Indicator | DL10: =SUMIFS(RawData_Eng[Identifier],RawData_Eng[Metric Name],DF$6) -> 7.143634487 | DP10: =DW11 -> England Indicator | DV10: =SUMIFS(RawData_Eng[Identifier],RawData_Eng[Metric Name],DP$6) -> 48.46134283 | DZ10: =EG11 -> England Indicator | EF10: =SUMIFS(RawData_Eng[Identifier],RawData_Eng[Metric Name],DZ$6) -> 69.10967825 | EJ10: =EQ11 -> England Indicator | EP10: =SUMIFS(RawData_Eng[Identifier],RawData_Eng[Metric Name],EJ$6) -> 77.04676364 | ET10: =FA11 -> England Indicator | EZ10: =SUMIFS(RawData_Eng[Identifier],RawData_Eng[Metric Name],ET$6) -> 36.70179002 | FD10: =FK11 -> England Indicator | FJ10: =SUMIFS(RawData_Eng[Identifier],RawData_Eng[Metric Name],FD$6) -> 86.70148766 | FN10: =FU11 -> England Indicator | FT10: =SUMIFS(RawData_Eng[Identifier],RawData_Eng[Metric Name],FN$6) -> 41.38242894 | FX10: =GE11 -> England Indicator | GD10: =SUMIFS(RawData_Eng[Identifier],RawData_Eng[Metric Name],FX$6) -> 74.25195742 | GH10: =GO11 -> England Indicator | GN10: =SUMIFS(RawData_Eng[Identifier],RawData_Eng[Metric Name],GH$6) -> 78.05133578 | GR10: =GY11 -> England Indicator | GX10: =SUMIFS(RawData_Eng[Identifier],RawData_Eng[Metric Name],GR$6) -> 0.8464939987 | HB10: =HI11 -> England Indicator | HH10: =SUMIFS(RawData_Eng[Identifier],RawData_Eng[Metric Name],HB$6) -> 80.19166307 | HL10: =HS11 -> England Indicator | HR10: =SUMIFS(RawData_Eng[Identifier],RawData_Eng[Metric Name],HL$6) -> 1.34218004 | HV10: =IC11 -> England Indicator | IB10: =SUMIFS(RawData_Eng[Identifier],RawData_Eng[Metric Name],HV$6) -> 48.09630459 | IF10: =IM11 -> England Indicator | IL10: =SUMIFS(RawData_Eng[Identifier],RawData_Eng[Metric Name],IF$6) -> 81.32560232 | IP10: =IW11 -> England Indicator | IV10: =SUMIFS(RawData_Eng[Identifier],RawData_Eng[Metric Name],IP$6) -> 58.36175244 | IZ10: =JG11 -> England Indicator | JF10: =SUMIFS(RawData_Eng[Identifier],RawData_Eng[Metric Name],IZ$6) -> 12.06427368 | JJ10: =JQ11 -> England Indicator | JP10: =SUMIFS(RawData_Eng[Identifier],RawData_Eng[Metric Name],JJ$6) -> 0.3264708769 | JT10: =KA11 -> England Indicator | JZ10: =SUMIFS(RawData_Eng[Identifier],RawData_Eng[Metric Name],JT$6) -> 69.16571704 | KD10: =KK11 -> England Indicator | KJ10: =SUMIFS(RawData_Eng[Identifier],RawData_Eng[Metric Name],KD$6) -> 0.2741214945 | KN10: =KU11 -> England Indicator | KT10: =SUMIFS(RawData_Eng[Identifier],RawData_Eng[Metric Name],KN$6) -> 567266.71 | KX10: =LE11 -> England Indicator | LD10: =SUMIFS(RawData_Eng[Identifier],RawData_Eng[Metric Name],KX$6) -> 76.99177771 | LH10: =LO11 -> England Indicator | LN10: =SUMIFS(RawData_Eng[Identifier],RawData_Eng[Metric Name],LH$6) -> 67.37661424 | LR10: =LY11 -> England Indicator | LX10: =SUMIFS(RawData_Eng[Identifier],RawData_Eng[Metric Name],LR$6) -> 70.18484585 | MB10: =MI11 -> England Indicator | MH10: =SUMIFS(RawData_Eng[Identifier],RawData_Eng[Metric Name],MB$6) -> 62.85064443 | ML10: =MS11 -> England Indicator | MR10: =SUMIFS(RawData_Eng[Identifier],RawData_Eng[Metric Name],ML$6) -> 1.741873333 | MV10: =NC11 -> England Indicator | NB10: =SUMIFS(RawData_Eng[Identifier],RawData_Eng[Metric Name],MV$6) -> 80.41016775 | NF10: =NM11 -> England Indicator | NL10: =SUMIFS(RawData_Eng[Identifier],RawData_Eng[Metric Name],NF$6) -> 20.53164557 | NP10: =NW11 -> England Indicator | NV10: =SUMIFS(RawData_Eng[Identifier],RawData_Eng[Metric Name],NP$6) -> 11.78372408 | NZ10: =OG11 -> England Indicator | OF10: =SUMIFS(RawData_Eng[Identifier],RawData_Eng[Metric Name],NZ$6) -> 23.98172821 | OJ10: =OQ11 -> England Indicator | OP10: =SUMIFS(RawData_Eng[Identifier],RawData_Eng[Metric Name],OJ$6) -> 95.463838
A11: CCG/Trust Code | B11: CCG/Trust Name | C11: Area Code | D11: Area Name | E11: AHSN Code | F11: AHSN Name | G11: Cluster Code | H11: Cluster Name | J11: Rank | K11: Identifier | L11: Rank Sort | M11: CCG Name | N11: CCG Identifier | O11: ='Dashboard (CCG)'!$G$4 -> 0 | P11: ='Dashboard (CCG)'!$G$4 & " Indicator" -> Indicator | Q11: England Indicator | R11: Highlighted CCG | T11: Rank | U11: Identifier | V11: Rank Sort | W11: CCG Name | X11: CCG Identifier | Y11: ='Dashboard (CCG)'!$G$4 -> 0 | Z11: ='Dashboard (CCG)'!$G$4 & " Indicator" -> Indicator | AA11: England Indicator | AB11: Highlighted CCG | AD11: Rank | AE11: Identifier | AF11: Rank Sort | AG11: CCG Name | AH11: CCG Identifier | AI11: ='Dashboard (CCG)'!$G$4 -> 0 | AJ11: ='Dashboard (CCG)'!$G$4 & " Indicator" -> Indicator | AK11: England Indicator | AL11: Highlighted CCG | AN11: Rank | AO11: Identifier | AP11: Rank Sort | AQ11: CCG Name | AR11: CCG Identifier | AS11: ='Dashboard (CCG)'!$G$4 -> 0 | AT11: ='Dashboard (CCG)'!$G$4 & " Indicator" -> Indicator | AU11: England Indicator | AV11: Highlighted CCG | AX11: Rank | AY11: Identifier | AZ11: Rank Sort | BA11: CCG Name | BB11: CCG Identifier | BC11: ='Dashboard (CCG)'!$G$4 -> 0 | BD11: ='Dashboard (CCG)'!$G$4 & " Indicator" -> Indicator | BE11: England Indicator | BF11: Highlighted CCG | BH11: Rank | BI11: Identifier | BJ11: Rank Sort | BK11: CCG Name | BL11: CCG Identifier | BM11: ='Dashboard (CCG)'!$G$4 -> 0 | BN11: ='Dashboard (CCG)'!$G$4 & " Indicator" -> Indicator | BO11: England Indicator | BP11: Highlighted CCG | BR11: Rank | BS11: Identifier | BT11: Rank Sort | BU11: CCG Name | BV11: CCG Identifier | BW11: ='Dashboard (CCG)'!$G$4 -> 0 | BX11: ='Dashboard (CCG)'!$G$4 & " Indicator" -> Indicator | BY11: England Indicator | BZ11: Highlighted CCG | CB11: Rank | CC11: Identifier | CD11: Rank Sort | CE11: CCG Name | CF11: CCG Identifier | CG11: ='Dashboard (CCG)'!$G$4 -> 0 | CH11: ='Dashboard (CCG)'!$G$4 & " Indicator" -> Indicator | CI11: England Indicator | CJ11: Highlighted CCG | CL11: Rank | CM11: Identifier | CN11: Rank Sort | CO11: CCG Name | CP11: CCG Identifier | CQ11: ='Dashboard (CCG)'!$G$4 -> 0 | CR11: ='Dashboard (CCG)'!$G$4 & " Indicator" -> Indicator | CS11: England Indicator | CT11: Highlighted CCG | CV11: Rank | CW11: Identifier | CX11: Rank Sort | CY11: CCG Name | CZ11: CCG Identifier | DA11: ='Dashboard (CCG)'!$G$4 -> 0 | DB11: ='Dashboard (CCG)'!$G$4 & " Indicator" -> Indicator | DC11: England Indicator | DD11: Highlighted CCG | DF11: Rank | DG11: Identifier | DH11: Rank Sort | DI11: CCG Name | DJ11: CCG Identifier | DK11: ='Dashboard (CCG)'!$G$4 -> 0 | DL11: ='Dashboard (CCG)'!$G$4 & " Indicator" -> Indicator | DM11: England Indicator | DN11: Highlighted CCG | DP11: Rank | DQ11: Identifier | DR11: Rank Sort | DS11: CCG Name | DT11: CCG Identifier | DU11: ='Dashboard (CCG)'!$G$4 -> 0 | DV11: ='Dashboard (CCG)'!$G$4 & " Indicator" -> Indicator | DW11: England Indicator | DX11: Highlighted CCG | DZ11: Rank | EA11: Identifier | EB11: Rank Sort | EC11: CCG Name | ED11: CCG Identifier | EE11: ='Dashboard (CCG)'!$G$4 -> 0 | EF11: ='Dashboard (CCG)'!$G$4 & " Indicator" -> Indicator | EG11: England Indicator | EH11: Highlighted CCG | EJ11: Rank | EK11: Identifier | EL11: Rank Sort | EM11: CCG Name | EN11: CCG Identifier | EO11: ='Dashboard (CCG)'!$G$4 -> 0 | EP11: ='Dashboard (CCG)'!$G$4 & " Indicator" -> Indicator | EQ11: England Indicator | ER11: Highlighted CCG | ET11: Rank | EU11: Identifier | EV11: Rank Sort | EW11: CCG Name | EX11: CCG Identifier | EY11: ='Dashboard (CCG)'!$G$4 -> 0 | EZ11: ='Dashboard (CCG)'!$G$4 & " Indicator" -> Indicator | FA11: England Indicator | FB11: Highlighted CCG | FD11: Rank | FE11: Identifier | FF11: Rank Sort | FG11: CCG Name | FH11: CCG Identifier | FI11: ='Dashboard (CCG)'!$G$4 -> 0 | FJ11: ='Dashboard (CCG)'!$G$4 & " Indicator" -> Indicator | FK11: England Indicator | FL11: Highlighted CCG | FN11: Rank | FO11: Identifier | FP11: Rank Sort | FQ11: CCG Name | FR11: CCG Identifier | FS11: ='Dashboard (CCG)'!$G$4 -> 0 | FT11: ='Dashboard (CCG)'!$G$4 & " Indicator" -> Indicator | FU11: England Indicator | FV11: Highlighted CCG | FX11: Rank | FY11: Identifier | FZ11: Rank Sort | GA11: CCG Name | GB11: CCG Identifier | GC11: ='Dashboard (CCG)'!$G$4 -> 0 | GD11: ='Dashboard (CCG)'!$G$4 & " Indicator" -> Indicator | GE11: England Indicator | GF11: Highlighted CCG | GH11: Rank | GI11: Identifier | GJ11: Rank Sort | GK11: CCG Name | GL11: CCG Identifier | GM11: ='Dashboard (CCG)'!$G$4 -> 0 | GN11: ='Dashboard (CCG)'!$G$4 & " Indicator" -> Indicator | GO11: England Indicator | GP11: Highlighted CCG | GR11: Rank | GS11: Identifier | GT11: Rank Sort | GU11: CCG Name | GV11: CCG Identifier | GW11: ='Dashboard (CCG)'!$G$4 -> 0 | GX11: ='Dashboard (CCG)'!$G$4 & " Indicator" -> Indicator | GY11: England Indicator | GZ11: Highlighted CCG | HB11: Rank | HC11: Identifier | HD11: Rank Sort | HE11: CCG Name | HF11: CCG Identifier | HG11: ='Dashboard (CCG)'!$G$4 -> 0 | HH11: ='Dashboard (CCG)'!$G$4 & " Indicator" -> Indicator | HI11: England Indicator | HJ11: Highlighted CCG | HL11: Rank | HM11: Identifier | HN11: Rank Sort | HO11: CCG Name | HP11: CCG Identifier | HQ11: ='Dashboard (CCG)'!$G$4 -> 0 | HR11: ='Dashboard (CCG)'!$G$4 & " Indicator" -> Indicator | HS11: England Indicator | HT11: Highlighted CCG | HV11: Rank | HW11: Identifier | HX11: Rank Sort | HY11: CCG Name | HZ11: CCG Identifier | IA11: ='Dashboard (CCG)'!$G$4 -> 0 | IB11: ='Dashboard (CCG)'!$G$4 & " Indicator" -> Indicator | IC11: England Indicator | ID11: Highlighted CCG | IF11: Rank | IG11: Identifier | IH11: Rank Sort | II11: CCG Name | IJ11: CCG Identifier | IK11: ='Dashboard (CCG)'!$G$4 -> 0 | IL11: ='Dashboard (CCG)'!$G$4 & " Indicator" -> Indicator | IM11: England Indicator | IN11: Highlighted CCG | IP11: Rank | IQ11: Identifier | IR11: Rank Sort | IS11: CCG Name | IT11: CCG Identifier | IU11: ='Dashboard (CCG)'!$G$4 -> 0 | IV11: ='Dashboard (CCG)'!$G$4 & " Indicator" -> Indicator | IW11: England Indicator | IX11: Highlighted CCG | IZ11: Rank | JA11: Identifier | JB11: Rank Sort | JC11: CCG Name | JD11: CCG Identifier | JE11: ='Dashboard (CCG)'!$G$4 -> 0 | JF11: ='Dashboard (CCG)'!$G$4 & " Indicator" -> Indicator | JG11: England Indicator | JH11: Highlighted CCG | JJ11: Rank | JK11: Identifier | JL11: Rank Sort | JM11: CCG Name | JN11: CCG Identifier | JO11: ='Dashboard (CCG)'!$G$4 -> 0 | JP11: ='Dashboard (CCG)'!$G$4 & " Indicator" -> Indicator | JQ11: England Indicator | JR11: Highlighted CCG | JT11: Rank | JU11: Identifier | JV11: Rank Sort | JW11: CCG Name | JX11: CCG Identifier | JY11: ='Dashboard (CCG)'!$G$4 -> 0 | JZ11: ='Dashboard (CCG)'!$G$4 & " Indicator" -> Indicator | KA11: England Indicator | KB11: Highlighted CCG | KD11: Rank | KE11: Identifier | KF11: Rank Sort | KG11: CCG Name | KH11: CCG Identifier | KI11: ='Dashboard (CCG)'!$G$4 -> 0 | KJ11: ='Dashboard (CCG)'!$G$4 & " Indicator" -> Indicator | KK11: England Indicator | KL11: Highlighted CCG | KN11: Rank | KO11: Identifier | KP11: Rank Sort | KQ11: CCG Name | KR11: CCG Identifier | KS11: ='Dashboard (CCG)'!$G$4 -> 0 | KT11: ='Dashboard (CCG)'!$G$4 & " Indicator" -> Indicator | KU11: England Indicator | KV11: Highlighted CCG | KX11: Rank | KY11: Identifier | KZ11: Rank Sort | LA11: CCG Name | LB11: CCG Identifier | LC11: ='Dashboard (CCG)'!$G$4 -> 0 | LD11: ='Dashboard (CCG)'!$G$4 & " Indicator" -> Indicator | LE11: England Indicator | LF11: Highlighted CCG | LH11: Rank | LI11: Identifier | LJ11: Rank Sort | LK11: CCG Name | LL11: CCG Identifier | LM11: ='Dashboard (CCG)'!$G$4 -> 0 | LN11: ='Dashboard (CCG)'!$G$4 & " Indicator" -> Indicator | LO11: England Indicator | LP11: Highlighted CCG | LR11: Rank | LS11: Identifier | LT11: Rank Sort | LU11: CCG Name | LV11: CCG Identifier | LW11: ='Dashboard (CCG)'!$G$4 -> 0 | LX11: ='Dashboard (CCG)'!$G$4 & " Indicator" -> Indicator | LY11: England Indicator | LZ11: Highlighted CCG | MB11: Rank | MC11: Identifier | MD11: Rank Sort | ME11: CCG Name | MF11: CCG Identifier | MG11: ='Dashboard (CCG)'!$G$4 -> 0 | MH11: ='Dashboard (CCG)'!$G$4 & " Indicator" -> Indicator | MI11: England Indicator | MJ11: Highlighted CCG | ML11: Rank | MM11: Identifier | MN11: Rank Sort | MO11: CCG Name | MP11: CCG Identifier | MQ11: ='Dashboard (CCG)'!$G$4 -> 0 | MR11: ='Dashboard (CCG)'!$G$4 & " Indicator" -> Indicator | MS11: England Indicator | MT11: Highlighted CCG | MV11: Rank | MW11: Identifier | MX11: Rank Sort | MY11: CCG Name | MZ11: CCG Identifier | NA11: ='Dashboard (CCG)'!$G$4 -> 0 | NB11: ='Dashboard (CCG)'!$G$4 & " Indicator" -> Indicator | NC11: England Indicator | ND11: Highlighted CCG | NF11: Rank | NG11: Identifier | NH11: Rank Sort | NI11: CCG Name | NJ11: CCG Identifier | NK11: ='Dashboard (CCG)'!$G$4 -> 0 | NL11: ='Dashboard (CCG)'!$G$4 & " Indicator" -> Indicator | NM11: England Indicator | NN11: Highlighted CCG | NP11: Rank | NQ11: Identifier | NR11: Rank Sort | NS11: CCG Name | NT11: CCG Identifier | NU11: ='Dashboard (CCG)'!$G$4 -> 0 | NV11: ='Dashboard (CCG)'!$G$4 & " Indicator" -> Indicator | NW11: England Indicator | NX11: Highlighted CCG | NZ11: Rank | OA11: Identifier | OB11: Rank Sort | OC11: CCG Name | OD11: CCG Identifier | OE11: ='Dashboard (CCG)'!$G$4 -> 0 | OF11: ='Dashboard (CCG)'!$G$4 & " Indicator" -> Indicator | OG11: England Indicator | OH11: Highlighted CCG | OJ11: Rank | OK11: Identifier | OL11: Rank Sort | OM11: CCG Name | ON11: CCG Identifier | OO11: ='Dashboard (CCG)'!$G$4 -> 0 | OP11: ='Dashboard (CCG)'!$G$4 & " Indicator" -> Indicator | OQ11: England Indicator | OR11: Highlighted CCG | OT11: Rank | OU11: Identifier | OV11: Rank Sort | OW11: CCG Name | OX11: CCG Identifier | OY11: Sulfonylureas (%) | OZ11: Biguanides (%) | PA11: Dipetidylpeptidase-4 inhibitors (CG87) (%) | PB11: Glucagon-like peptide-1 receptor activators (%) | PC11: Insulin release stimulators (%) | PD11: Intestinal alpha glucosidases inhibitors (%) | PE11: Sodium-glucose co-transporter 2 (SGLT2) inhibitors (%) | PF11: Thiazolidinediones (%) | PG11: Sulfonylureas (%) | PH11: Biguanides (%) | PI11: Dipetidylpeptidase-4 inhibitors (CG87) (%) | PJ11: Glucagon-like peptide-1 receptor activators (%) | PK11: Insulin release stimulators (%) | PL11: Intestinal alpha glucosidases inhibitors (%) | PM11: Sodium-glucose co-transporter 2 (SGLT2) inhibitors (%) | PN11: Thiazolidinediones (%) | PP11: Rank | PQ11: Identifier | PR11: Rank Sort | PS11: CCG Name | PT11: Apixaban, Dabigatran etexilate & Rivaroxaban items (%) | PU11: Warfarin Sodium (%) | PV11: National Split | PW11: Apixaban, Dabigatran etexilate & Rivaroxaban items (%) | PX11: Warfarin Sodium (%)
A12: 02N | B12: =INDEX(DTable_Hierarchy[],MATCH($A12,DTable_Hierarchy[CCG/Trust Code],0),MATCH(B$11,DTable_Hierarchy[#Headers],0)) -> NHS Airedale, Wharfedale and Craven CCG | C12: =INDEX(DTable_Hierarchy[],MATCH($A12,DTable_Hierarchy[CCG/Trust Code],0),MATCH(C$11,DTable_Hierarchy[#Headers],0)) -> Q52 | D12: =INDEX(DTable_Hierarchy[],MATCH($A12,DTable_Hierarchy[CCG/Trust Code],0),MATCH(D$11,DTable_Hierarchy[#Headers],0)) -> West Yorkshire Area | E12: =INDEX(DTable_Hierarchy[],MATCH($A12,DTable_Hierarchy[CCG/Trust Code],0),MATCH(E$11,DTable_Hierarchy[#Headers],0)) -> AHSN15 | F12: =INDEX(DTable_Hierarchy[],MATCH($A12,DTable_Hierarchy[CCG/Trust Code],0),MATCH(F$11,DTable_Hierarchy[#Headers],0)) -> Yorkshire & Humber AHSN | G12: =INDEX(DTable_Hierarchy[],MATCH($A12,DTable_Hierarchy[CCG/Trust Code],0),MATCH(G$11,DTable_Hierarchy[#Headers],0)) -> CLS4 | H12: =INDEX(DTable_Hierarchy[],MATCH($A12,DTable_Hierarchy[CCG/Trust Code],0),MATCH(H$11,DTable_Hierarchy[#Headers],0)) -> Pyramid | J12: =RANK(K12,K$12:K$222)+COUNTIF(K$12:K12,K12)-1 -> 142 | K12: =IF(ISERROR(SUMIFS(RawData_CCG[Identifier],RawData_CCG[Metric Name],J$6,RawData_CCG[Code],$A12)),"n/a",SUMIFS(RawData_CCG[Identifier],RawData_CCG[Metric Name],J$6,RawData_CCG[Code],$A12)) -> 0.305 | L12: =COUNTA($A$12:$A$222) -> 211 | M12: =INDEX($A$12:$B$222,MATCH(L12,J$12:J$222,0),2) -> NHS Camden CCG | N12: =VLOOKUP(L12,J$12:K$222,2,FALSE) -> 0.188 | O12: =IF(AND('Dashboard (CCG)'!$G$4="AREA",INDEX($D$12:$D$222,MATCH(M12,$B$12:$B$222,0))=$C$3),N12, IF(AND('Dashboard (CCG)'!$G$4="AHSN",INDEX($F$12:$F$222,MATCH(M12,$B$12:$B$222,0))=$C$3),N12, IF(AND('Dashboard (CCG)'!$G$4="CLUSTER",INDEX($H$12:$H$222,MATCH(M12,$B$12:$B$222,0))=$C$3),N12,#N/A))) ->  | P12: =P$9 -> n/a | Q12: =P$10 -> 0.3166850227 | R12: =IF('Dashboard (CCG)'!$C$4=M12,N12,#N/A) ->  | T12: =RANK(U12,U$12:U$222)+COUNTIF(U$12:U12,U12)-1 -> 160 | U12: =IF(ISERROR(SUMIFS(RawData_CCG[Identifier],RawData_CCG[Metric Name],T$6,RawData_CCG[Code],$A12)),"n/a",SUMIFS(RawData_CCG[Identifier],RawData_CCG[Metric Name],T$6,RawData_CCG[Code],$A12)) -> 8.079 | V12: =COUNTA($A$12:$A$222) -> 211 | W12: =INDEX($A$12:$B$222,MATCH(V12,T$12:T$222,0),2) -> NHS Vale of York CCG | X12: =VLOOKUP(V12,T$12:U$222,2,FALSE) -> 4.275 | Y12: =IF(AND('Dashboard (CCG)'!$G$4="AREA",INDEX($D$12:$D$222,MATCH(W12,$B$12:$B$222,0))=$C$3),X12, IF(AND('Dashboard (CCG)'!$G$4="AHSN",INDEX($F$12:$F$222,MATCH(W12,$B$12:$B$222,0))=$C$3),X12, IF(AND('Dashboard (CCG)'!$G$4="CLUSTER",INDEX($H$12:$H$222,MATCH(W12,$B$12:$B$222,0))=$C$3),X12,#N/A))) ->  | Z12: =Z$9 -> n/a | AA12: =Z$10 -> 10.09721669 | AB12: =IF('Dashboard (CCG)'!$C$4=W12,X12,#N/A) ->  | AD12: =RANK(AE12,AE$12:AE$222)+COUNTIF(AE$12:AE12,AE12)-1 -> 121 | AE12: =IF(ISERROR(SUMIFS(RawData_CCG[Identifier],RawData_CCG[Metric Name],AD$6,RawData_CCG[Code],$A12)),"n/a",SUMIFS(RawData_CCG[Identifier],RawData_CCG[Metric Name],AD$6,RawData_CCG[Code],$A12)) -> 10.98183818 | AF12: =COUNTA($A$12:$A$222) -> 211 | AG12: =INDEX($A$12:$B$222,MATCH(AF12,AD$12:AD$222,0),2) -> NHS Surrey Downs CCG | AH12: =VLOOKUP(AF12,AD$12:AE$222,2,FALSE) -> 0 | AI12: =IF(AND('Dashboard (CCG)'!$G$4="AREA",INDEX($D$12:$D$222,MATCH(AG12,$B$12:$B$222,0))=$C$3),AH12, IF(AND('Dashboard (CCG)'!$G$4="AHSN",INDEX($F$12:$F$222,MATCH(AG12,$B$12:$B$222,0))=$C$3),AH12, IF(AND('Dashboard (CCG)'!$G$4="CLUSTER",INDEX($H$12:$H$222,MATCH(AG12,$B$12:$B$222,0))=$C$3),AH12,#N/A))) ->  | AJ12: =AJ$9 -> n/a | AK12: =AJ$10 -> 14.8495095 | AL12: =IF('Dashboard (CCG)'!$C$4=AG12,AH12,#N/A) ->  | AN12: =RANK(AO12,AO$12:AO$222)+COUNTIF(AO$12:AO12,AO12)-1 -> 193 | AO12: =IF(ISERROR(SUMIFS(RawData_CCG[Identifier],RawData_CCG[Metric Name],AN$6,RawData_CCG[Code],$A12)),"n/a",SUMIFS(RawData_CCG[Identifier],RawData_CCG[Metric Name],AN$6,RawData_CCG[Code],$A12)) -> 0.02608154268 | AP12: =COUNTA($A$12:$A$222) -> 211 | AQ12: =INDEX($A$12:$B$222,MATCH(AP12,AN$12:AN$222,0),2) -> NHS West Norfolk CCG | AR12: =VLOOKUP(AP12,AN$12:AO$222,2,FALSE) -> 0 | AS12: =IF(AND('Dashboard (CCG)'!$G$4="AREA",INDEX($D$12:$D$222,MATCH(AQ12,$B$12:$B$222,0))=$C$3),AR12, IF(AND('Dashboard (CCG)'!$G$4="AHSN",INDEX($F$12:$F$222,MATCH(AQ12,$B$12:$B$222,0))=$C$3),AR12, IF(AND('Dashboard (CCG)'!$G$4="CLUSTER",INDEX($H$12:$H$222,MATCH(AQ12,$B$12:$B$222,0))=$C$3),AR12,#N/A))) ->  | AT12: =AT$9 -> n/a | AU12: =AT$10 -> 11.67990438 | AV12: =IF('Dashboard (CCG)'!$C$4=AQ12,AR12,#N/A) ->  | AX12: =RANK(AY12,AY$12:AY$222)+COUNTIF(AY$12:AY12,AY12)-1 -> 191 | AY12: =IF(ISERROR(SUMIFS(RawData_CCG[Identifier],RawData_CCG[Metric Name],AX$6,RawData_CCG[Code],$A12)),"n/a",SUMIFS(RawData_CCG[Identifier],RawData_CCG[Metric Name],AX$6,RawData_CCG[Code],$A12)) -> 73.83592018 | AZ12: =COUNTA($A$12:$A$222) -> 211 | BA12: =INDEX($A$12:$B$222,MATCH(AZ12,AX$12:AX$222,0),2) -> NHS Central London (Westminster) CCG | BB12: =VLOOKUP(AZ12,AX$12:AY$222,2,FALSE) -> 51.22994652 | BC12: =IF(AND('Dashboard (CCG)'!$G$4="AREA",INDEX($D$12:$D$222,MATCH(BA12,$B$12:$B$222,0))=$C$3),BB12, IF(AND('Dashboard (CCG)'!$G$4="AHSN",INDEX($F$12:$F$222,MATCH(BA12,$B$12:$B$222,0))=$C$3),BB12, IF(AND('Dashboard (CCG)'!$G$4="CLUSTER",INDEX($H$12:$H$222,MATCH(BA12,$B$12:$B$222,0))=$C$3),BB12,#N/A))) ->  | BD12: =BD$9 -> n/a | BE12: =BD$10 -> 81.88728496 | BF12: =IF('Dashboard (CCG)'!$C$4=BA12,BB12,#N/A) ->  | BH12: =RANK(BI12,BI$12:BI$222)+COUNTIF(BI$12:BI12,BI12)-1 -> 184 | BI12: =IF(ISERROR(SUMIFS(RawData_CCG[Identifier],RawData_CCG[Metric Name],BH$6,RawData_CCG[Code],$A12)),"n/a",SUMIFS(RawData_CCG[Identifier],RawData_CCG[Metric Name],BH$6,RawData_CCG[Code],$A12)) -> 47.45011086 | BJ12: =COUNTA($A$12:$A$222) -> 211 | BK12: =INDEX($A$12:$B$222,MATCH(BJ12,BH$12:BH$222,0),2) -> NHS Greater Huddersfield CCG | BL12: =VLOOKUP(BJ12,BH$12:BI$222,2,FALSE) -> 32.22543353 | BM12: =IF(AND('Dashboard (CCG)'!$G$4="AREA",INDEX($D$12:$D$222,MATCH(BK12,$B$12:$B$222,0))=$C$3),BL12, IF(AND('Dashboard (CCG)'!$G$4="AHSN",INDEX($F$12:$F$222,MATCH(BK12,$B$12:$B$222,0))=$C$3),BL12, IF(AND('Dashboard (CCG)'!$G$4="CLUSTER",INDEX($H$12:$H$222,MATCH(BK12,$B$12:$B$222,0))=$C$3),BL12,#N/A))) ->  | BN12: =BN$9 -> n/a | BO12: =BN$10 -> 57.23526164 | BP12: =IF('Dashboard (CCG)'!$C$4=BK12,BL12,#N/A) ->  | BR12: =RANK(BS12,BS$12:BS$222)+COUNTIF(BS$12:BS12,BS12)-1 -> 109 | BS12: =IF(ISERROR(SUMIFS(RawData_CCG[Identifier],RawData_CCG[Metric Name],BR$6,RawData_CCG[Code],$A12)),"n/a",SUMIFS(RawData_CCG[Identifier],RawData_CCG[Metric Name],BR$6,RawData_CCG[Code],$A12)) -> 41.17647059 | BT12: =COUNTA($A$12:$A$222) -> 211 | BU12: =INDEX($A$12:$B$222,MATCH(BT12,BR$12:BR$222,0),2) -> NHS Surrey Downs CCG | BV12: =VLOOKUP(BT12,BR$12:BS$222,2,FALSE) -> 0 | BW12: =IF(AND('Dashboard (CCG)'!$G$4="AREA",INDEX($D$12:$D$222,MATCH(BU12,$B$12:$B$222,0))=$C$3),BV12, IF(AND('Dashboard (CCG)'!$G$4="AHSN",INDEX($F$12:$F$222,MATCH(BU12,$B$12:$B$222,0))=$C$3),BV12, IF(AND('Dashboard (CCG)'!$G$4="CLUSTER",INDEX($H$12:$H$222,MATCH(BU12,$B$12:$B$222,0))=$C$3),BV12,#N/A))) ->  | BX12: =BX$9 -> n/a | BY12: =BX$10 -> 45.41751527 | BZ12: =IF('Dashboard (CCG)'!$C$4=BU12,BV12,#N/A) ->  | CB12: =RANK(CC12,CC$12:CC$222)+COUNTIF(CC$12:CC12,CC12)-1 -> 104 | CC12: =IF(ISERROR(SUMIFS(RawData_CCG[Identifier],RawData_CCG[Metric Name],CB$6,RawData_CCG[Code],$A12)),"n/a",SUMIFS(RawData_CCG[Identifier],RawData_CCG[Metric Name],CB$6,RawData_CCG[Code],$A12)) -> 41.17647059 | CD12: =COUNTA($A$12:$A$222) -> 211 | CE12: =INDEX($A$12:$B$222,MATCH(CD12,CB$12:CB$222,0),2) -> NHS Surrey Downs CCG | CF12: =VLOOKUP(CD12,CB$12:CC$222,2,FALSE) -> 0 | CG12: =IF(AND('Dashboard (CCG)'!$G$4="AREA",INDEX($D$12:$D$222,MATCH(CE12,$B$12:$B$222,0))=$C$3),CF12, IF(AND('Dashboard (CCG)'!$G$4="AHSN",INDEX($F$12:$F$222,MATCH(CE12,$B$12:$B$222,0))=$C$3),CF12, IF(AND('Dashboard (CCG)'!$G$4="CLUSTER",INDEX($H$12:$H$222,MATCH(CE12,$B$12:$B$222,0))=$C$3),CF12,#N/A))) ->  | CH12: =CH$9 -> n/a | CI12: =CH$10 -> 44.76832994 | CJ12: =IF('Dashboard (CCG)'!$C$4=CE12,CF12,#N/A) ->  | CL12: =RANK(CM12,CM$12:CM$222)+COUNTIF(CM$12:CM12,CM12)-1 -> 139 | CM12: =IF(ISERROR(SUMIFS(RawData_CCG[Identifier],RawData_CCG[Metric Name],CL$6,RawData_CCG[Code],$A12)),"n/a",SUMIFS(RawData_CCG[Identifier],RawData_CCG[Metric Name],CL$6,RawData_CCG[Code],$A12)) -> 2.995302821 | CN12: =COUNTA($A$12:$A$222) -> 211 | CO12: =INDEX($A$12:$B$222,MATCH(CN12,CL$12:CL$222,0),2) -> NHS Durham Dales, Easington and Sedgefield CCG | CP12: =VLOOKUP(CN12,CL$12:CM$222,2,FALSE) -> 1.932799885 | CQ12: =IF(AND('Dashboard (CCG)'!$G$4="AREA",INDEX($D$12:$D$222,MATCH(CO12,$B$12:$B$222,0))=$C$3),CP12, IF(AND('Dashboard (CCG)'!$G$4="AHSN",INDEX($F$12:$F$222,MATCH(CO12,$B$12:$B$222,0))=$C$3),CP12, IF(AND('Dashboard (CCG)'!$G$4="CLUSTER",INDEX($H$12:$H$222,MATCH(CO12,$B$12:$B$222,0))=$C$3),CP12,#N/A))) ->  | CR12: =CR$9 -> n/a | CS12: =CR$10 -> 3.256201293 | CT12: =IF('Dashboard (CCG)'!$C$4=CO12,CP12,#N/A) ->  | CV12: =RANK(CW12,CW$12:CW$222)+COUNTIF(CW$12:CW12,CW12)-1 -> 135 | CW12: =IF(ISERROR(SUMIFS(RawData_CCG[Identifier],RawData_CCG[Metric Name],CV$6,RawData_CCG[Code],$A12)),"n/a",SUMIFS(RawData_CCG[Identifier],RawData_CCG[Metric Name],CV$6,RawData_CCG[Code],$A12)) -> 0.6756704124 | CX12: =COUNTA($A$12:$A$222) -> 211 | CY12: =INDEX($A$12:$B$222,MATCH(CX12,CV$12:CV$222,0),2) -> NHS Greater Huddersfield CCG | CZ12: =VLOOKUP(CX12,CV$12:CW$222,2,FALSE) -> 0.2878674001 | DA12: =IF(AND('Dashboard (CCG)'!$G$4="AREA",INDEX($D$12:$D$222,MATCH(CY12,$B$12:$B$222,0))=$C$3),CZ12, IF(AND('Dashboard (CCG)'!$G$4="AHSN",INDEX($F$12:$F$222,MATCH(CY12,$B$12:$B$222,0))=$C$3),CZ12, IF(AND('Dashboard (CCG)'!$G$4="CLUSTER",INDEX($H$12:$H$222,MATCH(CY12,$B$12:$B$222,0))=$C$3),CZ12,#N/A))) ->  | DB12: =DB$9 -> n/a | DC12: =DB$10 -> 0.7726525349 | DD12: =IF('Dashboard (CCG)'!$C$4=CY12,CZ12,#N/A) ->  | DF12: =RANK(DG12,DG$12:DG$222)+COUNTIF(DG$12:DG12,DG12)-1 -> 145 | DG12: =IF(ISERROR(SUMIFS(RawData_CCG[Identifier],RawData_CCG[Metric Name],DF$6,RawData_CCG[Code],$A12)),"n/a",SUMIFS(RawData_CCG[Identifier],RawData_CCG[Metric Name],DF$6,RawData_CCG[Code],$A12)) -> 2.234458676 | DH12: =COUNTA($A$12:$A$222) -> 211 | DI12: =INDEX($A$12:$B$222,MATCH(DH12,DF$12:DF$222,0),2) -> NHS Oldham CCG | DJ12: =VLOOKUP(DH12,DF$12:DG$222,2,FALSE) -> 0.01560664086 | DK12: =IF(AND('Dashboard (CCG)'!$G$4="AREA",INDEX($D$12:$D$222,MATCH(DI12,$B$12:$B$222,0))=$C$3),DJ12, IF(AND('Dashboard (CCG)'!$G$4="AHSN",INDEX($F$12:$F$222,MATCH(DI12,$B$12:$B$222,0))=$C$3),DJ12, IF(AND('Dashboard (CCG)'!$G$4="CLUSTER",INDEX($H$12:$H$222,MATCH(DI12,$B$12:$B$222,0))=$C$3),DJ12,#N/A))) ->  | DL12: =DL$9 -> n/a | DM12: =DL$10 -> 7.143634487 | DN12: =IF('Dashboard (CCG)'!$C$4=DI12,DJ12,#N/A) ->  | DP12: =RANK(DQ12,DQ$12:DQ$222)+COUNTIF(DQ$12:DQ12,DQ12)-1 -> 202 | DQ12: =IF(ISERROR(SUMIFS(RawData_CCG[Identifier],RawData_CCG[Metric Name],DP$6,RawData_CCG[Code],$A12)),"n/a",SUMIFS(RawData_CCG[Identifier],RawData_CCG[Metric Name],DP$6,RawData_CCG[Code],$A12)) -> 17.64705882 | DR12: =COUNTA($A$12:$A$222) -> 211 | DS12: =INDEX($A$12:$B$222,MATCH(DR12,DP$12:DP$222,0),2) -> NHS Nottingham West CCG | DT12: =VLOOKUP(DR12,DP$12:DQ$222,2,FALSE) -> 8.333333333 | DU12: =IF(AND('Dashboard (CCG)'!$G$4="AREA",INDEX($D$12:$D$222,MATCH(DS12,$B$12:$B$222,0))=$C$3),DT12, IF(AND('Dashboard (CCG)'!$G$4="AHSN",INDEX($F$12:$F$222,MATCH(DS12,$B$12:$B$222,0))=$C$3),DT12, IF(AND('Dashboard (CCG)'!$G$4="CLUSTER",INDEX($H$12:$H$222,MATCH(DS12,$B$12:$B$222,0))=$C$3),DT12,#N/A))) ->  | DV12: =DV$9 -> n/a | DW12: =DV$10 -> 48.46134283 | DX12: =IF('Dashboard (CCG)'!$C$4=DS12,DT12,#N/A) ->  | DZ12: =RANK(EA12,EA$12:EA$222)+COUNTIF(EA$12:EA12,EA12)-1 -> 197 | EA12: =IF(ISERROR(SUMIFS(RawData_CCG[Identifier],RawData_CCG[Metric Name],DZ$6,RawData_CCG[Code],$A12)),"n/a",SUMIFS(RawData_CCG[Identifier],RawData_CCG[Metric Name],DZ$6,RawData_CCG[Code],$A12)) -> 63.31967213 | EB12: =COUNTA($A$12:$A$222) -> 211 | EC12: =INDEX($A$12:$B$222,MATCH(EB12,DZ$12:DZ$222,0),2) -> NHS Brighton and Hove CCG | ED12: =VLOOKUP(EB12,DZ$12:EA$222,2,FALSE) -> 58.34046193 | EE12: =IF(AND('Dashboard (CCG)'!$G$4="AREA",INDEX($D$12:$D$222,MATCH(EC12,$B$12:$B$222,0))=$C$3),ED12, IF(AND('Dashboard (CCG)'!$G$4="AHSN",INDEX($F$12:$F$222,MATCH(EC12,$B$12:$B$222,0))=$C$3),ED12, IF(AND('Dashboard (CCG)'!$G$4="CLUSTER",INDEX($H$12:$H$222,MATCH(EC12,$B$12:$B$222,0))=$C$3),ED12,#N/A))) ->  | EF12: =EF$9 -> n/a | EG12: =EF$10 -> 69.10967825 | EH12: =IF('Dashboard (CCG)'!$C$4=EC12,ED12,#N/A) ->  | EJ12: =RANK(EK12,EK$12:EK$222)+COUNTIF(EK$12:EK12,EK12)-1 -> 93 | EK12: =IF(ISERROR(SUMIFS(RawData_CCG[Identifier],RawData_CCG[Metric Name],EJ$6,RawData_CCG[Code],$A12)),"n/a",SUMIFS(RawData_CCG[Identifier],RawData_CCG[Metric Name],EJ$6,RawData_CCG[Code],$A12)) -> 78.704 | EL12: =COUNTA($A$12:$A$222) -> 211 | EM12: =INDEX($A$12:$B$222,MATCH(EL12,EJ$12:EJ$222,0),2) -> NHS North Lincolnshire CCG | EN12: =VLOOKUP(EL12,EJ$12:EK$222,2,FALSE) -> 62.099 | EO12: =IF(AND('Dashboard (CCG)'!$G$4="AREA",INDEX($D$12:$D$222,MATCH(EM12,$B$12:$B$222,0))=$C$3),EN12, IF(AND('Dashboard (CCG)'!$G$4="AHSN",INDEX($F$12:$F$222,MATCH(EM12,$B$12:$B$222,0))=$C$3),EN12, IF(AND('Dashboard (CCG)'!$G$4="CLUSTER",INDEX($H$12:$H$222,MATCH(EM12,$B$12:$B$222,0))=$C$3),EN12,#N/A))) ->  | EP12: =EP$9 -> n/a | EQ12: =EP$10 -> 77.04676364 | ER12: =IF('Dashboard (CCG)'!$C$4=EM12,EN12,#N/A) ->  | ET12: =RANK(EU12,EU$12:EU$222)+COUNTIF(EU$12:EU12,EU12)-1 -> 177 | EU12: =IF(ISERROR(SUMIFS(RawData_CCG[Identifier],RawData_CCG[Metric Name],ET$6,RawData_CCG[Code],$A12)),"n/a",SUMIFS(RawData_CCG[Identifier],RawData_CCG[Metric Name],ET$6,RawData_CCG[Code],$A12)) -> 5.9 | EV12: =COUNTA($A$12:$A$222) -> 211 | EW12: =INDEX($A$12:$B$222,MATCH(EV12,ET$12:ET$222,0),2) -> NHS Thurrock CCG | EX12: =VLOOKUP(EV12,ET$12:EU$222,2,FALSE) -> 0 | EY12: =IF(AND('Dashboard (CCG)'!$G$4="AREA",INDEX($D$12:$D$222,MATCH(EW12,$B$12:$B$222,0))=$C$3),EX12, IF(AND('Dashboard (CCG)'!$G$4="AHSN",INDEX($F$12:$F$222,MATCH(EW12,$B$12:$B$222,0))=$C$3),EX12, IF(AND('Dashboard (CCG)'!$G$4="CLUSTER",INDEX($H$12:$H$222,MATCH(EW12,$B$12:$B$222,0))=$C$3),EX12,#N/A))) ->  | EZ12: =EZ$9 -> n/a | FA12: =EZ$10 -> 36.70179002 | FB12: =IF('Dashboard (CCG)'!$C$4=EW12,EX12,#N/A) ->  | FD12: =RANK(FE12,FE$12:FE$222)+COUNTIF(FE$12:FE12,FE12)-1 -> 211 | FE12: =IF(ISERROR(SUMIFS(RawData_CCG[Identifier],RawData_CCG[Metric Name],FD$6,RawData_CCG[Code],$A12)),"n/a",SUMIFS(RawData_CCG[Identifier],RawData_CCG[Metric Name],FD$6,RawData_CCG[Code],$A12)) -> 75.33039648 | FF12: =COUNTA($A$12:$A$222) -> 211 | FG12: =INDEX($A$12:$B$222,MATCH(FF12,FD$12:FD$222,0),2) -> NHS Airedale, Wharfedale and Craven CCG | FH12: =VLOOKUP(FF12,FD$12:FE$222,2,FALSE) -> 75.33039648 | FI12: =IF(AND('Dashboard (CCG)'!$G$4="AREA",INDEX($D$12:$D$222,MATCH(FG12,$B$12:$B$222,0))=$C$3),FH12, IF(AND('Dashboard (CCG)'!$G$4="AHSN",INDEX($F$12:$F$222,MATCH(FG12,$B$12:$B$222,0))=$C$3),FH12, IF(AND('Dashboard (CCG)'!$G$4="CLUSTER",INDEX($H$12:$H$222,MATCH(FG12,$B$12:$B$222,0))=$C$3),FH12,#N/A))) ->  | FJ12: =FJ$9 -> n/a | FK12: =FJ$10 -> 86.70148766 | FL12: =IF('Dashboard (CCG)'!$C$4=FG12,FH12,#N/A) ->  | FN12: =RANK(FO12,FO$12:FO$222)+COUNTIF(FO$12:FO12,FO12)-1 -> 191 | FO12: =IF(ISERROR(SUMIFS(RawData_CCG[Identifier],RawData_CCG[Metric Name],FN$6,RawData_CCG[Code],$A12)),"n/a",SUMIFS(RawData_CCG[Identifier],RawData_CCG[Metric Name],FN$6,RawData_CCG[Code],$A12)) -> 17.64705882 | FP12: =COUNTA($A$12:$A$222) -> 211 | FQ12: =INDEX($A$12:$B$222,MATCH(FP12,FN$12:FN$222,0),2) -> NHS Scarborough and Ryedale CCG | FR12: =VLOOKUP(FP12,FN$12:FO$222,2,FALSE) -> 6.25 | FS12: =IF(AND('Dashboard (CCG)'!$G$4="AREA",INDEX($D$12:$D$222,MATCH(FQ12,$B$12:$B$222,0))=$C$3),FR12, IF(AND('Dashboard (CCG)'!$G$4="AHSN",INDEX($F$12:$F$222,MATCH(FQ12,$B$12:$B$222,0))=$C$3),FR12, IF(AND('Dashboard (CCG)'!$G$4="CLUSTER",INDEX($H$12:$H$222,MATCH(FQ12,$B$12:$B$222,0))=$C$3),FR12,#N/A))) ->  | FT12: =FT$9 -> n/a | FU12: =FT$10 -> 41.38242894 | FV12: =IF('Dashboard (CCG)'!$C$4=FQ12,FR12,#N/A) ->  | FX12: =RANK(FY12,FY$12:FY$222)+COUNTIF(FY$12:FY12,FY12)-1 -> 202 | FY12: =IF(ISERROR(SUMIFS(RawData_CCG[Identifier],RawData_CCG[Metric Name],FX$6,RawData_CCG[Code],$A12)),"n/a",SUMIFS(RawData_CCG[Identifier],RawData_CCG[Metric Name],FX$6,RawData_CCG[Code],$A12)) -> 64.03508772 | FZ12: =COUNTA($A$12:$A$222) -> 211 | GA12: =INDEX($A$12:$B$222,MATCH(FZ12,FX$12:FX$222,0),2) -> NHS Merton CCG | GB12: =VLOOKUP(FZ12,FX$12:FY$222,2,FALSE) -> 55.01618123 | GC12: =IF(AND('Dashboard (CCG)'!$G$4="AREA",INDEX($D$12:$D$222,MATCH(GA12,$B$12:$B$222,0))=$C$3),GB12, IF(AND('Dashboard (CCG)'!$G$4="AHSN",INDEX($F$12:$F$222,MATCH(GA12,$B$12:$B$222,0))=$C$3),GB12, IF(AND('Dashboard (CCG)'!$G$4="CLUSTER",INDEX($H$12:$H$222,MATCH(GA12,$B$12:$B$222,0))=$C$3),GB12,#N/A))) ->  | GD12: =GD$9 -> n/a | GE12: =GD$10 -> 74.25195742 | GF12: =IF('Dashboard (CCG)'!$C$4=GA12,GB12,#N/A) ->  | GH12: =RANK(GI12,GI$12:GI$222)+COUNTIF(GI$12:GI12,GI12)-1 -> 183 | GI12: =IF(ISERROR(SUMIFS(RawData_CCG[Identifier],RawData_CCG[Metric Name],GH$6,RawData_CCG[Code],$A12)),"n/a",SUMIFS(RawData_CCG[Identifier],RawData_CCG[Metric Name],GH$6,RawData_CCG[Code],$A12)) -> 64.70588235 | GJ12: =COUNTA($A$12:$A$222) -> 211 | GK12: =INDEX($A$12:$B$222,MATCH(GJ12,GH$12:GH$222,0),2) -> NHS Erewash CCG | GL12: =VLOOKUP(GJ12,GH$12:GI$222,2,FALSE) -> 41.66666667 | GM12: =IF(AND('Dashboard (CCG)'!$G$4="AREA",INDEX($D$12:$D$222,MATCH(GK12,$B$12:$B$222,0))=$C$3),GL12, IF(AND('Dashboard (CCG)'!$G$4="AHSN",INDEX($F$12:$F$222,MATCH(GK12,$B$12:$B$222,0))=$C$3),GL12, IF(AND('Dashboard (CCG)'!$G$4="CLUSTER",INDEX($H$12:$H$222,MATCH(GK12,$B$12:$B$222,0))=$C$3),GL12,#N/A))) ->  | GN12: =GN$9 -> n/a | GO12: =GN$10 -> 78.05133578 | GP12: =IF('Dashboard (CCG)'!$C$4=GK12,GL12,#N/A) ->  | GR12: =RANK(GS12,GS$12:GS$222)+COUNTIF(GS$12:GS12,GS12)-1 -> 51 | GS12: =IF(ISERROR(SUMIFS(RawData_CCG[Identifier],RawData_CCG[Metric Name],GR$6,RawData_CCG[Code],$A12)),"n/a",SUMIFS(RawData_CCG[Identifier],RawData_CCG[Metric Name],GR$6,RawData_CCG[Code],$A12)) -> 0 | GT12: =COUNTA($A$12:$A$222) -> 211 | GU12: =INDEX($A$12:$B$222,MATCH(GT12,GR$12:GR$222,0),2) -> NHS Wiltshire CCG | GV12: =VLOOKUP(GT12,GR$12:GS$222,2,FALSE) -> 0 | GW12: =IF(AND('Dashboard (CCG)'!$G$4="AREA",INDEX($D$12:$D$222,MATCH(GU12,$B$12:$B$222,0))=$C$3),GV12, IF(AND('Dashboard (CCG)'!$G$4="AHSN",INDEX($F$12:$F$222,MATCH(GU12,$B$12:$B$222,0))=$C$3),GV12, IF(AND('Dashboard (CCG)'!$G$4="CLUSTER",INDEX($H$12:$H$222,MATCH(GU12,$B$12:$B$222,0))=$C$3),GV12,#N/A))) ->  | GX12: =GX$9 -> n/a | GY12: =GX$10 -> 0.8464939987 | GZ12: =IF('Dashboard (CCG)'!$C$4=GU12,GV12,#N/A) ->  | HB12: =RANK(HC12,HC$12:HC$222)+COUNTIF(HC$12:HC12,HC12)-1 -> 15 | HC12: =IF(ISERROR(SUMIFS(RawData_CCG[Identifier],RawData_CCG[Metric Name],HB$6,RawData_CCG[Code],$A12)),"n/a",SUMIFS(RawData_CCG[Identifier],RawData_CCG[Metric Name],HB$6,RawData_CCG[Code],$A12)) -> 84.21489564 | HD12: =COUNTA($A$12:$A$222) -> 211 | HE12: =INDEX($A$12:$B$222,MATCH(HD12,HB$12:HB$222,0),2) -> NHS Waltham Forest CCG | HF12: =VLOOKUP(HD12,HB$12:HC$222,2,FALSE) -> 72.3385512 | HG12: =IF(AND('Dashboard (CCG)'!$G$4="AREA",INDEX($D$12:$D$222,MATCH(HE12,$B$12:$B$222,0))=$C$3),HF12, IF(AND('Dashboard (CCG)'!$G$4="AHSN",INDEX($F$12:$F$222,MATCH(HE12,$B$12:$B$222,0))=$C$3),HF12, IF(AND('Dashboard (CCG)'!$G$4="CLUSTER",INDEX($H$12:$H$222,MATCH(HE12,$B$12:$B$222,0))=$C$3),HF12,#N/A))) ->  | HH12: =HH$9 -> n/a | HI12: =HH$10 -> 80.19166307 | HJ12: =IF('Dashboard (CCG)'!$C$4=HE12,HF12,#N/A) ->  | HL12: =RANK(HM12,HM$12:HM$222)+COUNTIF(HM$12:HM12,HM12)-1 -> 83 | HM12: =IF(ISERROR(SUMIFS(RawData_CCG[Identifier],RawData_CCG[Metric Name],HL$6,RawData_CCG[Code],$A12)),"n/a",SUMIFS(RawData_CCG[Identifier],RawData_CCG[Metric Name],HL$6,RawData_CCG[Code],$A12)) -> 1.44686907 | HN12: =COUNTA($A$12:$A$222) -> 211 | HO12: =INDEX($A$12:$B$222,MATCH(HN12,HL$12:HL$222,0),2) -> NHS Newark and Sherwood CCG | HP12: =VLOOKUP(HN12,HL$12:HM$222,2,FALSE) -> 0.6872852234 | HQ12: =IF(AND('Dashboard (CCG)'!$G$4="AREA",INDEX($D$12:$D$222,MATCH(HO12,$B$12:$B$222,0))=$C$3),HP12, IF(AND('Dashboard (CCG)'!$G$4="AHSN",INDEX($F$12:$F$222,MATCH(HO12,$B$12:$B$222,0))=$C$3),HP12, IF(AND('Dashboard (CCG)'!$G$4="CLUSTER",INDEX($H$12:$H$222,MATCH(HO12,$B$12:$B$222,0))=$C$3),HP12,#N/A))) ->  | HR12: =HR$9 -> n/a | HS12: =HR$10 -> 1.34218004 | HT12: =IF('Dashboard (CCG)'!$C$4=HO12,HP12,#N/A) ->  | HV12: =RANK(HW12,HW$12:HW$222)+COUNTIF(HW$12:HW12,HW12)-1 -> 110 | HW12: =IF(ISERROR(SUMIFS(RawData_CCG[Identifier],RawData_CCG[Metric Name],HV$6,RawData_CCG[Code],$A12)),"n/a",SUMIFS(RawData_CCG[Identifier],RawData_CCG[Metric Name],HV$6,RawData_CCG[Code],$A12)) -> 47.05882353 | HX12: =COUNTA($A$12:$A$222) -> 211 | HY12: =INDEX($A$12:$B$222,MATCH(HX12,HV$12:HV$222,0),2) -> NHS West Suffolk CCG | HZ12: =VLOOKUP(HX12,HV$12:HW$222,2,FALSE) -> 4 | IA12: =IF(AND('Dashboard (CCG)'!$G$4="AREA",INDEX($D$12:$D$222,MATCH(HY12,$B$12:$B$222,0))=$C$3),HZ12, IF(AND('Dashboard (CCG)'!$G$4="AHSN",INDEX($F$12:$F$222,MATCH(HY12,$B$12:$B$222,0))=$C$3),HZ12, IF(AND('Dashboard (CCG)'!$G$4="CLUSTER",INDEX($H$12:$H$222,MATCH(HY12,$B$12:$B$222,0))=$C$3),HZ12,#N/A))) ->  | IB12: =IB$9 -> n/a | IC12: =IB$10 -> 48.09630459 | ID12: =IF('Dashboard (CCG)'!$C$4=HY12,HZ12,#N/A) ->  | IF12: =RANK(IG12,IG$12:IG$222)+COUNTIF(IG$12:IG12,IG12)-1 -> 39 | IG12: =IF(ISERROR(SUMIFS(RawData_CCG[Identifier],RawData_CCG[Metric Name],IF$6,RawData_CCG[Code],$A12)),"n/a",SUMIFS(RawData_CCG[Identifier],RawData_CCG[Metric Name],IF$6,RawData_CCG[Code],$A12)) -> 85.71428571 | IH12: =COUNTA($A$12:$A$222) -> 211 | II12: =INDEX($A$12:$B$222,MATCH(IH12,IF$12:IF$222,0),2) -> NHS North Staffordshire CCG | IJ12: =VLOOKUP(IH12,IF$12:IG$222,2,FALSE) -> 59.06040268 | IK12: =IF(AND('Dashboard (CCG)'!$G$4="AREA",INDEX($D$12:$D$222,MATCH(II12,$B$12:$B$222,0))=$C$3),IJ12, IF(AND('Dashboard (CCG)'!$G$4="AHSN",INDEX($F$12:$F$222,MATCH(II12,$B$12:$B$222,0))=$C$3),IJ12, IF(AND('Dashboard (CCG)'!$G$4="CLUSTER",INDEX($H$12:$H$222,MATCH(II12,$B$12:$B$222,0))=$C$3),IJ12,#N/A))) ->  | IL12: =IL$9 -> n/a | IM12: =IL$10 -> 81.32560232 | IN12: =IF('Dashboard (CCG)'!$C$4=II12,IJ12,#N/A) ->  | IP12: =RANK(IQ12,IQ$12:IQ$222)+COUNTIF(IQ$12:IQ12,IQ12)-1 -> 54 | IQ12: =IF(ISERROR(SUMIFS(RawData_CCG[Identifier],RawData_CCG[Metric Name],IP$6,RawData_CCG[Code],$A12)),"n/a",SUMIFS(RawData_CCG[Identifier],RawData_CCG[Metric Name],IP$6,RawData_CCG[Code],$A12)) -> 63.38962606 | IR12: =COUNTA($A$12:$A$222) -> 211 | IS12: =INDEX($A$12:$B$222,MATCH(IR12,IP$12:IP$222,0),2) -> NHS Hammersmith and Fulham CCG | IT12: =VLOOKUP(IR12,IP$12:IQ$222,2,FALSE) -> 33.75706215 | IU12: =IF(AND('Dashboard (CCG)'!$G$4="AREA",INDEX($D$12:$D$222,MATCH(IS12,$B$12:$B$222,0))=$C$3),IT12, IF(AND('Dashboard (CCG)'!$G$4="AHSN",INDEX($F$12:$F$222,MATCH(IS12,$B$12:$B$222,0))=$C$3),IT12, IF(AND('Dashboard (CCG)'!$G$4="CLUSTER",INDEX($H$12:$H$222,MATCH(IS12,$B$12:$B$222,0))=$C$3),IT12,#N/A))) ->  | IV12: =IV$9 -> n/a | IW12: =IV$10 -> 58.36175244 | IX12: =IF('Dashboard (CCG)'!$C$4=IS12,IT12,#N/A) ->  | IZ12: =RANK(JA12,JA$12:JA$222)+COUNTIF(JA$12:JA12,JA12)-1 -> 90 | JA12: =IF(ISERROR(SUMIFS(RawData_CCG[Identifier],RawData_CCG[Metric Name],IZ$6,RawData_CCG[Code],$A12)),"n/a",SUMIFS(RawData_CCG[Identifier],RawData_CCG[Metric Name],IZ$6,RawData_CCG[Code],$A12)) -> 11.76470588 | JB12: =COUNTA($A$12:$A$222) -> 211 | JC12: =INDEX($A$12:$B$222,MATCH(JB12,IZ$12:IZ$222,0),2) -> NHS Telford and Wrekin CCG | JD12: =VLOOKUP(JB12,IZ$12:JA$222,2,FALSE) -> 0 | JE12: =IF(AND('Dashboard (CCG)'!$G$4="AREA",INDEX($D$12:$D$222,MATCH(JC12,$B$12:$B$222,0))=$C$3),JD12, IF(AND('Dashboard (CCG)'!$G$4="AHSN",INDEX($F$12:$F$222,MATCH(JC12,$B$12:$B$222,0))=$C$3),JD12, IF(AND('Dashboard (CCG)'!$G$4="CLUSTER",INDEX($H$12:$H$222,MATCH(JC12,$B$12:$B$222,0))=$C$3),JD12,#N/A))) ->  | JF12: =JF$9 -> n/a | JG12: =JF$10 -> 12.06427368 | JH12: =IF('Dashboard (CCG)'!$C$4=JC12,JD12,#N/A) ->  | JJ12: =RANK(JK12,JK$12:JK$222)+COUNTIF(JK$12:JK12,JK12)-1 -> 104 | JK12: =IF(ISERROR(SUMIFS(RawData_CCG[Identifier],RawData_CCG[Metric Name],JJ$6,RawData_CCG[Code],$A12)),"n/a",SUMIFS(RawData_CCG[Identifier],RawData_CCG[Metric Name],JJ$6,RawData_CCG[Code],$A12)) -> 0.335 | JL12: =COUNTA($A$12:$A$222) -> 211 | JM12: =INDEX($A$12:$B$222,MATCH(JL12,JJ$12:JJ$222,0),2) -> NHS Newham CCG | JN12: =VLOOKUP(JL12,JJ$12:JK$222,2,FALSE) -> 0.138 | JO12: =IF(AND('Dashboard (CCG)'!$G$4="AREA",INDEX($D$12:$D$222,MATCH(JM12,$B$12:$B$222,0))=$C$3),JN12, IF(AND('Dashboard (CCG)'!$G$4="AHSN",INDEX($F$12:$F$222,MATCH(JM12,$B$12:$B$222,0))=$C$3),JN12, IF(AND('Dashboard (CCG)'!$G$4="CLUSTER",INDEX($H$12:$H$222,MATCH(JM12,$B$12:$B$222,0))=$C$3),JN12,#N/A))) ->  | JP12: =JP$9 -> n/a | JQ12: =JP$10 -> 0.3264708769 | JR12: =IF('Dashboard (CCG)'!$C$4=JM12,JN12,#N/A) ->  | JT12: =RANK(JU12,JU$12:JU$222)+COUNTIF(JU$12:JU12,JU12)-1 -> 89 | JU12: =IF(ISERROR(SUMIFS(RawData_CCG[Identifier],RawData_CCG[Metric Name],JT$6,RawData_CCG[Code],$A12)),"n/a",SUMIFS(RawData_CCG[Identifier],RawData_CCG[Metric Name],JT$6,RawData_CCG[Code],$A12)) -> 70.75836454 | JV12: =COUNTA($A$12:$A$222) -> 211 | JW12: =INDEX($A$12:$B$222,MATCH(JV12,JT$12:JT$222,0),2) -> NHS Newcastle West CCG | JX12: =VLOOKUP(JV12,JT$12:JU$222,2,FALSE) -> 57.47355734 | JY12: =IF(AND('Dashboard (CCG)'!$G$4="AREA",INDEX($D$12:$D$222,MATCH(JW12,$B$12:$B$222,0))=$C$3),JX12, IF(AND('Dashboard (CCG)'!$G$4="AHSN",INDEX($F$12:$F$222,MATCH(JW12,$B$12:$B$222,0))=$C$3),JX12, IF(AND('Dashboard (CCG)'!$G$4="CLUSTER",INDEX($H$12:$H$222,MATCH(JW12,$B$12:$B$222,0))=$C$3),JX12,#N/A))) ->  | JZ12: =JZ$9 -> n/a | KA12: =JZ$10 -> 69.16571704 | KB12: =IF('Dashboard (CCG)'!$C$4=JW12,JX12,#N/A) ->  | KD12: =RANK(KE12,KE$12:KE$222)+COUNTIF(KE$12:KE12,KE12)-1 -> 170 | KE12: =IF(ISERROR(SUMIFS(RawData_CCG[Identifier],RawData_CCG[Metric Name],KD$6,RawData_CCG[Code],$A12)),"n/a",SUMIFS(RawData_CCG[Identifier],RawData_CCG[Metric Name],KD$6,RawData_CCG[Code],$A12)) -> 0.214 | KF12: =COUNTA($A$12:$A$222) -> 211 | KG12: =INDEX($A$12:$B$222,MATCH(KF12,KD$12:KD$222,0),2) -> NHS Newham CCG | KH12: =VLOOKUP(KF12,KD$12:KE$222,2,FALSE) -> 0.131 | KI12: =IF(AND('Dashboard (CCG)'!$G$4="AREA",INDEX($D$12:$D$222,MATCH(KG12,$B$12:$B$222,0))=$C$3),KH12, IF(AND('Dashboard (CCG)'!$G$4="AHSN",INDEX($F$12:$F$222,MATCH(KG12,$B$12:$B$222,0))=$C$3),KH12, IF(AND('Dashboard (CCG)'!$G$4="CLUSTER",INDEX($H$12:$H$222,MATCH(KG12,$B$12:$B$222,0))=$C$3),KH12,#N/A))) ->  | KJ12: =KJ$9 -> n/a | KK12: =KJ$10 -> 0.2741214945 | KL12: =IF('Dashboard (CCG)'!$C$4=KG12,KH12,#N/A) ->  | KN12: =RANK(KO12,KO$12:KO$222)+COUNTIF(KO$12:KO12,KO12)-1 -> 86 | KO12: =IF(ISERROR(SUMIFS(RawData_CCG[Identifier],RawData_CCG[Metric Name],KN$6,RawData_CCG[Code],$A12)),"n/a",SUMIFS(RawData_CCG[Identifier],RawData_CCG[Metric Name],KN$6,RawData_CCG[Code],$A12)) -> 582301.4 | KP12: =COUNTA($A$12:$A$222) -> 211 | KQ12: =INDEX($A$12:$B$222,MATCH(KP12,KN$12:KN$222,0),2) -> NHS Milton Keynes CCG | KR12: =VLOOKUP(KP12,KN$12:KO$222,2,FALSE) -> 226011.9 | KS12: =IF(AND('Dashboard (CCG)'!$G$4="AREA",INDEX($D$12:$D$222,MATCH(KQ12,$B$12:$B$222,0))=$C$3),KR12, IF(AND('Dashboard (CCG)'!$G$4="AHSN",INDEX($F$12:$F$222,MATCH(KQ12,$B$12:$B$222,0))=$C$3),KR12, IF(AND('Dashboard (CCG)'!$G$4="CLUSTER",INDEX($H$12:$H$222,MATCH(KQ12,$B$12:$B$222,0))=$C$3),KR12,#N/A))) ->  | KT12: =KT$9 -> n/a | KU12: =KT$10 -> 567266.71 | KV12: =IF('Dashboard (CCG)'!$C$4=KQ12,KR12,#N/A) ->  | KX12: =RANK(KY12,KY$12:KY$222)+COUNTIF(KY$12:KY12,KY12)-1 -> 185 | KY12: =IF(ISERROR(SUMIFS(RawData_CCG[Identifier],RawData_CCG[Metric Name],KX$6,RawData_CCG[Code],$A12)),"n/a",SUMIFS(RawData_CCG[Identifier],RawData_CCG[Metric Name],KX$6,RawData_CCG[Code],$A12)) -> 64.70588235 | KZ12: =COUNTA($A$12:$A$222) -> 211 | LA12: =INDEX($A$12:$B$222,MATCH(KZ12,KX$12:KX$222,0),2) -> NHS Bassetlaw CCG | LB12: =VLOOKUP(KZ12,KX$12:KY$222,2,FALSE) -> 40 | LC12: =IF(AND('Dashboard (CCG)'!$G$4="AREA",INDEX($D$12:$D$222,MATCH(LA12,$B$12:$B$222,0))=$C$3),LB12, IF(AND('Dashboard (CCG)'!$G$4="AHSN",INDEX($F$12:$F$222,MATCH(LA12,$B$12:$B$222,0))=$C$3),LB12, IF(AND('Dashboard (CCG)'!$G$4="CLUSTER",INDEX($H$12:$H$222,MATCH(LA12,$B$12:$B$222,0))=$C$3),LB12,#N/A))) ->  | LD12: =LD$9 -> n/a | LE12: =LD$10 -> 76.99177771 | LF12: =IF('Dashboard (CCG)'!$C$4=LA12,LB12,#N/A) ->  | LH12: =RANK(LI12,LI$12:LI$222)+COUNTIF(LI$12:LI12,LI12)-1 -> 176 | LI12: =IF(ISERROR(SUMIFS(RawData_CCG[Identifier],RawData_CCG[Metric Name],LH$6,RawData_CCG[Code],$A12)),"n/a",SUMIFS(RawData_CCG[Identifier],RawData_CCG[Metric Name],LH$6,RawData_CCG[Code],$A12)) -> 63.03317536 | LJ12: =COUNTA($A$12:$A$222) -> 211 | LK12: =INDEX($A$12:$B$222,MATCH(LJ12,LH$12:LH$222,0),2) -> NHS Bassetlaw CCG | LL12: =VLOOKUP(LJ12,LH$12:LI$222,2,FALSE) -> 45.90163934 | LM12: =IF(AND('Dashboard (CCG)'!$G$4="AREA",INDEX($D$12:$D$222,MATCH(LK12,$B$12:$B$222,0))=$C$3),LL12, IF(AND('Dashboard (CCG)'!$G$4="AHSN",INDEX($F$12:$F$222,MATCH(LK12,$B$12:$B$222,0))=$C$3),LL12, IF(AND('Dashboard (CCG)'!$G$4="CLUSTER",INDEX($H$12:$H$222,MATCH(LK12,$B$12:$B$222,0))=$C$3),LL12,#N/A))) ->  | LN12: =LN$9 -> n/a | LO12: =LN$10 -> 67.37661424 | LP12: =IF('Dashboard (CCG)'!$C$4=LK12,LL12,#N/A) ->  | LR12: =RANK(LS12,LS$12:LS$222)+COUNTIF(LS$12:LS12,LS12)-1 -> 148 | LS12: =IF(ISERROR(SUMIFS(RawData_CCG[Identifier],RawData_CCG[Metric Name],LR$6,RawData_CCG[Code],$A12)),"n/a",SUMIFS(RawData_CCG[Identifier],RawData_CCG[Metric Name],LR$6,RawData_CCG[Code],$A12)) -> 68.8264526 | LT12: =COUNTA($A$12:$A$222) -> 211 | LU12: =INDEX($A$12:$B$222,MATCH(LT12,LR$12:LR$222,0),2) -> NHS Somerset CCG | LV12: =VLOOKUP(LT12,LR$12:LS$222,2,FALSE) -> 59.56662188 | LW12: =IF(AND('Dashboard (CCG)'!$G$4="AREA",INDEX($D$12:$D$222,MATCH(LU12,$B$12:$B$222,0))=$C$3),LV12, IF(AND('Dashboard (CCG)'!$G$4="AHSN",INDEX($F$12:$F$222,MATCH(LU12,$B$12:$B$222,0))=$C$3),LV12, IF(AND('Dashboard (CCG)'!$G$4="CLUSTER",INDEX($H$12:$H$222,MATCH(LU12,$B$12:$B$222,0))=$C$3),LV12,#N/A))) ->  | LX12: =LX$9 -> n/a | LY12: =LX$10 -> 70.18484585 | LZ12: =IF('Dashboard (CCG)'!$C$4=LU12,LV12,#N/A) ->  | MB12: =RANK(MC12,MC$12:MC$222)+COUNTIF(MC$12:MC12,MC12)-1 -> 162 | MC12: =IF(ISERROR(SUMIFS(RawData_CCG[Identifier],RawData_CCG[Metric Name],MB$6,RawData_CCG[Code],$A12)),"n/a",SUMIFS(RawData_CCG[Identifier],RawData_CCG[Metric Name],MB$6,RawData_CCG[Code],$A12)) -> 52.94117647 | MD12: =COUNTA($A$12:$A$222) -> 211 | ME12: =INDEX($A$12:$B$222,MATCH(MD12,MB$12:MB$222,0),2) -> NHS Stafford and Surrounds CCG | MF12: =VLOOKUP(MD12,MB$12:MC$222,2,FALSE) -> 14.28571429 | MG12: =IF(AND('Dashboard (CCG)'!$G$4="AREA",INDEX($D$12:$D$222,MATCH(ME12,$B$12:$B$222,0))=$C$3),MF12, IF(AND('Dashboard (CCG)'!$G$4="AHSN",INDEX($F$12:$F$222,MATCH(ME12,$B$12:$B$222,0))=$C$3),MF12, IF(AND('Dashboard (CCG)'!$G$4="CLUSTER",INDEX($H$12:$H$222,MATCH(ME12,$B$12:$B$222,0))=$C$3),MF12,#N/A))) ->  | MH12: =MH$9 -> n/a | MI12: =MH$10 -> 62.85064443 | MJ12: =IF('Dashboard (CCG)'!$C$4=ME12,MF12,#N/A) ->  | ML12: =RANK(MM12,MM$12:MM$222)+COUNTIF(MM$12:MM12,MM12)-1 -> 39 | MM12: =IF(ISERROR(SUMIFS(RawData_CCG[Identifier],RawData_CCG[Metric Name],ML$6,RawData_CCG[Code],$A12)),"n/a",SUMIFS(RawData_CCG[Identifier],RawData_CCG[Metric Name],ML$6,RawData_CCG[Code],$A12)) -> 2.284021407 | MN12: =COUNTA($A$12:$A$222) -> 211 | MO12: =INDEX($A$12:$B$222,MATCH(MN12,ML$12:ML$222,0),2) -> NHS Rushcliffe CCG | MP12: =VLOOKUP(MN12,ML$12:MM$222,2,FALSE) -> 0.6965840589 | MQ12: =IF(AND('Dashboard (CCG)'!$G$4="AREA",INDEX($D$12:$D$222,MATCH(MO12,$B$12:$B$222,0))=$C$3),MP12, IF(AND('Dashboard (CCG)'!$G$4="AHSN",INDEX($F$12:$F$222,MATCH(MO12,$B$12:$B$222,0))=$C$3),MP12, IF(AND('Dashboard (CCG)'!$G$4="CLUSTER",INDEX($H$12:$H$222,MATCH(MO12,$B$12:$B$222,0))=$C$3),MP12,#N/A))) ->  | MR12: =MR$9 -> n/a | MS12: =MR$10 -> 1.741873333 | MT12: =IF('Dashboard (CCG)'!$C$4=MO12,MP12,#N/A) ->  | MV12: =RANK(MW12,MW$12:MW$222)+COUNTIF(MW$12:MW12,MW12)-1 -> 187 | MW12: =IF(ISERROR(SUMIFS(RawData_CCG[Identifier],RawData_CCG[Metric Name],MV$6,RawData_CCG[Code],$A12)),"n/a",SUMIFS(RawData_CCG[Identifier],RawData_CCG[Metric Name],MV$6,RawData_CCG[Code],$A12)) -> 76.8370607 | MX12: =COUNTA($A$12:$A$222) -> 211 | MY12: =INDEX($A$12:$B$222,MATCH(MX12,MV$12:MV$222,0),2) -> NHS Somerset CCG | MZ12: =VLOOKUP(MX12,MV$12:MW$222,2,FALSE) -> 71.02277884 | NA12: =IF(AND('Dashboard (CCG)'!$G$4="AREA",INDEX($D$12:$D$222,MATCH(MY12,$B$12:$B$222,0))=$C$3),MZ12, IF(AND('Dashboard (CCG)'!$G$4="AHSN",INDEX($F$12:$F$222,MATCH(MY12,$B$12:$B$222,0))=$C$3),MZ12, IF(AND('Dashboard (CCG)'!$G$4="CLUSTER",INDEX($H$12:$H$222,MATCH(MY12,$B$12:$B$222,0))=$C$3),MZ12,#N/A))) ->  | NB12: =NB$9 -> n/a | NC12: =NB$10 -> 80.41016775 | ND12: =IF('Dashboard (CCG)'!$C$4=MY12,MZ12,#N/A) ->  | NF12: =RANK(NG12,NG$12:NG$222)+COUNTIF(NG$12:NG12,NG12)-1 -> 151 | NG12: =IF(ISERROR(SUMIFS(RawData_CCG[Identifier],RawData_CCG[Metric Name],NF$6,RawData_CCG[Code],$A12)),"n/a",SUMIFS(RawData_CCG[Identifier],RawData_CCG[Metric Name],NF$6,RawData_CCG[Code],$A12)) -> 11.76470588 | NH12: =COUNTA($A$12:$A$222) -> 211 | NI12: =INDEX($A$12:$B$222,MATCH(NH12,NF$12:NF$222,0),2) -> NHS Stafford and Surrounds CCG | NJ12: =VLOOKUP(NH12,NF$12:NG$222,2,FALSE) -> 0 | NK12: =IF(AND('Dashboard (CCG)'!$G$4="AREA",INDEX($D$12:$D$222,MATCH(NI12,$B$12:$B$222,0))=$C$3),NJ12, IF(AND('Dashboard (CCG)'!$G$4="AHSN",INDEX($F$12:$F$222,MATCH(NI12,$B$12:$B$222,0))=$C$3),NJ12, IF(AND('Dashboard (CCG)'!$G$4="CLUSTER",INDEX($H$12:$H$222,MATCH(NI12,$B$12:$B$222,0))=$C$3),NJ12,#N/A))) ->  | NL12: =NL$9 -> n/a | NM12: =NL$10 -> 20.53164557 | NN12: =IF('Dashboard (CCG)'!$C$4=NI12,NJ12,#N/A) ->  | NP12: =RANK(NQ12,NQ$12:NQ$222)+COUNTIF(NQ$12:NQ12,NQ12)-1 -> 89 | NQ12: =IF(ISERROR(SUMIFS(RawData_CCG[Identifier],RawData_CCG[Metric Name],NP$6,RawData_CCG[Code],$A12)),"n/a",SUMIFS(RawData_CCG[Identifier],RawData_CCG[Metric Name],NP$6,RawData_CCG[Code],$A12)) -> 12.17252396 | NR12: =COUNTA($A$12:$A$222) -> 211 | NS12: =INDEX($A$12:$B$222,MATCH(NR12,NP$12:NP$222,0),2) -> NHS Newark and Sherwood CCG | NT12: =VLOOKUP(NR12,NP$12:NQ$222,2,FALSE) -> 6.057185854 | NU12: =IF(AND('Dashboard (CCG)'!$G$4="AREA",INDEX($D$12:$D$222,MATCH(NS12,$B$12:$B$222,0))=$C$3),NT12, IF(AND('Dashboard (CCG)'!$G$4="AHSN",INDEX($F$12:$F$222,MATCH(NS12,$B$12:$B$222,0))=$C$3),NT12, IF(AND('Dashboard (CCG)'!$G$4="CLUSTER",INDEX($H$12:$H$222,MATCH(NS12,$B$12:$B$222,0))=$C$3),NT12,#N/A))) ->  | NV12: =NV$9 -> n/a | NW12: =NV$10 -> 11.78372408 | NX12: =IF('Dashboard (CCG)'!$C$4=NS12,NT12,#N/A) ->  | NZ12: =RANK(OA12,OA$12:OA$222)+COUNTIF(OA$12:OA12,OA12)-1 -> 165 | OA12: =IF(ISERROR(SUMIFS(RawData_CCG[Identifier],RawData_CCG[Metric Name],NZ$6,RawData_CCG[Code],$A12)),"n/a",SUMIFS(RawData_CCG[Identifier],RawData_CCG[Metric Name],NZ$6,RawData_CCG[Code],$A12)) -> 5.882352941 | OB12: =COUNTA($A$12:$A$222) -> 211 | OC12: =INDEX($A$12:$B$222,MATCH(OB12,NZ$12:NZ$222,0),2) -> NHS Wigan Borough CCG | OD12: =VLOOKUP(OB12,NZ$12:OA$222,2,FALSE) -> 0 | OE12: =IF(AND('Dashboard (CCG)'!$G$4="AREA",INDEX($D$12:$D$222,MATCH(OC12,$B$12:$B$222,0))=$C$3),OD12, IF(AND('Dashboard (CCG)'!$G$4="AHSN",INDEX($F$12:$F$222,MATCH(OC12,$B$12:$B$222,0))=$C$3),OD12, IF(AND('Dashboard (CCG)'!$G$4="CLUSTER",INDEX($H$12:$H$222,MATCH(OC12,$B$12:$B$222,0))=$C$3),OD12,#N/A))) ->  | OF12: =OF$9 -> n/a | OG12: =OF$10 -> 23.98172821 | OH12: =IF('Dashboard (CCG)'!$C$4=OC12,OD12,#N/A) ->  | OJ12: =RANK(OK12,OK$12:OK$222)+COUNTIF(OK$12:OK12,OK12)-1 -> 1 | OK12: =IF(ISERROR(SUMIFS(RawData_CCG[Identifier],RawData_CCG[Metric Name],OJ$6,RawData_CCG[Code],$A12)),"n/a",SUMIFS(RawData_CCG[Identifier],RawData_CCG[Metric Name],OJ$6,RawData_CCG[Code],$A12)) -> 100 | OL12: =COUNTA($A$12:$A$222) -> 211 | OM12: =INDEX($A$12:$B$222,MATCH(OL12,OJ$12:OJ$222,0),2) -> NHS South East Staffs and Seisdon Peninsular CCG | ON12: =VLOOKUP(OL12,OJ$12:OK$222,2,FALSE) -> 12.903226 | OO12: =IF(AND('Dashboard (CCG)'!$G$4="AREA",INDEX($D$12:$D$222,MATCH(OM12,$B$12:$B$222,0))=$C$3),ON12, IF(AND('Dashboard (CCG)'!$G$4="AHSN",INDEX($F$12:$F$222,MATCH(OM12,$B$12:$B$222,0))=$C$3),ON12, IF(AND('Dashboard (CCG)'!$G$4="CLUSTER",INDEX($H$12:$H$222,MATCH(OM12,$B$12:$B$222,0))=$C$3),ON12,#N/A))) ->  | OP12: =OP$9 -> n/a | OQ12: =OP$10 -> 95.463838 | OR12: =IF('Dashboard (CCG)'!$C$4=OM12,ON12,#N/A) ->  | OT12: =RANK(OU12,OU$12:OU$222)+COUNTIF(OU$12:OU12,OU12)-1 -> 13 | OU12: =IF(ISERROR(SUMIFS(RawData_DIS[Sulfonylureas (%)],RawData_DIS[Type],"CCG",RawData_DIS[Code],$A12)), "n/a", SUMIFS(RawData_DIS[Sulfonylureas (%)],RawData_DIS[Type],"CCG",RawData_DIS[Code],$A12)) -> 0.2992543263 | OV12: =COUNTA($A$12:$A$222) -> 211 | OW12: =INDEX($A$12:$B$222,MATCH(OV12,OT$12:OT$222,0),2) -> NHS Barking and Dagenham CCG | OX12: =VLOOKUP(OV12,OT$12:OU$222,2,FALSE) -> 0.1665626611 | OY12: =SUMIFS(RawData_DIS[Sulfonylureas (%)],RawData_DIS[Type],"CCG",RawData_DIS[Name],$OW12) -> 0.1665626611 | OZ12: =SUMIFS(RawData_DIS[Biguanides (%)],RawData_DIS[Type],"CCG",RawData_DIS[Name],$OW12) -> 0.5752231598 | PA12: =SUMIFS(RawData_DIS[Dipetidylpeptidase-4 inhibitors (CG87) (%)],RawData_DIS[Type],"CCG",RawData_DIS[Name],$OW12) -> 0.164636297 | PB12: =SUMIFS(RawData_DIS[Glucagon-like peptide-1 receptor activators (%)],RawData_DIS[Type],"CCG",RawData_DIS[Name],$OW12) -> 0.01741867217 | PC12: =SUMIFS(RawData_DIS[Insulin release stimulators (%)],RawData_DIS[Type],"CCG",RawData_DIS[Name],$OW12) -> 0.0173372765 | PD12: =SUMIFS(RawData_DIS[Intestinal alpha glucosidases inhibitors (%)],RawData_DIS[Type],"CCG",RawData_DIS[Name],$OW12) -> 0.001763572727 | PE12: =SUMIFS(RawData_DIS[Sodium-glucose co-transporter 2 (SGLT2) inhibitors (%)],RawData_DIS[Type],"CCG",RawData_DIS[Name],$OW12) -> 0.008655072306 | PF12: =SUMIFS(RawData_DIS[Thiazolidinediones (%)],RawData_DIS[Type],"CCG",RawData_DIS[Name],$OW12) -> 0.04840328838 | PG12: =IF('Dashboard (CCG)'!$C$4=$OW12,OY12,#N/A) ->  | PH12: =IF('Dashboard (CCG)'!$C$4=$OW12,OZ12,#N/A) ->  | PI12: =IF('Dashboard (CCG)'!$C$4=$OW12,PA12,#N/A) ->  | PJ12: =IF('Dashboard (CCG)'!$C$4=$OW12,PB12,#N/A) ->  | PK12: =IF('Dashboard (CCG)'!$C$4=$OW12,PC12,#N/A) ->  | PL12: =IF('Dashboard (CCG)'!$C$4=$OW12,PD12,#N/A) ->  | PM12: =IF('Dashboard (CCG)'!$C$4=$OW12,PE12,#N/A) ->  | PN12: =IF('Dashboard (CCG)'!$C$4=$OW12,PF12,#N/A) ->  | PP12: =RANK(PQ12,PQ$12:PQ$222,1)+COUNTIF(PQ$12:PQ12,PQ12)-1 -> 136 | PQ12: =IF(ISERROR(SUMIFS(RawData_OAC[Warfarin Sodium Items (%)],RawData_OAC[Type],"CCG",RawData_OAC[Code],$A12)), "n/a", SUMIFS(RawData_OAC[Warfarin Sodium Items (%)],RawData_OAC[Type],"CCG",RawData_OAC[Code],$A12)) -> 0.9242180649 | PR12: =COUNTA($A$12:$A$222) -> 211 | PS12: =INDEX($A$12:$B$222,MATCH(PR12,PP$12:PP$222,0),2) -> NHS Thurrock CCG | PT12: =SUMIFS(RawData_OAC[Apixaban, Dabigatran etexilate & Rivaroxaban items (%)],RawData_OAC[Type],"CCG",RawData_OAC[Name],$PS12) -> 0.01411161001 | PU12: =SUMIFS(RawData_OAC[Warfarin Sodium Items (%)],RawData_OAC[Type],"CCG",RawData_OAC[Name],$PS12) -> 0.98588839 | PV12: =AVERAGEIF($PT$12:$PT$222,"<>#N/A") -> 0.1155319263 | PW12: =IF('Dashboard (CCG)'!$C$4=$PS12,PT12,#N/A) ->  | PX12: =IF('Dashboard (CCG)'!$C$4=$PS12,PU12,#N/A) -> 
A13: 09C | B13: =INDEX(DTable_Hierarchy[],MATCH($A13,DTable_Hierarchy[CCG/Trust Code],0),MATCH(B$11,DTable_Hierarchy[#Headers],0)) -> NHS Ashford CCG | C13: =INDEX(DTable_Hierarchy[],MATCH($A13,DTable_Hierarchy[CCG/Trust Code],0),MATCH(C$11,DTable_Hierarchy[#Headers],0)) -> Q67 | D13: =INDEX(DTable_Hierarchy[],MATCH($A13,DTable_Hierarchy[CCG/Trust Code],0),MATCH(D$11,DTable_Hierarchy[#Headers],0)) -> Kent And Medway Area | E13: =INDEX(DTable_Hierarchy[],MATCH($A13,DTable_Hierarchy[CCG/Trust Code],0),MATCH(E$11,DTable_Hierarchy[#Headers],0)) -> AHSN5 | F13: =INDEX(DTable_Hierarchy[],MATCH($A13,DTable_Hierarchy[CCG/Trust Code],0),MATCH(F$11,DTable_Hierarchy[#Headers],0)) -> Kent Surrey & Sussex AHSN | G13: =INDEX(DTable_Hierarchy[],MATCH($A13,DTable_Hierarchy[CCG/Trust Code],0),MATCH(G$11,DTable_Hierarchy[#Headers],0)) -> CLS2 | H13: =INDEX(DTable_Hierarchy[],MATCH($A13,DTable_Hierarchy[CCG/Trust Code],0),MATCH(H$11,DTable_Hierarchy[#Headers],0)) -> Cylinder | J13: =RANK(K13,K$12:K$222)+COUNTIF(K$12:K13,K13)-1 -> 62 | K13: =IF(ISERROR(SUMIFS(RawData_CCG[Identifier],RawData_CCG[Metric Name],J$6,RawData_CCG[Code],$A13)),"n/a",SUMIFS(RawData_CCG[Identifier],RawData_CCG[Metric Name],J$6,RawData_CCG[Code],$A13)) -> 0.342 | L13: =L12-1 -> 210 | M13: =INDEX($A$12:$B$222,MATCH(L13,J$12:J$222,0),2) -> NHS West London (K&C & QPP) CCG | N13: =VLOOKUP(L13,J$12:K$222,2,FALSE) -> 0.21 | O13: =IF(AND('Dashboard (CCG)'!$G$4="AREA",INDEX($D$12:$D$222,MATCH(M13,$B$12:$B$222,0))=$C$3),N13, IF(AND('Dashboard (CCG)'!$G$4="AHSN",INDEX($F$12:$F$222,MATCH(M13,$B$12:$B$222,0))=$C$3),N13, IF(AND('Dashboard (CCG)'!$G$4="CLUSTER",INDEX($H$12:$H$222,MATCH(M13,$B$12:$B$222,0))=$C$3),N13,#N/A))) ->  | P13: =P$9 -> n/a | Q13: =P$10 -> 0.3166850227 | R13: =IF('Dashboard (CCG)'!$C$4=M13,N13,#N/A) ->  | T13: =RANK(U13,U$12:U$222)+COUNTIF(U$12:U13,U13)-1 -> 145 | U13: =IF(ISERROR(SUMIFS(RawData_CCG[Identifier],RawData_CCG[Metric Name],T$6,RawData_CCG[Code],$A13)),"n/a",SUMIFS(RawData_CCG[Identifier],RawData_CCG[Metric Name],T$6,RawData_CCG[Code],$A13)) -> 8.684 | V13: =V12-1 -> 210 | W13: =INDEX($A$12:$B$222,MATCH(V13,T$12:T$222,0),2) -> NHS Stockport CCG | X13: =VLOOKUP(V13,T$12:U$222,2,FALSE) -> 4.815 | Y13: =IF(AND('Dashboard (CCG)'!$G$4="AREA",INDEX($D$12:$D$222,MATCH(W13,$B$12:$B$222,0))=$C$3),X13, IF(AND('Dashboard (CCG)'!$G$4="AHSN",INDEX($F$12:$F$222,MATCH(W13,$B$12:$B$222,0))=$C$3),X13, IF(AND('Dashboard (CCG)'!$G$4="CLUSTER",INDEX($H$12:$H$222,MATCH(W13,$B$12:$B$222,0))=$C$3),X13,#N/A))) ->  | Z13: =Z$9 -> n/a | AA13: =Z$10 -> 10.09721669 | AB13: =IF('Dashboard (CCG)'!$C$4=W13,X13,#N/A) ->  | AD13: =RANK(AE13,AE$12:AE$222)+COUNTIF(AE$12:AE13,AE13)-1 -> 124 | AE13: =IF(ISERROR(SUMIFS(RawData_CCG[Identifier],RawData_CCG[Metric Name],AD$6,RawData_CCG[Code],$A13)),"n/a",SUMIFS(RawData_CCG[Identifier],RawData_CCG[Metric Name],AD$6,RawData_CCG[Code],$A13)) -> 10.63663987 | AF13: =AF12-1 -> 210 | AG13: =INDEX($A$12:$B$222,MATCH(AF13,AD$12:AD$222,0),2) -> NHS Southend CCG | AH13: =VLOOKUP(AF13,AD$12:AE$222,2,FALSE) -> 0 | AI13: =IF(AND('Dashboard (CCG)'!$G$4="AREA",INDEX($D$12:$D$222,MATCH(AG13,$B$12:$B$222,0))=$C$3),AH13, IF(AND('Dashboard (CCG)'!$G$4="AHSN",INDEX($F$12:$F$222,MATCH(AG13,$B$12:$B$222,0))=$C$3),AH13, IF(AND('Dashboard (CCG)'!$G$4="CLUSTER",INDEX($H$12:$H$222,MATCH(AG13,$B$12:$B$222,0))=$C$3),AH13,#N/A))) ->  | AJ13: =AJ$9 -> n/a | AK13: =AJ$10 -> 14.8495095 | AL13: =IF('Dashboard (CCG)'!$C$4=AG13,AH13,#N/A) ->  | AN13: =RANK(AO13,AO$12:AO$222)+COUNTIF(AO$12:AO13,AO13)-1 -> 170 | AO13: =IF(ISERROR(SUMIFS(RawData_CCG[Identifier],RawData_CCG[Metric Name],AN$6,RawData_CCG[Code],$A13)),"n/a",SUMIFS(RawData_CCG[Identifier],RawData_CCG[Metric Name],AN$6,RawData_CCG[Code],$A13)) -> 0.3195267312 | AP13: =AP12-1 -> 210 | AQ13: =INDEX($A$12:$B$222,MATCH(AP13,AN$12:AN$222,0),2) -> NHS Surrey Downs CCG | AR13: =VLOOKUP(AP13,AN$12:AO$222,2,FALSE) -> 0 | AS13: =IF(AND('Dashboard (CCG)'!$G$4="AREA",INDEX($D$12:$D$222,MATCH(AQ13,$B$12:$B$222,0))=$C$3),AR13, IF(AND('Dashboard (CCG)'!$G$4="AHSN",INDEX($F$12:$F$222,MATCH(AQ13,$B$12:$B$222,0))=$C$3),AR13, IF(AND('Dashboard (CCG)'!$G$4="CLUSTER",INDEX($H$12:$H$222,MATCH(AQ13,$B$12:$B$222,0))=$C$3),AR13,#N/A))) ->  | AT13: =AT$9 -> n/a | AU13: =AT$10 -> 11.67990438 | AV13: =IF('Dashboard (CCG)'!$C$4=AQ13,AR13,#N/A) ->  | AX13: =RANK(AY13,AY$12:AY$222)+COUNTIF(AY$12:AY13,AY13)-1 -> 42 | AY13: =IF(ISERROR(SUMIFS(RawData_CCG[Identifier],RawData_CCG[Metric Name],AX$6,RawData_CCG[Code],$A13)),"n/a",SUMIFS(RawData_CCG[Identifier],RawData_CCG[Metric Name],AX$6,RawData_CCG[Code],$A13)) -> 88.36206897 | AZ13: =AZ12-1 -> 210 | BA13: =INDEX($A$12:$B$222,MATCH(AZ13,AX$12:AX$222,0),2) -> NHS Windsor, Ascot and Maidenhead CCG | BB13: =VLOOKUP(AZ13,AX$12:AY$222,2,FALSE) -> 58.35962145 | BC13: =IF(AND('Dashboard (CCG)'!$G$4="AREA",INDEX($D$12:$D$222,MATCH(BA13,$B$12:$B$222,0))=$C$3),BB13, IF(AND('Dashboard (CCG)'!$G$4="AHSN",INDEX($F$12:$F$222,MATCH(BA13,$B$12:$B$222,0))=$C$3),BB13, IF(AND('Dashboard (CCG)'!$G$4="CLUSTER",INDEX($H$12:$H$222,MATCH(BA13,$B$12:$B$222,0))=$C$3),BB13,#N/A))) ->  | BD13: =BD$9 -> n/a | BE13: =BD$10 -> 81.88728496 | BF13: =IF('Dashboard (CCG)'!$C$4=BA13,BB13,#N/A) ->  | BH13: =RANK(BI13,BI$12:BI$222)+COUNTIF(BI$12:BI13,BI13)-1 -> 12 | BI13: =IF(ISERROR(SUMIFS(RawData_CCG[Identifier],RawData_CCG[Metric Name],BH$6,RawData_CCG[Code],$A13)),"n/a",SUMIFS(RawData_CCG[Identifier],RawData_CCG[Metric Name],BH$6,RawData_CCG[Code],$A13)) -> 71.98275862 | BJ13: =BJ12-1 -> 210 | BK13: =INDEX($A$12:$B$222,MATCH(BJ13,BH$12:BH$222,0),2) -> NHS Herefordshire CCG | BL13: =VLOOKUP(BJ13,BH$12:BI$222,2,FALSE) -> 35.80246914 | BM13: =IF(AND('Dashboard (CCG)'!$G$4="AREA",INDEX($D$12:$D$222,MATCH(BK13,$B$12:$B$222,0))=$C$3),BL13, IF(AND('Dashboard (CCG)'!$G$4="AHSN",INDEX($F$12:$F$222,MATCH(BK13,$B$12:$B$222,0))=$C$3),BL13, IF(AND('Dashboard (CCG)'!$G$4="CLUSTER",INDEX($H$12:$H$222,MATCH(BK13,$B$12:$B$222,0))=$C$3),BL13,#N/A))) ->  | BN13: =BN$9 -> n/a | BO13: =BN$10 -> 57.23526164 | BP13: =IF('Dashboard (CCG)'!$C$4=BK13,BL13,#N/A) ->  | BR13: =RANK(BS13,BS$12:BS$222)+COUNTIF(BS$12:BS13,BS13)-1 -> 105 | BS13: =IF(ISERROR(SUMIFS(RawData_CCG[Identifier],RawData_CCG[Metric Name],BR$6,RawData_CCG[Code],$A13)),"n/a",SUMIFS(RawData_CCG[Identifier],RawData_CCG[Metric Name],BR$6,RawData_CCG[Code],$A13)) -> 42.85714286 | BT13: =BT12-1 -> 210 | BU13: =INDEX($A$12:$B$222,MATCH(BT13,BR$12:BR$222,0),2) -> NHS Southend CCG | BV13: =VLOOKUP(BT13,BR$12:BS$222,2,FALSE) -> 0 | BW13: =IF(AND('Dashboard (CCG)'!$G$4="AREA",INDEX($D$12:$D$222,MATCH(BU13,$B$12:$B$222,0))=$C$3),BV13, IF(AND('Dashboard (CCG)'!$G$4="AHSN",INDEX($F$12:$F$222,MATCH(BU13,$B$12:$B$222,0))=$C$3),BV13, IF(AND('Dashboard (CCG)'!$G$4="CLUSTER",INDEX($H$12:$H$222,MATCH(BU13,$B$12:$B$222,0))=$C$3),BV13,#N/A))) ->  | BX13: =BX$9 -> n/a | BY13: =BX$10 -> 45.41751527 | BZ13: =IF('Dashboard (CCG)'!$C$4=BU13,BV13,#N/A) ->  | CB13: =RANK(CC13,CC$12:CC$222)+COUNTIF(CC$12:CC13,CC13)-1 -> 99 | CC13: =IF(ISERROR(SUMIFS(RawData_CCG[Identifier],RawData_CCG[Metric Name],CB$6,RawData_CCG[Code],$A13)),"n/a",SUMIFS(RawData_CCG[Identifier],RawData_CCG[Metric Name],CB$6,RawData_CCG[Code],$A13)) -> 42.85714286 | CD13: =CD12-1 -> 210 | CE13: =INDEX($A$12:$B$222,MATCH(CD13,CB$12:CB$222,0),2) -> NHS Southend CCG | CF13: =VLOOKUP(CD13,CB$12:CC$222,2,FALSE) -> 0 | CG13: =IF(AND('Dashboard (CCG)'!$G$4="AREA",INDEX($D$12:$D$222,MATCH(CE13,$B$12:$B$222,0))=$C$3),CF13, IF(AND('Dashboard (CCG)'!$G$4="AHSN",INDEX($F$12:$F$222,MATCH(CE13,$B$12:$B$222,0))=$C$3),CF13, IF(AND('Dashboard (CCG)'!$G$4="CLUSTER",INDEX($H$12:$H$222,MATCH(CE13,$B$12:$B$222,0))=$C$3),CF13,#N/A))) ->  | CH13: =CH$9 -> n/a | CI13: =CH$10 -> 44.76832994 | CJ13: =IF('Dashboard (CCG)'!$C$4=CE13,CF13,#N/A) ->  | CL13: =RANK(CM13,CM$12:CM$222)+COUNTIF(CM$12:CM13,CM13)-1 -> 57 | CM13: =IF(ISERROR(SUMIFS(RawData_CCG[Identifier],RawData_CCG[Metric Name],CL$6,RawData_CCG[Code],$A13)),"n/a",SUMIFS(RawData_CCG[Identifier],RawData_CCG[Metric Name],CL$6,RawData_CCG[Code],$A13)) -> 3.586410572 | CN13: =CN12-1 -> 210 | CO13: =INDEX($A$12:$B$222,MATCH(CN13,CL$12:CL$222,0),2) -> NHS Darlington CCG | CP13: =VLOOKUP(CN13,CL$12:CM$222,2,FALSE) -> 1.99045205 | CQ13: =IF(AND('Dashboard (CCG)'!$G$4="AREA",INDEX($D$12:$D$222,MATCH(CO13,$B$12:$B$222,0))=$C$3),CP13, IF(AND('Dashboard (CCG)'!$G$4="AHSN",INDEX($F$12:$F$222,MATCH(CO13,$B$12:$B$222,0))=$C$3),CP13, IF(AND('Dashboard (CCG)'!$G$4="CLUSTER",INDEX($H$12:$H$222,MATCH(CO13,$B$12:$B$222,0))=$C$3),CP13,#N/A))) ->  | CR13: =CR$9 -> n/a | CS13: =CR$10 -> 3.256201293 | CT13: =IF('Dashboard (CCG)'!$C$4=CO13,CP13,#N/A) ->  | CV13: =RANK(CW13,CW$12:CW$222)+COUNTIF(CW$12:CW13,CW13)-1 -> 27 | CW13: =IF(ISERROR(SUMIFS(RawData_CCG[Identifier],RawData_CCG[Metric Name],CV$6,RawData_CCG[Code],$A13)),"n/a",SUMIFS(RawData_CCG[Identifier],RawData_CCG[Metric Name],CV$6,RawData_CCG[Code],$A13)) -> 1.019918973 | CX13: =CX12-1 -> 210 | CY13: =INDEX($A$12:$B$222,MATCH(CX13,CV$12:CV$222,0),2) -> NHS Herefordshire CCG | CZ13: =VLOOKUP(CX13,CV$12:CW$222,2,FALSE) -> 0.307167195 | DA13: =IF(AND('Dashboard (CCG)'!$G$4="AREA",INDEX($D$12:$D$222,MATCH(CY13,$B$12:$B$222,0))=$C$3),CZ13, IF(AND('Dashboard (CCG)'!$G$4="AHSN",INDEX($F$12:$F$222,MATCH(CY13,$B$12:$B$222,0))=$C$3),CZ13, IF(AND('Dashboard (CCG)'!$G$4="CLUSTER",INDEX($H$12:$H$222,MATCH(CY13,$B$12:$B$222,0))=$C$3),CZ13,#N/A))) ->  | DB13: =DB$9 -> n/a | DC13: =DB$10 -> 0.7726525349 | DD13: =IF('Dashboard (CCG)'!$C$4=CY13,CZ13,#N/A) ->  | DF13: =RANK(DG13,DG$12:DG$222)+COUNTIF(DG$12:DG13,DG13)-1 -> 177 | DG13: =IF(ISERROR(SUMIFS(RawData_CCG[Identifier],RawData_CCG[Metric Name],DF$6,RawData_CCG[Code],$A13)),"n/a",SUMIFS(RawData_CCG[Identifier],RawData_CCG[Metric Name],DF$6,RawData_CCG[Code],$A13)) -> 0.8781845017 | DH13: =DH12-1 -> 210 | DI13: =INDEX($A$12:$B$222,MATCH(DH13,DF$12:DF$222,0),2) -> NHS Wigan Borough CCG | DJ13: =VLOOKUP(DH13,DF$12:DG$222,2,FALSE) -> 0.03293159249 | DK13: =IF(AND('Dashboard (CCG)'!$G$4="AREA",INDEX($D$12:$D$222,MATCH(DI13,$B$12:$B$222,0))=$C$3),DJ13, IF(AND('Dashboard (CCG)'!$G$4="AHSN",INDEX($F$12:$F$222,MATCH(DI13,$B$12:$B$222,0))=$C$3),DJ13, IF(AND('Dashboard (CCG)'!$G$4="CLUSTER",INDEX($H$12:$H$222,MATCH(DI13,$B$12:$B$222,0))=$C$3),DJ13,#N/A))) ->  | DL13: =DL$9 -> n/a | DM13: =DL$10 -> 7.143634487 | DN13: =IF('Dashboard (CCG)'!$C$4=DI13,DJ13,#N/A) ->  | DP13: =RANK(DQ13,DQ$12:DQ$222)+COUNTIF(DQ$12:DQ13,DQ13)-1 -> 22 | DQ13: =IF(ISERROR(SUMIFS(RawData_CCG[Identifier],RawData_CCG[Metric Name],DP$6,RawData_CCG[Code],$A13)),"n/a",SUMIFS(RawData_CCG[Identifier],RawData_CCG[Metric Name],DP$6,RawData_CCG[Code],$A13)) -> 73.33333333 | DR13: =DR12-1 -> 210 | DS13: =INDEX($A$12:$B$222,MATCH(DR13,DP$12:DP$222,0),2) -> NHS Nottingham North and East CCG | DT13: =VLOOKUP(DR13,DP$12:DQ$222,2,FALSE) -> 9.523809524 | DU13: =IF(AND('Dashboard (CCG)'!$G$4="AREA",INDEX($D$12:$D$222,MATCH(DS13,$B$12:$B$222,0))=$C$3),DT13, IF(AND('Dashboard (CCG)'!$G$4="AHSN",INDEX($F$12:$F$222,MATCH(DS13,$B$12:$B$222,0))=$C$3),DT13, IF(AND('Dashboard (CCG)'!$G$4="CLUSTER",INDEX($H$12:$H$222,MATCH(DS13,$B$12:$B$222,0))=$C$3),DT13,#N/A))) ->  | DV13: =DV$9 -> n/a | DW13: =DV$10 -> 48.46134283 | DX13: =IF('Dashboard (CCG)'!$C$4=DS13,DT13,#N/A) ->  | DZ13: =RANK(EA13,EA$12:EA$222)+COUNTIF(EA$12:EA13,EA13)-1 -> 35 | EA13: =IF(ISERROR(SUMIFS(RawData_CCG[Identifier],RawData_CCG[Metric Name],DZ$6,RawData_CCG[Code],$A13)),"n/a",SUMIFS(RawData_CCG[Identifier],RawData_CCG[Metric Name],DZ$6,RawData_CCG[Code],$A13)) -> 72.57033248 | EB13: =EB12-1 -> 210 | EC13: =INDEX($A$12:$B$222,MATCH(EB13,DZ$12:DZ$222,0),2) -> NHS Nottingham West CCG | ED13: =VLOOKUP(EB13,DZ$12:EA$222,2,FALSE) -> 59.54415954 | EE13: =IF(AND('Dashboard (CCG)'!$G$4="AREA",INDEX($D$12:$D$222,MATCH(EC13,$B$12:$B$222,0))=$C$3),ED13, IF(AND('Dashboard (CCG)'!$G$4="AHSN",INDEX($F$12:$F$222,MATCH(EC13,$B$12:$B$222,0))=$C$3),ED13, IF(AND('Dashboard (CCG)'!$G$4="CLUSTER",INDEX($H$12:$H$222,MATCH(EC13,$B$12:$B$222,0))=$C$3),ED13,#N/A))) ->  | EF13: =EF$9 -> n/a | EG13: =EF$10 -> 69.10967825 | EH13: =IF('Dashboard (CCG)'!$C$4=EC13,ED13,#N/A) ->  | EJ13: =RANK(EK13,EK$12:EK$222)+COUNTIF(EK$12:EK13,EK13)-1 -> 185 | EK13: =IF(ISERROR(SUMIFS(RawData_CCG[Identifier],RawData_CCG[Metric Name],EJ$6,RawData_CCG[Code],$A13)),"n/a",SUMIFS(RawData_CCG[Identifier],RawData_CCG[Metric Name],EJ$6,RawData_CCG[Code],$A13)) -> 71.746 | EL13: =EL12-1 -> 210 | EM13: =INDEX($A$12:$B$222,MATCH(EL13,EJ$12:EJ$222,0),2) -> NHS Mid Essex CCG | EN13: =VLOOKUP(EL13,EJ$12:EK$222,2,FALSE) -> 64.272 | EO13: =IF(AND('Dashboard (CCG)'!$G$4="AREA",INDEX($D$12:$D$222,MATCH(EM13,$B$12:$B$222,0))=$C$3),EN13, IF(AND('Dashboard (CCG)'!$G$4="AHSN",INDEX($F$12:$F$222,MATCH(EM13,$B$12:$B$222,0))=$C$3),EN13, IF(AND('Dashboard (CCG)'!$G$4="CLUSTER",INDEX($H$12:$H$222,MATCH(EM13,$B$12:$B$222,0))=$C$3),EN13,#N/A))) ->  | EP13: =EP$9 -> n/a | EQ13: =EP$10 -> 77.04676364 | ER13: =IF('Dashboard (CCG)'!$C$4=EM13,EN13,#N/A) ->  | ET13: =RANK(EU13,EU$12:EU$222)+COUNTIF(EU$12:EU13,EU13)-1 -> 142 | EU13: =IF(ISERROR(SUMIFS(RawData_CCG[Identifier],RawData_CCG[Metric Name],ET$6,RawData_CCG[Code],$A13)),"n/a",SUMIFS(RawData_CCG[Identifier],RawData_CCG[Metric Name],ET$6,RawData_CCG[Code],$A13)) -> 14.3 | EV13: =EV12-1 -> 210 | EW13: =INDEX($A$12:$B$222,MATCH(EV13,ET$12:ET$222,0),2) -> NHS Surrey Heath CCG | EX13: =VLOOKUP(EV13,ET$12:EU$222,2,FALSE) -> 0 | EY13: =IF(AND('Dashboard (CCG)'!$G$4="AREA",INDEX($D$12:$D$222,MATCH(EW13,$B$12:$B$222,0))=$C$3),EX13, IF(AND('Dashboard (CCG)'!$G$4="AHSN",INDEX($F$12:$F$222,MATCH(EW13,$B$12:$B$222,0))=$C$3),EX13, IF(AND('Dashboard (CCG)'!$G$4="CLUSTER",INDEX($H$12:$H$222,MATCH(EW13,$B$12:$B$222,0))=$C$3),EX13,#N/A))) ->  | EZ13: =EZ$9 -> n/a | FA13: =EZ$10 -> 36.70179002 | FB13: =IF('Dashboard (CCG)'!$C$4=EW13,EX13,#N/A) ->  | FD13: =RANK(FE13,FE$12:FE$222)+COUNTIF(FE$12:FE13,FE13)-1 -> 204 | FE13: =IF(ISERROR(SUMIFS(RawData_CCG[Identifier],RawData_CCG[Metric Name],FD$6,RawData_CCG[Code],$A13)),"n/a",SUMIFS(RawData_CCG[Identifier],RawData_CCG[Metric Name],FD$6,RawData_CCG[Code],$A13)) -> 81.48148148 | FF13: =FF12-1 -> 210 | FG13: =INDEX($A$12:$B$222,MATCH(FF13,FD$12:FD$222,0),2) -> NHS Norwich CCG | FH13: =VLOOKUP(FF13,FD$12:FE$222,2,FALSE) -> 79.16666667 | FI13: =IF(AND('Dashboard (CCG)'!$G$4="AREA",INDEX($D$12:$D$222,MATCH(FG13,$B$12:$B$222,0))=$C$3),FH13, IF(AND('Dashboard (CCG)'!$G$4="AHSN",INDEX($F$12:$F$222,MATCH(FG13,$B$12:$B$222,0))=$C$3),FH13, IF(AND('Dashboard (CCG)'!$G$4="CLUSTER",INDEX($H$12:$H$222,MATCH(FG13,$B$12:$B$222,0))=$C$3),FH13,#N/A))) ->  | FJ13: =FJ$9 -> n/a | FK13: =FJ$10 -> 86.70148766 | FL13: =IF('Dashboard (CCG)'!$C$4=FG13,FH13,#N/A) ->  | FN13: =RANK(FO13,FO$12:FO$222)+COUNTIF(FO$12:FO13,FO13)-1 -> 101 | FO13: =IF(ISERROR(SUMIFS(RawData_CCG[Identifier],RawData_CCG[Metric Name],FN$6,RawData_CCG[Code],$A13)),"n/a",SUMIFS(RawData_CCG[Identifier],RawData_CCG[Metric Name],FN$6,RawData_CCG[Code],$A13)) -> 40 | FP13: =FP12-1 -> 210 | FQ13: =INDEX($A$12:$B$222,MATCH(FP13,FN$12:FN$222,0),2) -> NHS South Lincolnshire CCG | FR13: =VLOOKUP(FP13,FN$12:FO$222,2,FALSE) -> 6.666666667 | FS13: =IF(AND('Dashboard (CCG)'!$G$4="AREA",INDEX($D$12:$D$222,MATCH(FQ13,$B$12:$B$222,0))=$C$3),FR13, IF(AND('Dashboard (CCG)'!$G$4="AHSN",INDEX($F$12:$F$222,MATCH(FQ13,$B$12:$B$222,0))=$C$3),FR13, IF(AND('Dashboard (CCG)'!$G$4="CLUSTER",INDEX($H$12:$H$222,MATCH(FQ13,$B$12:$B$222,0))=$C$3),FR13,#N/A))) ->  | FT13: =FT$9 -> n/a | FU13: =FT$10 -> 41.38242894 | FV13: =IF('Dashboard (CCG)'!$C$4=FQ13,FR13,#N/A) ->  | FX13: =RANK(FY13,FY$12:FY$222)+COUNTIF(FY$12:FY13,FY13)-1 -> 140 | FY13: =IF(ISERROR(SUMIFS(RawData_CCG[Identifier],RawData_CCG[Metric Name],FX$6,RawData_CCG[Code],$A13)),"n/a",SUMIFS(RawData_CCG[Identifier],RawData_CCG[Metric Name],FX$6,RawData_CCG[Code],$A13)) -> 71.81818182 | FZ13: =FZ12-1 -> 210 | GA13: =INDEX($A$12:$B$222,MATCH(FZ13,FX$12:FX$222,0),2) -> NHS Norwich CCG | GB13: =VLOOKUP(FZ13,FX$12:FY$222,2,FALSE) -> 59.78835979 | GC13: =IF(AND('Dashboard (CCG)'!$G$4="AREA",INDEX($D$12:$D$222,MATCH(GA13,$B$12:$B$222,0))=$C$3),GB13, IF(AND('Dashboard (CCG)'!$G$4="AHSN",INDEX($F$12:$F$222,MATCH(GA13,$B$12:$B$222,0))=$C$3),GB13, IF(AND('Dashboard (CCG)'!$G$4="CLUSTER",INDEX($H$12:$H$222,MATCH(GA13,$B$12:$B$222,0))=$C$3),GB13,#N/A))) ->  | GD13: =GD$9 -> n/a | GE13: =GD$10 -> 74.25195742 | GF13: =IF('Dashboard (CCG)'!$C$4=GA13,GB13,#N/A) ->  | GH13: =RANK(GI13,GI$12:GI$222)+COUNTIF(GI$12:GI13,GI13)-1 -> 95 | GI13: =IF(ISERROR(SUMIFS(RawData_CCG[Identifier],RawData_CCG[Metric Name],GH$6,RawData_CCG[Code],$A13)),"n/a",SUMIFS(RawData_CCG[Identifier],RawData_CCG[Metric Name],GH$6,RawData_CCG[Code],$A13)) -> 80 | GJ13: =GJ12-1 -> 210 | GK13: =INDEX($A$12:$B$222,MATCH(GJ13,GH$12:GH$222,0),2) -> NHS High Weald Lewes Havens CCG | GL13: =VLOOKUP(GJ13,GH$12:GI$222,2,FALSE) -> 42.85714286 | GM13: =IF(AND('Dashboard (CCG)'!$G$4="AREA",INDEX($D$12:$D$222,MATCH(GK13,$B$12:$B$222,0))=$C$3),GL13, IF(AND('Dashboard (CCG)'!$G$4="AHSN",INDEX($F$12:$F$222,MATCH(GK13,$B$12:$B$222,0))=$C$3),GL13, IF(AND('Dashboard (CCG)'!$G$4="CLUSTER",INDEX($H$12:$H$222,MATCH(GK13,$B$12:$B$222,0))=$C$3),GL13,#N/A))) ->  | GN13: =GN$9 -> n/a | GO13: =GN$10 -> 78.05133578 | GP13: =IF('Dashboard (CCG)'!$C$4=GK13,GL13,#N/A) ->  | GR13: =RANK(GS13,GS$12:GS$222)+COUNTIF(GS$12:GS13,GS13)-1 -> 52 | GS13: =IF(ISERROR(SUMIFS(RawData_CCG[Identifier],RawData_CCG[Metric Name],GR$6,RawData_CCG[Code],$A13)),"n/a",SUMIFS(RawData_CCG[Identifier],RawData_CCG[Metric Name],GR$6,RawData_CCG[Code],$A13)) -> 0 | GT13: =GT12-1 -> 210 | GU13: =INDEX($A$12:$B$222,MATCH(GT13,GR$12:GR$222,0),2) -> NHS West Essex CCG | GV13: =VLOOKUP(GT13,GR$12:GS$222,2,FALSE) -> 0 | GW13: =IF(AND('Dashboard (CCG)'!$G$4="AREA",INDEX($D$12:$D$222,MATCH(GU13,$B$12:$B$222,0))=$C$3),GV13, IF(AND('Dashboard (CCG)'!$G$4="AHSN",INDEX($F$12:$F$222,MATCH(GU13,$B$12:$B$222,0))=$C$3),GV13, IF(AND('Dashboard (CCG)'!$G$4="CLUSTER",INDEX($H$12:$H$222,MATCH(GU13,$B$12:$B$222,0))=$C$3),GV13,#N/A))) ->  | GX13: =GX$9 -> n/a | GY13: =GX$10 -> 0.8464939987 | GZ13: =IF('Dashboard (CCG)'!$C$4=GU13,GV13,#N/A) ->  | HB13: =RANK(HC13,HC$12:HC$222)+COUNTIF(HC$12:HC13,HC13)-1 -> 44 | HC13: =IF(ISERROR(SUMIFS(RawData_CCG[Identifier],RawData_CCG[Metric Name],HB$6,RawData_CCG[Code],$A13)),"n/a",SUMIFS(RawData_CCG[Identifier],RawData_CCG[Metric Name],HB$6,RawData_CCG[Code],$A13)) -> 82.57412622 | HD13: =HD12-1 -> 210 | HE13: =INDEX($A$12:$B$222,MATCH(HD13,HB$12:HB$222,0),2) -> NHS Barking and Dagenham CCG | HF13: =VLOOKUP(HD13,HB$12:HC$222,2,FALSE) -> 73.68713532 | HG13: =IF(AND('Dashboard (CCG)'!$G$4="AREA",INDEX($D$12:$D$222,MATCH(HE13,$B$12:$B$222,0))=$C$3),HF13, IF(AND('Dashboard (CCG)'!$G$4="AHSN",INDEX($F$12:$F$222,MATCH(HE13,$B$12:$B$222,0))=$C$3),HF13, IF(AND('Dashboard (CCG)'!$G$4="CLUSTER",INDEX($H$12:$H$222,MATCH(HE13,$B$12:$B$222,0))=$C$3),HF13,#N/A))) ->  | HH13: =HH$9 -> n/a | HI13: =HH$10 -> 80.19166307 | HJ13: =IF('Dashboard (CCG)'!$C$4=HE13,HF13,#N/A) ->  | HL13: =RANK(HM13,HM$12:HM$222)+COUNTIF(HM$12:HM13,HM13)-1 -> 126 | HM13: =IF(ISERROR(SUMIFS(RawData_CCG[Identifier],RawData_CCG[Metric Name],HL$6,RawData_CCG[Code],$A13)),"n/a",SUMIFS(RawData_CCG[Identifier],RawData_CCG[Metric Name],HL$6,RawData_CCG[Code],$A13)) -> 1.275467948 | HN13: =HN12-1 -> 210 | HO13: =INDEX($A$12:$B$222,MATCH(HN13,HL$12:HL$222,0),2) -> NHS South Warwickshire CCG | HP13: =VLOOKUP(HN13,HL$12:HM$222,2,FALSE) -> 0.6906426345 | HQ13: =IF(AND('Dashboard (CCG)'!$G$4="AREA",INDEX($D$12:$D$222,MATCH(HO13,$B$12:$B$222,0))=$C$3),HP13, IF(AND('Dashboard (CCG)'!$G$4="AHSN",INDEX($F$12:$F$222,MATCH(HO13,$B$12:$B$222,0))=$C$3),HP13, IF(AND('Dashboard (CCG)'!$G$4="CLUSTER",INDEX($H$12:$H$222,MATCH(HO13,$B$12:$B$222,0))=$C$3),HP13,#N/A))) ->  | HR13: =HR$9 -> n/a | HS13: =HR$10 -> 1.34218004 | HT13: =IF('Dashboard (CCG)'!$C$4=HO13,HP13,#N/A) ->  | HV13: =RANK(HW13,HW$12:HW$222)+COUNTIF(HW$12:HW13,HW13)-1 -> 19 | HW13: =IF(ISERROR(SUMIFS(RawData_CCG[Identifier],RawData_CCG[Metric Name],HV$6,RawData_CCG[Code],$A13)),"n/a",SUMIFS(RawData_CCG[Identifier],RawData_CCG[Metric Name],HV$6,RawData_CCG[Code],$A13)) -> 66.66666667 | HX13: =HX12-1 -> 210 | HY13: =INDEX($A$12:$B$222,MATCH(HX13,HV$12:HV$222,0),2) -> NHS Newbury and District CCG | HZ13: =VLOOKUP(HX13,HV$12:HW$222,2,FALSE) -> 9.090909091 | IA13: =IF(AND('Dashboard (CCG)'!$G$4="AREA",INDEX($D$12:$D$222,MATCH(HY13,$B$12:$B$222,0))=$C$3),HZ13, IF(AND('Dashboard (CCG)'!$G$4="AHSN",INDEX($F$12:$F$222,MATCH(HY13,$B$12:$B$222,0))=$C$3),HZ13, IF(AND('Dashboard (CCG)'!$G$4="CLUSTER",INDEX($H$12:$H$222,MATCH(HY13,$B$12:$B$222,0))=$C$3),HZ13,#N/A))) ->  | IB13: =IB$9 -> n/a | IC13: =IB$10 -> 48.09630459 | ID13: =IF('Dashboard (CCG)'!$C$4=HY13,HZ13,#N/A) ->  | IF13: =RANK(IG13,IG$12:IG$222)+COUNTIF(IG$12:IG13,IG13)-1 -> 140 | IG13: =IF(ISERROR(SUMIFS(RawData_CCG[Identifier],RawData_CCG[Metric Name],IF$6,RawData_CCG[Code],$A13)),"n/a",SUMIFS(RawData_CCG[Identifier],RawData_CCG[Metric Name],IF$6,RawData_CCG[Code],$A13)) -> 79.72972973 | IH13: =IH12-1 -> 210 | II13: =INDEX($A$12:$B$222,MATCH(IH13,IF$12:IF$222,0),2) -> NHS Enfield CCG | IJ13: =VLOOKUP(IH13,IF$12:IG$222,2,FALSE) -> 62.56157635 | IK13: =IF(AND('Dashboard (CCG)'!$G$4="AREA",INDEX($D$12:$D$222,MATCH(II13,$B$12:$B$222,0))=$C$3),IJ13, IF(AND('Dashboard (CCG)'!$G$4="AHSN",INDEX($F$12:$F$222,MATCH(II13,$B$12:$B$222,0))=$C$3),IJ13, IF(AND('Dashboard (CCG)'!$G$4="CLUSTER",INDEX($H$12:$H$222,MATCH(II13,$B$12:$B$222,0))=$C$3),IJ13,#N/A))) ->  | IL13: =IL$9 -> n/a | IM13: =IL$10 -> 81.32560232 | IN13: =IF('Dashboard (CCG)'!$C$4=II13,IJ13,#N/A) ->  | IP13: =RANK(IQ13,IQ$12:IQ$222)+COUNTIF(IQ$12:IQ13,IQ13)-1 -> 128 | IQ13: =IF(ISERROR(SUMIFS(RawData_CCG[Identifier],RawData_CCG[Metric Name],IP$6,RawData_CCG[Code],$A13)),"n/a",SUMIFS(RawData_CCG[Identifier],RawData_CCG[Metric Name],IP$6,RawData_CCG[Code],$A13)) -> 57.9303675 | IR13: =IR12-1 -> 210 | IS13: =INDEX($A$12:$B$222,MATCH(IR13,IP$12:IP$222,0),2) -> NHS Barnsley CCG | IT13: =VLOOKUP(IR13,IP$12:IQ$222,2,FALSE) -> 37.36861182 | IU13: =IF(AND('Dashboard (CCG)'!$G$4="AREA",INDEX($D$12:$D$222,MATCH(IS13,$B$12:$B$222,0))=$C$3),IT13, IF(AND('Dashboard (CCG)'!$G$4="AHSN",INDEX($F$12:$F$222,MATCH(IS13,$B$12:$B$222,0))=$C$3),IT13, IF(AND('Dashboard (CCG)'!$G$4="CLUSTER",INDEX($H$12:$H$222,MATCH(IS13,$B$12:$B$222,0))=$C$3),IT13,#N/A))) ->  | IV13: =IV$9 -> n/a | IW13: =IV$10 -> 58.36175244 | IX13: =IF('Dashboard (CCG)'!$C$4=IS13,IT13,#N/A) ->  | IZ13: =RANK(JA13,JA$12:JA$222)+COUNTIF(JA$12:JA13,JA13)-1 -> 147 | JA13: =IF(ISERROR(SUMIFS(RawData_CCG[Identifier],RawData_CCG[Metric Name],IZ$6,RawData_CCG[Code],$A13)),"n/a",SUMIFS(RawData_CCG[Identifier],RawData_CCG[Metric Name],IZ$6,RawData_CCG[Code],$A13)) -> 6.666666667 | JB13: =JB12-1 -> 210 | JC13: =INDEX($A$12:$B$222,MATCH(JB13,IZ$12:IZ$222,0),2) -> NHS Surrey Downs CCG | JD13: =VLOOKUP(JB13,IZ$12:JA$222,2,FALSE) -> 0 | JE13: =IF(AND('Dashboard (CCG)'!$G$4="AREA",INDEX($D$12:$D$222,MATCH(JC13,$B$12:$B$222,0))=$C$3),JD13, IF(AND('Dashboard (CCG)'!$G$4="AHSN",INDEX($F$12:$F$222,MATCH(JC13,$B$12:$B$222,0))=$C$3),JD13, IF(AND('Dashboard (CCG)'!$G$4="CLUSTER",INDEX($H$12:$H$222,MATCH(JC13,$B$12:$B$222,0))=$C$3),JD13,#N/A))) ->  | JF13: =JF$9 -> n/a | JG13: =JF$10 -> 12.06427368 | JH13: =IF('Dashboard (CCG)'!$C$4=JC13,JD13,#N/A) ->  | JJ13: =RANK(JK13,JK$12:JK$222)+COUNTIF(JK$12:JK13,JK13)-1 -> 134 | JK13: =IF(ISERROR(SUMIFS(RawData_CCG[Identifier],RawData_CCG[Metric Name],JJ$6,RawData_CCG[Code],$A13)),"n/a",SUMIFS(RawData_CCG[Identifier],RawData_CCG[Metric Name],JJ$6,RawData_CCG[Code],$A13)) -> 0.308 | JL13: =JL12-1 -> 210 | JM13: =INDEX($A$12:$B$222,MATCH(JL13,JJ$12:JJ$222,0),2) -> NHS Brent CCG | JN13: =VLOOKUP(JL13,JJ$12:JK$222,2,FALSE) -> 0.144 | JO13: =IF(AND('Dashboard (CCG)'!$G$4="AREA",INDEX($D$12:$D$222,MATCH(JM13,$B$12:$B$222,0))=$C$3),JN13, IF(AND('Dashboard (CCG)'!$G$4="AHSN",INDEX($F$12:$F$222,MATCH(JM13,$B$12:$B$222,0))=$C$3),JN13, IF(AND('Dashboard (CCG)'!$G$4="CLUSTER",INDEX($H$12:$H$222,MATCH(JM13,$B$12:$B$222,0))=$C$3),JN13,#N/A))) ->  | JP13: =JP$9 -> n/a | JQ13: =JP$10 -> 0.3264708769 | JR13: =IF('Dashboard (CCG)'!$C$4=JM13,JN13,#N/A) ->  | JT13: =RANK(JU13,JU$12:JU$222)+COUNTIF(JU$12:JU13,JU13)-1 -> 41 | JU13: =IF(ISERROR(SUMIFS(RawData_CCG[Identifier],RawData_CCG[Metric Name],JT$6,RawData_CCG[Code],$A13)),"n/a",SUMIFS(RawData_CCG[Identifier],RawData_CCG[Metric Name],JT$6,RawData_CCG[Code],$A13)) -> 72.81715516 | JV13: =JV12-1 -> 210 | JW13: =INDEX($A$12:$B$222,MATCH(JV13,JT$12:JT$222,0),2) -> NHS Newcastle North and East CCG | JX13: =VLOOKUP(JV13,JT$12:JU$222,2,FALSE) -> 58.59182116 | JY13: =IF(AND('Dashboard (CCG)'!$G$4="AREA",INDEX($D$12:$D$222,MATCH(JW13,$B$12:$B$222,0))=$C$3),JX13, IF(AND('Dashboard (CCG)'!$G$4="AHSN",INDEX($F$12:$F$222,MATCH(JW13,$B$12:$B$222,0))=$C$3),JX13, IF(AND('Dashboard (CCG)'!$G$4="CLUSTER",INDEX($H$12:$H$222,MATCH(JW13,$B$12:$B$222,0))=$C$3),JX13,#N/A))) ->  | JZ13: =JZ$9 -> n/a | KA13: =JZ$10 -> 69.16571704 | KB13: =IF('Dashboard (CCG)'!$C$4=JW13,JX13,#N/A) ->  | KD13: =RANK(KE13,KE$12:KE$222)+COUNTIF(KE$12:KE13,KE13)-1 -> 201 | KE13: =IF(ISERROR(SUMIFS(RawData_CCG[Identifier],RawData_CCG[Metric Name],KD$6,RawData_CCG[Code],$A13)),"n/a",SUMIFS(RawData_CCG[Identifier],RawData_CCG[Metric Name],KD$6,RawData_CCG[Code],$A13)) -> 0.154 | KF13: =KF12-1 -> 210 | KG13: =INDEX($A$12:$B$222,MATCH(KF13,KD$12:KD$222,0),2) -> NHS Tower Hamlets CCG | KH13: =VLOOKUP(KF13,KD$12:KE$222,2,FALSE) -> 0.135 | KI13: =IF(AND('Dashboard (CCG)'!$G$4="AREA",INDEX($D$12:$D$222,MATCH(KG13,$B$12:$B$222,0))=$C$3),KH13, IF(AND('Dashboard (CCG)'!$G$4="AHSN",INDEX($F$12:$F$222,MATCH(KG13,$B$12:$B$222,0))=$C$3),KH13, IF(AND('Dashboard (CCG)'!$G$4="CLUSTER",INDEX($H$12:$H$222,MATCH(KG13,$B$12:$B$222,0))=$C$3),KH13,#N/A))) ->  | KJ13: =KJ$9 -> n/a | KK13: =KJ$10 -> 0.2741214945 | KL13: =IF('Dashboard (CCG)'!$C$4=KG13,KH13,#N/A) ->  | KN13: =RANK(KO13,KO$12:KO$222)+COUNTIF(KO$12:KO13,KO13)-1 -> 106 | KO13: =IF(ISERROR(SUMIFS(RawData_CCG[Identifier],RawData_CCG[Metric Name],KN$6,RawData_CCG[Code],$A13)),"n/a",SUMIFS(RawData_CCG[Identifier],RawData_CCG[Metric Name],KN$6,RawData_CCG[Code],$A13)) -> 550935.3 | KP13: =KP12-1 -> 210 | KQ13: =INDEX($A$12:$B$222,MATCH(KP13,KN$12:KN$222,0),2) -> NHS Central Manchester CCG | KR13: =VLOOKUP(KP13,KN$12:KO$222,2,FALSE) -> 250793.8 | KS13: =IF(AND('Dashboard (CCG)'!$G$4="AREA",INDEX($D$12:$D$222,MATCH(KQ13,$B$12:$B$222,0))=$C$3),KR13, IF(AND('Dashboard (CCG)'!$G$4="AHSN",INDEX($F$12:$F$222,MATCH(KQ13,$B$12:$B$222,0))=$C$3),KR13, IF(AND('Dashboard (CCG)'!$G$4="CLUSTER",INDEX($H$12:$H$222,MATCH(KQ13,$B$12:$B$222,0))=$C$3),KR13,#N/A))) ->  | KT13: =KT$9 -> n/a | KU13: =KT$10 -> 567266.71 | KV13: =IF('Dashboard (CCG)'!$C$4=KQ13,KR13,#N/A) ->  | KX13: =RANK(KY13,KY$12:KY$222)+COUNTIF(KY$12:KY13,KY13)-1 -> 113 | KY13: =IF(ISERROR(SUMIFS(RawData_CCG[Identifier],RawData_CCG[Metric Name],KX$6,RawData_CCG[Code],$A13)),"n/a",SUMIFS(RawData_CCG[Identifier],RawData_CCG[Metric Name],KX$6,RawData_CCG[Code],$A13)) -> 76.92307692 | KZ13: =KZ12-1 -> 210 | LA13: =INDEX($A$12:$B$222,MATCH(KZ13,KX$12:KX$222,0),2) -> NHS South Cheshire CCG | LB13: =VLOOKUP(KZ13,KX$12:KY$222,2,FALSE) -> 44.44444444 | LC13: =IF(AND('Dashboard (CCG)'!$G$4="AREA",INDEX($D$12:$D$222,MATCH(LA13,$B$12:$B$222,0))=$C$3),LB13, IF(AND('Dashboard (CCG)'!$G$4="AHSN",INDEX($F$12:$F$222,MATCH(LA13,$B$12:$B$222,0))=$C$3),LB13, IF(AND('Dashboard (CCG)'!$G$4="CLUSTER",INDEX($H$12:$H$222,MATCH(LA13,$B$12:$B$222,0))=$C$3),LB13,#N/A))) ->  | LD13: =LD$9 -> n/a | LE13: =LD$10 -> 76.99177771 | LF13: =IF('Dashboard (CCG)'!$C$4=LA13,LB13,#N/A) ->  | LH13: =RANK(LI13,LI$12:LI$222)+COUNTIF(LI$12:LI13,LI13)-1 -> 120 | LI13: =IF(ISERROR(SUMIFS(RawData_CCG[Identifier],RawData_CCG[Metric Name],LH$6,RawData_CCG[Code],$A13)),"n/a",SUMIFS(RawData_CCG[Identifier],RawData_CCG[Metric Name],LH$6,RawData_CCG[Code],$A13)) -> 67.03910615 | LJ13: =LJ12-1 -> 210 | LK13: =INDEX($A$12:$B$222,MATCH(LJ13,LH$12:LH$222,0),2) -> NHS Fylde and Wyre CCG | LL13: =VLOOKUP(LJ13,LH$12:LI$222,2,FALSE) -> 51.68195719 | LM13: =IF(AND('Dashboard (CCG)'!$G$4="AREA",INDEX($D$12:$D$222,MATCH(LK13,$B$12:$B$222,0))=$C$3),LL13, IF(AND('Dashboard (CCG)'!$G$4="AHSN",INDEX($F$12:$F$222,MATCH(LK13,$B$12:$B$222,0))=$C$3),LL13, IF(AND('Dashboard (CCG)'!$G$4="CLUSTER",INDEX($H$12:$H$222,MATCH(LK13,$B$12:$B$222,0))=$C$3),LL13,#N/A))) ->  | LN13: =LN$9 -> n/a | LO13: =LN$10 -> 67.37661424 | LP13: =IF('Dashboard (CCG)'!$C$4=LK13,LL13,#N/A) ->  | LR13: =RANK(LS13,LS$12:LS$222)+COUNTIF(LS$12:LS13,LS13)-1 -> 141 | LS13: =IF(ISERROR(SUMIFS(RawData_CCG[Identifier],RawData_CCG[Metric Name],LR$6,RawData_CCG[Code],$A13)),"n/a",SUMIFS(RawData_CCG[Identifier],RawData_CCG[Metric Name],LR$6,RawData_CCG[Code],$A13)) -> 69.23928077 | LT13: =LT12-1 -> 210 | LU13: =INDEX($A$12:$B$222,MATCH(LT13,LR$12:LR$222,0),2) -> NHS Bassetlaw CCG | LV13: =VLOOKUP(LT13,LR$12:LS$222,2,FALSE) -> 63.01631633 | LW13: =IF(AND('Dashboard (CCG)'!$G$4="AREA",INDEX($D$12:$D$222,MATCH(LU13,$B$12:$B$222,0))=$C$3),LV13, IF(AND('Dashboard (CCG)'!$G$4="AHSN",INDEX($F$12:$F$222,MATCH(LU13,$B$12:$B$222,0))=$C$3),LV13, IF(AND('Dashboard (CCG)'!$G$4="CLUSTER",INDEX($H$12:$H$222,MATCH(LU13,$B$12:$B$222,0))=$C$3),LV13,#N/A))) ->  | LX13: =LX$9 -> n/a | LY13: =LX$10 -> 70.18484585 | LZ13: =IF('Dashboard (CCG)'!$C$4=LU13,LV13,#N/A) ->  | MB13: =RANK(MC13,MC$12:MC$222)+COUNTIF(MC$12:MC13,MC13)-1 -> 160 | MC13: =IF(ISERROR(SUMIFS(RawData_CCG[Identifier],RawData_CCG[Metric Name],MB$6,RawData_CCG[Code],$A13)),"n/a",SUMIFS(RawData_CCG[Identifier],RawData_CCG[Metric Name],MB$6,RawData_CCG[Code],$A13)) -> 53.33333333 | MD13: =MD12-1 -> 210 | ME13: =INDEX($A$12:$B$222,MATCH(MD13,MB$12:MB$222,0),2) -> NHS Somerset CCG | MF13: =VLOOKUP(MD13,MB$12:MC$222,2,FALSE) -> 24 | MG13: =IF(AND('Dashboard (CCG)'!$G$4="AREA",INDEX($D$12:$D$222,MATCH(ME13,$B$12:$B$222,0))=$C$3),MF13, IF(AND('Dashboard (CCG)'!$G$4="AHSN",INDEX($F$12:$F$222,MATCH(ME13,$B$12:$B$222,0))=$C$3),MF13, IF(AND('Dashboard (CCG)'!$G$4="CLUSTER",INDEX($H$12:$H$222,MATCH(ME13,$B$12:$B$222,0))=$C$3),MF13,#N/A))) ->  | MH13: =MH$9 -> n/a | MI13: =MH$10 -> 62.85064443 | MJ13: =IF('Dashboard (CCG)'!$C$4=ME13,MF13,#N/A) ->  | ML13: =RANK(MM13,MM$12:MM$222)+COUNTIF(MM$12:MM13,MM13)-1 -> 130 | MM13: =IF(ISERROR(SUMIFS(RawData_CCG[Identifier],RawData_CCG[Metric Name],ML$6,RawData_CCG[Code],$A13)),"n/a",SUMIFS(RawData_CCG[Identifier],RawData_CCG[Metric Name],ML$6,RawData_CCG[Code],$A13)) -> 1.507607192 | MN13: =MN12-1 -> 210 | MO13: =INDEX($A$12:$B$222,MATCH(MN13,ML$12:ML$222,0),2) -> NHS Newbury and District CCG | MP13: =VLOOKUP(MN13,ML$12:MM$222,2,FALSE) -> 0.7879273504 | MQ13: =IF(AND('Dashboard (CCG)'!$G$4="AREA",INDEX($D$12:$D$222,MATCH(MO13,$B$12:$B$222,0))=$C$3),MP13, IF(AND('Dashboard (CCG)'!$G$4="AHSN",INDEX($F$12:$F$222,MATCH(MO13,$B$12:$B$222,0))=$C$3),MP13, IF(AND('Dashboard (CCG)'!$G$4="CLUSTER",INDEX($H$12:$H$222,MATCH(MO13,$B$12:$B$222,0))=$C$3),MP13,#N/A))) ->  | MR13: =MR$9 -> n/a | MS13: =MR$10 -> 1.741873333 | MT13: =IF('Dashboard (CCG)'!$C$4=MO13,MP13,#N/A) ->  | MV13: =RANK(MW13,MW$12:MW$222)+COUNTIF(MW$12:MW13,MW13)-1 -> 157 | MW13: =IF(ISERROR(SUMIFS(RawData_CCG[Identifier],RawData_CCG[Metric Name],MV$6,RawData_CCG[Code],$A13)),"n/a",SUMIFS(RawData_CCG[Identifier],RawData_CCG[Metric Name],MV$6,RawData_CCG[Code],$A13)) -> 78.57142857 | MX13: =MX12-1 -> 210 | MY13: =INDEX($A$12:$B$222,MATCH(MX13,MV$12:MV$222,0),2) -> NHS South Sefton CCG | MZ13: =VLOOKUP(MX13,MV$12:MW$222,2,FALSE) -> 71.09957101 | NA13: =IF(AND('Dashboard (CCG)'!$G$4="AREA",INDEX($D$12:$D$222,MATCH(MY13,$B$12:$B$222,0))=$C$3),MZ13, IF(AND('Dashboard (CCG)'!$G$4="AHSN",INDEX($F$12:$F$222,MATCH(MY13,$B$12:$B$222,0))=$C$3),MZ13, IF(AND('Dashboard (CCG)'!$G$4="CLUSTER",INDEX($H$12:$H$222,MATCH(MY13,$B$12:$B$222,0))=$C$3),MZ13,#N/A))) ->  | NB13: =NB$9 -> n/a | NC13: =NB$10 -> 80.41016775 | ND13: =IF('Dashboard (CCG)'!$C$4=MY13,MZ13,#N/A) ->  | NF13: =RANK(NG13,NG$12:NG$222)+COUNTIF(NG$12:NG13,NG13)-1 -> 134 | NG13: =IF(ISERROR(SUMIFS(RawData_CCG[Identifier],RawData_CCG[Metric Name],NF$6,RawData_CCG[Code],$A13)),"n/a",SUMIFS(RawData_CCG[Identifier],RawData_CCG[Metric Name],NF$6,RawData_CCG[Code],$A13)) -> 13.33333333 | NH13: =NH12-1 -> 210 | NI13: =INDEX($A$12:$B$222,MATCH(NH13,NF$12:NF$222,0),2) -> NHS South Norfolk CCG | NJ13: =VLOOKUP(NH13,NF$12:NG$222,2,FALSE) -> 0 | NK13: =IF(AND('Dashboard (CCG)'!$G$4="AREA",INDEX($D$12:$D$222,MATCH(NI13,$B$12:$B$222,0))=$C$3),NJ13, IF(AND('Dashboard (CCG)'!$G$4="AHSN",INDEX($F$12:$F$222,MATCH(NI13,$B$12:$B$222,0))=$C$3),NJ13, IF(AND('Dashboard (CCG)'!$G$4="CLUSTER",INDEX($H$12:$H$222,MATCH(NI13,$B$12:$B$222,0))=$C$3),NJ13,#N/A))) ->  | NL13: =NL$9 -> n/a | NM13: =NL$10 -> 20.53164557 | NN13: =IF('Dashboard (CCG)'!$C$4=NI13,NJ13,#N/A) ->  | NP13: =RANK(NQ13,NQ$12:NQ$222)+COUNTIF(NQ$12:NQ13,NQ13)-1 -> 193 | NQ13: =IF(ISERROR(SUMIFS(RawData_CCG[Identifier],RawData_CCG[Metric Name],NP$6,RawData_CCG[Code],$A13)),"n/a",SUMIFS(RawData_CCG[Identifier],RawData_CCG[Metric Name],NP$6,RawData_CCG[Code],$A13)) -> 8.81773399 | NR13: =NR12-1 -> 210 | NS13: =INDEX($A$12:$B$222,MATCH(NR13,NP$12:NP$222,0),2) -> NHS Mansfield and Ashfield CCG | NT13: =VLOOKUP(NR13,NP$12:NQ$222,2,FALSE) -> 6.827123351 | NU13: =IF(AND('Dashboard (CCG)'!$G$4="AREA",INDEX($D$12:$D$222,MATCH(NS13,$B$12:$B$222,0))=$C$3),NT13, IF(AND('Dashboard (CCG)'!$G$4="AHSN",INDEX($F$12:$F$222,MATCH(NS13,$B$12:$B$222,0))=$C$3),NT13, IF(AND('Dashboard (CCG)'!$G$4="CLUSTER",INDEX($H$12:$H$222,MATCH(NS13,$B$12:$B$222,0))=$C$3),NT13,#N/A))) ->  | NV13: =NV$9 -> n/a | NW13: =NV$10 -> 11.78372408 | NX13: =IF('Dashboard (CCG)'!$C$4=NS13,NT13,#N/A) ->  | NZ13: =RANK(OA13,OA$12:OA$222)+COUNTIF(OA$12:OA13,OA13)-1 -> 153 | OA13: =IF(ISERROR(SUMIFS(RawData_CCG[Identifier],RawData_CCG[Metric Name],NZ$6,RawData_CCG[Code],$A13)),"n/a",SUMIFS(RawData_CCG[Identifier],RawData_CCG[Metric Name],NZ$6,RawData_CCG[Code],$A13)) -> 7.142857143 | OB13: =OB12-1 -> 210 | OC13: =INDEX($A$12:$B$222,MATCH(OB13,NZ$12:NZ$222,0),2) -> NHS West Norfolk CCG | OD13: =VLOOKUP(OB13,NZ$12:OA$222,2,FALSE) -> 0 | OE13: =IF(AND('Dashboard (CCG)'!$G$4="AREA",INDEX($D$12:$D$222,MATCH(OC13,$B$12:$B$222,0))=$C$3),OD13, IF(AND('Dashboard (CCG)'!$G$4="AHSN",INDEX($F$12:$F$222,MATCH(OC13,$B$12:$B$222,0))=$C$3),OD13, IF(AND('Dashboard (CCG)'!$G$4="CLUSTER",INDEX($H$12:$H$222,MATCH(OC13,$B$12:$B$222,0))=$C$3),OD13,#N/A))) ->  | OF13: =OF$9 -> n/a | OG13: =OF$10 -> 23.98172821 | OH13: =IF('Dashboard (CCG)'!$C$4=OC13,OD13,#N/A) ->  | OJ13: =RANK(OK13,OK$12:OK$222)+COUNTIF(OK$12:OK13,OK13)-1 -> 2 | OK13: =IF(ISERROR(SUMIFS(RawData_CCG[Identifier],RawData_CCG[Metric Name],OJ$6,RawData_CCG[Code],$A13)),"n/a",SUMIFS(RawData_CCG[Identifier],RawData_CCG[Metric Name],OJ$6,RawData_CCG[Code],$A13)) -> 100 | OL13: =OL12-1 -> 210 | OM13: =INDEX($A$12:$B$222,MATCH(OL13,OJ$12:OJ$222,0),2) -> NHS Kernow CCG | ON13: =VLOOKUP(OL13,OJ$12:OK$222,2,FALSE) -> 23.188406 | OO13: =IF(AND('Dashboard (CCG)'!$G$4="AREA",INDEX($D$12:$D$222,MATCH(OM13,$B$12:$B$222,0))=$C$3),ON13, IF(AND('Dashboard (CCG)'!$G$4="AHSN",INDEX($F$12:$F$222,MATCH(OM13,$B$12:$B$222,0))=$C$3),ON13, IF(AND('Dashboard (CCG)'!$G$4="CLUSTER",INDEX($H$12:$H$222,MATCH(OM13,$B$12:$B$222,0))=$C$3),ON13,#N/A))) ->  | OP13: =OP$9 -> n/a | OQ13: =OP$10 -> 95.463838 | OR13: =IF('Dashboard (CCG)'!$C$4=OM13,ON13,#N/A) ->  | OT13: =RANK(OU13,OU$12:OU$222)+COUNTIF(OU$12:OU13,OU13)-1 -> 171 | OU13: =IF(ISERROR(SUMIFS(RawData_DIS[Sulfonylureas (%)],RawData_DIS[Type],"CCG",RawData_DIS[Code],$A13)), "n/a", SUMIFS(RawData_DIS[Sulfonylureas (%)],RawData_DIS[Type],"CCG",RawData_DIS[Code],$A13)) -> 0.2263574254 | OV13: =OV12-1 -> 210 | OW13: =INDEX($A$12:$B$222,MATCH(OV13,OT$12:OT$222,0),2) -> NHS South Worcestershire CCG | OX13: =VLOOKUP(OV13,OT$12:OU$222,2,FALSE) -> 0.1679496808 | OY13: =SUMIFS(RawData_DIS[Sulfonylureas (%)],RawData_DIS[Type],"CCG",RawData_DIS[Name],$OW13) -> 0.1679496808 | OZ13: =SUMIFS(RawData_DIS[Biguanides (%)],RawData_DIS[Type],"CCG",RawData_DIS[Name],$OW13) -> 0.6201652272 | PA13: =SUMIFS(RawData_DIS[Dipetidylpeptidase-4 inhibitors (CG87) (%)],RawData_DIS[Type],"CCG",RawData_DIS[Name],$OW13) -> 0.1110354863 | PB13: =SUMIFS(RawData_DIS[Glucagon-like peptide-1 receptor activators (%)],RawData_DIS[Type],"CCG",RawData_DIS[Name],$OW13) -> 0.01884622606 | PC13: =SUMIFS(RawData_DIS[Insulin release stimulators (%)],RawData_DIS[Type],"CCG",RawData_DIS[Name],$OW13) -> 0.001736763049 | PD13: =SUMIFS(RawData_DIS[Intestinal alpha glucosidases inhibitors (%)],RawData_DIS[Type],"CCG",RawData_DIS[Name],$OW13) -> 0.0002816372512 | PE13: =SUMIFS(RawData_DIS[Sodium-glucose co-transporter 2 (SGLT2) inhibitors (%)],RawData_DIS[Type],"CCG",RawData_DIS[Name],$OW13) -> 0.02126361247 | PF13: =SUMIFS(RawData_DIS[Thiazolidinediones (%)],RawData_DIS[Type],"CCG",RawData_DIS[Name],$OW13) -> 0.05872136688 | PG13: =IF('Dashboard (CCG)'!$C$4=$OW13,OY13,#N/A) ->  | PH13: =IF('Dashboard (CCG)'!$C$4=$OW13,OZ13,#N/A) ->  | PI13: =IF('Dashboard (CCG)'!$C$4=$OW13,PA13,#N/A) ->  | PJ13: =IF('Dashboard (CCG)'!$C$4=$OW13,PB13,#N/A) ->  | PK13: =IF('Dashboard (CCG)'!$C$4=$OW13,PC13,#N/A) ->  | PL13: =IF('Dashboard (CCG)'!$C$4=$OW13,PD13,#N/A) ->  | PM13: =IF('Dashboard (CCG)'!$C$4=$OW13,PE13,#N/A) ->  | PN13: =IF('Dashboard (CCG)'!$C$4=$OW13,PF13,#N/A) ->  | PP13: =RANK(PQ13,PQ$12:PQ$222,1)+COUNTIF(PQ$12:PQ13,PQ13)-1 -> 16 | PQ13: =IF(ISERROR(SUMIFS(RawData_OAC[Warfarin Sodium Items (%)],RawData_OAC[Type],"CCG",RawData_OAC[Code],$A13)), "n/a", SUMIFS(RawData_OAC[Warfarin Sodium Items (%)],RawData_OAC[Type],"CCG",RawData_OAC[Code],$A13)) -> 0.7773182957 | PR13: =PR12-1 -> 210 | PS13: =INDEX($A$12:$B$222,MATCH(PR13,PP$12:PP$222,0),2) -> NHS Blackpool CCG | PT13: =SUMIFS(RawData_OAC[Apixaban, Dabigatran etexilate & Rivaroxaban items (%)],RawData_OAC[Type],"CCG",RawData_OAC[Name],$PS13) -> 0.02807300447 | PU13: =SUMIFS(RawData_OAC[Warfarin Sodium Items (%)],RawData_OAC[Type],"CCG",RawData_OAC[Name],$PS13) -> 0.9719269955 | PV13: =AVERAGEIF($PT$12:$PT$222,"<>#N/A") -> 0.1155319263 | PW13: =IF('Dashboard (CCG)'!$C$4=$PS13,PT13,#N/A) ->  | PX13: =IF('Dashboard (CCG)'!$C$4=$PS13,PU13,#N/A) -> 
